{"text_format":"1","workbook":"xlsx","n_sheets":4,"sheets":["Feuil2","Feuil3","Listes","Feuil4"],"not_rendered":{"charts":0,"images":0,"macros":0,"external_links":1,"defined_names":121,"comments":0,"pivot_tables":0},"unopened":[],"bounds":{"document_bytes":16777216,"sheet_cells":100000,"rows_first":2000,"rows_last":500,"rows_between":2000,"halvings":0,"cell_chars":16384,"cell_head_chars":4096},"cells_cut":0,"cells_raw":0,"read":"whole","date_system":"1900"}

{"sheet":"Feuil2","index":0,"n_rows":1067,"n_cols":3,"rows_kept":1067,"cut":false,"hidden":false,"merged":[]}
["Nom du composant technique","Domaine","Sujets"]
["CTRLFILEFCOMJX.xml","BIPUB","BI001"]
["FCOMJX.rtf","BIPUB","BI001"]
["CTRLFILEFCOMSC.xml","BIPUB","BI002"]
["FCOMSC.rtf","BIPUB","BI002"]
["CTRLFILEFPRIJX.xml","BIPUB","BI003"]
["FPRIJX.rtf","BIPUB","BI003"]
["CTRLFILEFACBSC.xml","BIPUB","BI004"]
["FACBSC.rtf","BIPUB","BI004"]
["CTRLFILERELOPE.xml","BIPUB","BI005"]
["RELOPE.rtf","BIPUB","BI005"]
["CTRLFILEFACVOL.xml","BIPUB","BI006"]
["FACVOL.rtf","BIPUB","BI006"]
["CTRLFILEREPREM.xml","BIPUB","BI007"]
["REPREM.rtf","BIPUB","BI007"]
["CTRLFILEREPCAC.xml","BIPUB","BI008"]
["REPCAC.rtf","BIPUB","BI008"]
["CTRLFILEREPFAC.xml","BIPUB","BI009"]
["REPFAC.rtf","BIPUB","BI009"]
["CTRLFILEREPCOM.xml","BIPUB","BI011"]
["REPCOM.rtf","BIPUB","BI011"]
["FIJIbursting.java","BIPUB","COMMON"]
["run_edition.properties","BIPUB","COMMON"]
["run_edition.sh","BIPUB","COMMON"]
["billdata.jar","ETL","CGEN_BILLDATA"]
["billdata.properties","ETL","CGEN_BILLDATA"]
["Billdata_to_XML.ksh","ETL","CGEN_BILLDATA"]
["log4j-1.2.16.jar","ETL","CGEN_BILLDATA"]
["WKF_T_STAG_STAG_BI_PUB_ETACOM.XML","ETL","CGEN_BIPUB001"]
["WKF_T_STAG_STAG_BI_PUB_ETACUM.XML","ETL","CGEN_BIPUB001"]
["WKF_T_STAG_STAG_BI_PUB_ETAFAC.XML","ETL","CGEN_BIPUB001"]
["WKF_T_STAG_STAG_BI_PUB_ETAREM.XML","ETL","CGEN_BIPUB001"]
["WKF_T_STAG_STAG_BI_PUB_FACBSC.XML","ETL","CGEN_BIPUB001"]
["WKF_T_STAG_STAG_BI_PUB_FACVOL.XML","ETL","CGEN_BIPUB001"]
["WKF_T_STAG_STAG_BI_PUB_FCOMJX.XML","ETL","CGEN_BIPUB001"]
["WKF_T_STAG_STAG_BI_PUB_FCOMSC.XML","ETL","CGEN_BIPUB001"]
["WKF_T_STAG_STAG_BI_PUB_RELOPE.XML","ETL","CGEN_BIPUB001"]
["pmserver_M_STAG_STAG_BI_PUB_ETACOM.prm","ETL","CGEN_BIPUB001"]
["pmserver_M_STAG_STAG_BI_PUB_ETACUM.prm","ETL","CGEN_BIPUB001"]
["pmserver_M_STAG_STAG_BI_PUB_ETAFAC.prm","ETL","CGEN_BIPUB001"]
["pmserver_M_STAG_STAG_BI_PUB_ETAREM.prm","ETL","CGEN_BIPUB001"]
["pmserver_M_STAG_STAG_BI_PUB_FACBSC.prm","ETL","CGEN_BIPUB001"]
["pmserver_M_STAG_STAG_BI_PUB_FACVOL.prm","ETL","CGEN_BIPUB001"]
["pmserver_M_STAG_STAG_BI_PUB_FCOMJX.prm","ETL","CGEN_BIPUB001"]
["pmserver_M_STAG_STAG_BI_PUB_FCOMSC.prm","ETL","CGEN_BIPUB001"]
["pmserver_M_STAG_STAG_BI_PUB_RELOPE.prm","ETL","CGEN_BIPUB001"]
["ins_tab_TRANSCO_SRC_GRATTAGE.sql","ETL","CGEN_BIPUB001"]
["cre_tab_TRANSCO_SRC_GRATTAGE.sql","ETL","CGEN_BIPUB001"]
["WKF_L_PROSYS_IRBM_TCP.XML","ETL","CGEN_CGEN001"]
["WKF_T_IRBM_PROSYS_TCP.XML","ETL","CGEN_CGEN001"]
["pmserver_STAG_PROSYS_TCP.prm","ETL","CGEN_CGEN001"]
["pmserver_STAG_STAG_TCP.prm","ETL","CGEN_CGEN001"]
["alim_tab_TR_CURRENCY.sql","ETL","CGEN_CGEN001"]
["alim_tab_TR_NAT_OPE_PREL_ID.sql","ETL","CGEN_CGEN001"]
["cre_get_terminal_id.sql","ETL","CGEN_CGEN001"]
["B_IRBM_PROSYS_32.ksh","ETL","CGEN_CGEN001"]
["Charge_Ano_PROSYS.sql","ETL","CGEN_CGEN001"]
["Detect_Rejets_PROSYS.sql","ETL","CGEN_CGEN001"]
["cre_tab_OUT_DETAILLANTS.sql","ETL","CGEN_CGEN001"]
["cre_tab_OUT_DONNEES.sql","ETL","CGEN_CGEN001"]
["cre_tab_TR_CURRENCY.sql","ETL","CGEN_CGEN001"]
["cre_tab_TR_NAT_OPE_PREL_ID.sql","ETL","CGEN_CGEN001"]
["WKF_T_STAG_STAG_XML_RO_1.XML","ETL","CGEN_CGEN002"]
["WKF_T_STAG_STAG_XML_RO_2.XML","ETL","CGEN_CGEN002"]
["alim_tab_REF_D_REFUSANT_PRELEVEMENT.sql","ETL","CGEN_CGEN002"]
["B_IRBM_SGINET_32.ksh","ETL","CGEN_CGEN002"]
["Charge_Rejets_SGINET.sql","ETL","CGEN_CGEN002"]
["Detect_Ano_SGINET.sql","ETL","CGEN_CGEN002"]
["cre_tab_IN_STRUCTURE_RO.sql","ETL","CGEN_CGEN002"]
["cre_tab_IN_VENTE_JEUX.sql","ETL","CGEN_CGEN002"]
["cre_tab_REF_D_REFUSANT_PRELEVEMENT.sql","ETL","CGEN_CGEN002"]
["WKF_E_IRBM_STAG_XML_GDC.XML","ETL","CGEN_CGEN003"]
["WKF_T_STAG_STAG_SUIV_TRAIT_GDC.XML","ETL","CGEN_CGEN003"]
["WKF_T_STAG_STAG_XML_GDC.XML","ETL","CGEN_CGEN003"]
["B_IRBM_GDC_32.ksh","ETL","CGEN_CGEN003"]
["Charge_Ano_GDC.sql","ETL","CGEN_CGEN003"]
["Detect_Rejets_GDC.sql","ETL","CGEN_CGEN003"]
["cre_tab_I_RBM_GDC_CHARGEMENT_DI.sql","ETL","CGEN_CGEN003"]
["cre_tab_O_GDC_CHARGEMENT_DI.sql","ETL","CGEN_CGEN003"]
["WKF_OeBS_SAGA_IMPAYES.XML","ETL","CGEN_CGEN004"]
["WKF_T_STAG_STAG_SUIV_TRAIT_SAGA.XML","ETL","CGEN_CGEN004"]
["B_OeBS_SAGA_IMPAYES_32.ksh","ETL","CGEN_CGEN004"]
["Charge_Ano_OeBS_SAGA_IMPAYES.sql","ETL","CGEN_CGEN004"]
["Detect_Rejet_OeBS_SAGA.sql","ETL","CGEN_CGEN004"]
["cre_tab_O_DELP_IMPAYES.sql","ETL","CGEN_CGEN004"]
["B_ARCH_RG1_AGG_COUR.ksh","ETL","CGEN_COMMUN"]
["B_ARCH_RG1_GDC.ksh","ETL","CGEN_COMMUN"]
["B_ARCH_RG1_IBM.ksh","ETL","CGEN_COMMUN"]
["B_ARCH_RG1_Prosys.ksh","ETL","CGEN_COMMUN"]
["B_ARCH_RG1_SGINet.ksh","ETL","CGEN_COMMUN"]
["B_ARCH_RG3_iRBM_AP.ksh","ETL","CGEN_COMMUN"]
["B_ARCH_RG3_iRBM_COMP.ksh","ETL","CGEN_COMMUN"]
["B_ARCH_RG4_iRBM_AR.ksh","ETL","CGEN_COMMUN"]
["CommonFunctions.ksh","ETL","CGEN_COMMUN"]
["LoadVariables.ksh","ETL","CGEN_COMMUN"]
["LoadVariables_iRBM.ksh","ETL","CGEN_COMMUN"]
["WKF_STAG_END_PROCESS_ID.XML","ETL","CGEN_CT001"]
["WKF_STAG_START_PROCESS_ID.XML","ETL","CGEN_CT001"]
["WKF_T_IRBM_OEBS_PC10.XML","ETL","CGEN_CT001"]
["WKF_T_IRBM_OEBS_PC103.XML","ETL","CGEN_CT001"]
["WKF_T_IRBM_OEBS_PC11.XML","ETL","CGEN_CT001"]
["WKF_T_IRBM_OEBS_PC3.XML","ETL","CGEN_CT001"]
["WKF_T_IRBM_OEBS_PC4.XML","ETL","CGEN_CT001"]
["WKF_T_IRBM_OEBS_PC8.XML","ETL","CGEN_CT001"]
["WKF_T_OEBS_OEBS_PC9.XML","ETL","CGEN_CT001"]
["WKF_T_OEBS_OEBS_PC9_FACTURATION.XML","ETL","CGEN_CT001"]
["WKF_T_STAG_OEBS_PC1.XML","ETL","CGEN_CT001"]
["WKF_T_STAG_OEBS_PC100.XML","ETL","CGEN_CT001"]
["WKF_T_STAG_OEBS_PC101.XML","ETL","CGEN_CT001"]
["WKF_T_STAG_OEBS_PC102.XML","ETL","CGEN_CT001"]
["WKF_T_STAG_OEBS_PC2.XML","ETL","CGEN_CT001"]
["WKF_T_STAG_OEBS_PC2_VALORISATION.XML","ETL","CGEN_CT001"]
["WKF_T_STAG_OEBS_PC5.XML","ETL","CGEN_CT001"]
["WKF_T_STAG_OEBS_PC6.XML","ETL","CGEN_CT001"]
["WKF_T_STAG_OEBS_PC7.XML","ETL","CGEN_CT001"]
["WKF_E_IRBM_AR_Factures.XML","ETL","CGEN_OEBS001"]
["WKF_L_OEBS_IRBM_AR_Distributions.XML","ETL","CGEN_OEBS001"]
["WKF_L_OEBS_IRBM_AR_Factures.XML","ETL","CGEN_OEBS001"]
["WKF_T_IRBM_AR_SUIV_TRAIT.XML","ETL","CGEN_OEBS001"]
["WKF_T_IRBM_OEBS_AR_Distrib_cle_client.XML","ETL","CGEN_OEBS001"]
["WKF_T_IRBM_OEBS_AR_Distrib_cle_prod.XML","ETL","CGEN_OEBS001"]
["WKF_T_IRBM_OEBS_AR_Factures.XML","ETL","CGEN_OEBS001"]
["B_IRBM_OEBS_AR_32.ksh","ETL","CGEN_OEBS001"]
["Charge_Ano_AR.sql","ETL","CGEN_OEBS001"]
["Detect_Rejets_AR.sql","ETL","CGEN_OEBS001"]
["cre_tab_IN_RA_INTERFACE_LINES_ALL.sql","ETL","CGEN_OEBS001"]
["cre_tab_O_RA_INTERFACE_DISTRIBUTIONS_ALL.sql","ETL","CGEN_OEBS001"]
["cre_tab_OUT_RA_INTERFACE_LINES_ALL.sql","ETL","CGEN_OEBS001"]
["WKF_E_IRBM_AP_EnTetes_Factures.XML","ETL","CGEN_OEBS002"]
["WKF_E_IRBM_AP_Lignes_Factures.XML","ETL","CGEN_OEBS002"]
["WKF_L_OEBS_IRBM_AP_EnTetes_Factures.XML","ETL","CGEN_OEBS002"]
["WKF_L_OEBS_IRBM_AP_Lignes_Factures.XML","ETL","CGEN_OEBS002"]
["WKF_T_IRBM_AP_SUIV_TRAIT.XML","ETL","CGEN_OEBS002"]
["WKF_T_IRBM_OEBS_AP_EnTetes_Factures.XML","ETL","CGEN_OEBS002"]
["WKF_T_IRBM_OEBS_AP_Lignes_Factures.XML","ETL","CGEN_OEBS002"]
["B_IRBM_OEBS_AP_32.ksh","ETL","CGEN_OEBS002"]
["Charge_Ano_AP.sql","ETL","CGEN_OEBS002"]
["Detect_Rejets_AP.sql","ETL","CGEN_OEBS002"]
["cre_tab_IN_AP_INVOICE_LINES_INTERFACE.sql","ETL","CGEN_OEBS002"]
["cre_tab_IN_AP_INVOICES_INTERFACE.sql","ETL","CGEN_OEBS002"]
["cre_tab_OUT_AP_INVOICE_LINES_INTERFACE.sql","ETL","CGEN_OEBS002"]
["cre_tab_OUT_AP_INVOICES_INTERFACE.sql","ETL","CGEN_OEBS002"]
["WKF_E_IRBM_COMP_AP.XML","ETL","CGEN_OEBS003"]
["WKF_E_IRBM_COMP_AR.XML","ETL","CGEN_OEBS003"]
["WKF_E_IRBM_COMP_Lots.XML","ETL","CGEN_OEBS003"]
["WKF_L_OEBS_IRBM_COMP_AP.XML","ETL","CGEN_OEBS003"]
["WKF_L_OEBS_IRBM_COMP_AP_UPD_PAY.XML","ETL","CGEN_OEBS003"]
["WKF_L_OEBS_IRBM_COMP_AR.XML","ETL","CGEN_OEBS003"]
["WKF_L_OEBS_IRBM_COMP_Lots.XML","ETL","CGEN_OEBS003"]
["WKF_T_IRBM_COMP_SUIV_TRAIT.XML","ETL","CGEN_OEBS003"]
["WKF_T_IRBM_OEBS_COMP_AP.XML","ETL","CGEN_OEBS003"]
["WKF_T_IRBM_OEBS_COMP_AR.XML","ETL","CGEN_OEBS003"]
["WKF_T_IRBM_OEBS_COMP_Lots.XML","ETL","CGEN_OEBS003"]
["B_IRBM_OEBS_COMP_32.ksh","ETL","CGEN_OEBS003"]
["Charge_Ano_COMP.sql","ETL","CGEN_OEBS003"]
["Detect_Rejets_COMP.sql","ETL","CGEN_OEBS003"]
["cre_tab_IN_FUN_NET_AP_INVS_ALL.sql","ETL","CGEN_OEBS003"]
["cre_tab_IN_FUN_NET_AR_TXNS_ALL.sql","ETL","CGEN_OEBS003"]
["cre_tab_IN_FUN_NET_BATCHES_ALL.sql","ETL","CGEN_OEBS003"]
["cre_tab_OUT_FUN_NET_AP_INVS_ALL.sql","ETL","CGEN_OEBS003"]
["cre_tab_OUT_FUN_NET_AR_TXNS_ALL.sql","ETL","CGEN_OEBS003"]
["cre_tab_OUT_FUN_NET_BATCHES_ALL.sql","ETL","CGEN_OEBS003"]
["WKF_L_SAGA_DELPHES_TIERS.XML","ETL","CGEN_OEBS004"]
["WKF_L_SAGA_DELPHES_TIERS_B.XML","ETL","CGEN_OEBS004"]
["WKF_T_OEBS_STAG_RETOUR.XML","ETL","CGEN_OEBS004"]
["WKF_T_SAGA_DELPHES_AGENCES.XML","ETL","CGEN_OEBS004"]
["WKF_T_SAGA_DELPHES_BANQUES.XML","ETL","CGEN_OEBS004"]
["WKF_T_SAGA_DELPHES_C_CONTACTS.XML","ETL","CGEN_OEBS004"]
["WKF_T_SAGA_DELPHES_C_ENTETES.XML","ETL","CGEN_OEBS004"]
["WKF_T_SAGA_DELPHES_C_ENTETES_DET.XML","ETL","CGEN_OEBS004"]
["WKF_T_SAGA_DELPHES_C_METHOD_PAIM.XML","ETL","CGEN_OEBS004"]
["WKF_T_SAGA_DELPHES_C_PROFIL.XML","ETL","CGEN_OEBS004"]
["WKF_T_SAGA_DELPHES_C_PROFIL_DET.XML","ETL","CGEN_OEBS004"]
["WKF_T_SAGA_DELPHES_C_RELATIONS.XML","ETL","CGEN_OEBS004"]
["WKF_T_SAGA_DELPHES_COMPTES.XML","ETL","CGEN_OEBS004"]
["WKF_T_SAGA_DELPHES_COURTIER.XML","ETL","CGEN_OEBS004"]
["WKF_T_SAGA_DELPHES_DETAILLANTS.XML","ETL","CGEN_OEBS004"]
["WKF_T_SAGA_DELPHES_EXPLOITATIONS.XML","ETL","CGEN_OEBS004"]
["WKF_T_SAGA_DELPHES_F_CONTACTS.XML","ETL","CGEN_OEBS004"]
["WKF_T_SAGA_DELPHES_F_ENTETES.XML","ETL","CGEN_OEBS004"]
["WKF_T_SAGA_DELPHES_F_ENTETES_DET.XML","ETL","CGEN_OEBS004"]
["WKF_T_SAGA_DELPHES_F_SITES.XML","ETL","CGEN_OEBS004"]
["WKF_T_SAGA_DELPHES_GIE.XML","ETL","CGEN_OEBS004"]
["WKF_T_SAGA_DELPHES_PDV.XML","ETL","CGEN_OEBS004"]
["WKF_T_SAGA_DELPHES_PIVOT_LISTE_REJET.XML","ETL","CGEN_OEBS004"]
["WKF_T_SAGA_DELPHES_SUIVI_TRAIT.XML","ETL","CGEN_OEBS004"]
["WKF_T_STAG_STAG_C_UPD_ERR_1.XML","ETL","CGEN_OEBS004"]
["WKF_T_STAG_STAG_C_UPD_ERR_2.XML","ETL","CGEN_OEBS004"]
["WKF_T_STAG_STAG_C_UPD_ERR_3.XML","ETL","CGEN_OEBS004"]
["WKF_T_STAG_STAG_C_UPD_ERR_4.XML","ETL","CGEN_OEBS004"]
["WKF_T_STAG_STAG_C_UPD_ERR_5.XML","ETL","CGEN_OEBS004"]
["WKF_T_STAG_STAG_F_UPD_ERR_1.XML","ETL","CGEN_OEBS004"]
["WKF_T_STAG_STAG_F_UPD_ERR_2.XML","ETL","CGEN_OEBS004"]
["WKF_T_STAG_STAG_F_UPD_ERR_3.XML","ETL","CGEN_OEBS004"]
["WKF_T_STAG_STAG_TIERS_UPD_ERR_1.XML","ETL","CGEN_OEBS004"]
["WKF_T_STAG_STAG_TIERS_UPD_ERR_2.XML","ETL","CGEN_OEBS004"]
["WKF_T_STAG_STAG_TIERS_UPD_ERR_3.XML","ETL","CGEN_OEBS004"]
["WKF_T_STAG_STAG_TIERS_UPD_ERR_4.XML","ETL","CGEN_OEBS004"]
["pmserver_M_STAG_STAG_COURTIER_DELPHES.prm","ETL","CGEN_OEBS004"]
["pmserver_M_STAG_STAG_DETAILLANTS_DELPHES.prm","ETL","CGEN_OEBS004"]
["pmserver_M_STAG_STAG_EXPL_DELPHES.prm","ETL","CGEN_OEBS004"]
["pmserver_M_STAG_STAG_GIE_DELPHES.prm","ETL","CGEN_OEBS004"]
["pmserver_M_STAG_STAG_PDV_DELPHES.prm","ETL","CGEN_OEBS004"]
["pmserver_M_STAG_STAG_SUIV_TRAIT_SAGA_TIERS.prm","ETL","CGEN_OEBS004"]
["B_SAGA_DELPHES_TIERS_32.ksh","ETL","CGEN_OEBS004"]
["Charge_Rejets_TIERS_DELPHES.sql","ETL","CGEN_OEBS004"]
["Detect_Rejets_TIERS_DELPHES.sql","ETL","CGEN_OEBS004"]
["cre_tab_O_PIVOT_ACTEURS.sql","ETL","CGEN_OEBS004"]
["cre_tab_O_PIVOT_EXPLOITATIONS.sql","ETL","CGEN_OEBS004"]
["cre_tab_O_PIVOT_PDV.sql","ETL","CGEN_OEBS004"]
["cre_tab_O_PIVOT_TIERS_COMPTABLE.sql","ETL","CGEN_OEBS004"]
["cre_tab_O_PIVOT_TIERS_REJET.sql","ETL","CGEN_OEBS004"]
["cre_tab_O_RA_CONTACT_PHONES_INT_ALL.sql","ETL","CGEN_OEBS004"]
["cre_tab_O_RA_CUST_PAY_METHOD_INT_ALL.sql","ETL","CGEN_OEBS004"]
["cre_tab_O_RA_CUSTOMER_PROFILES_INT_ALL.sql","ETL","CGEN_OEBS004"]
["cre_tab_O_RA_CUSTOMERS_INTERFACE_ALL.sql","ETL","CGEN_OEBS004"]
["cre_tab_O_XXFIJI_AP013_BANK_ACCT.sql","ETL","CGEN_OEBS004"]
["cre_tab_O_XXFIJI_AP013_BANK_BRANCHES.sql","ETL","CGEN_OEBS004"]
["cre_tab_O_XXFIJI_AP013_BANKS.sql","ETL","CGEN_OEBS004"]
["cre_tab_O_XXFIJI_AP014_SUP_SITE_CONTAC.sql","ETL","CGEN_OEBS004"]
["cre_tab_O_XXFIJI_AP014_SUPPLIER_SITES.sql","ETL","CGEN_OEBS004"]
["cre_tab_O_XXFIJI_AP014_SUPPLIERS.sql","ETL","CGEN_OEBS004"]
["cre_tab_O_XXFIJI_AR007_CUST_RELATIONSHI.sql","ETL","CGEN_OEBS004"]
["WKF_T_OEBS_IRBM_TIERS.XML","ETL","CGEN_RBM001"]
["WKF_T_OEBS_IRBM_TIERS_DETECT_ANO.XML","ETL","CGEN_RBM001"]
["WKF_T_OEBS_IRBM_TIERS_DETECT_ANO_MAJ.XML","ETL","CGEN_RBM001"]
["WKF_T_OEBS_IRBM_TIERS_MAJ.XML","ETL","CGEN_RBM001"]
["pmserver_M_STAG_STAG_TIERS_IRBM.prm","ETL","CGEN_RBM001"]
["pmserver_M_STAG_STAG_TIERS_IRBM_MAJ.prm","ETL","CGEN_RBM001"]
["init_Tiers_FIJI.sql","ETL","CGEN_RBM001"]
["ins_LIST_ATTRIBUTS.sql","ETL","CGEN_RBM001"]
["ins_MATRICE_ASSO_CMPT_EVS.sql","ETL","CGEN_RBM001"]
["ins_MATRICE_ASSO_CMPT_PRD.sql","ETL","CGEN_RBM001"]
["ins_MATRICE_ASSO_PRD_EVTYPE.sql","ETL","CGEN_RBM001"]
["ins_MATRICE_ASSO_TIERS_CMPT.sql","ETL","CGEN_RBM001"]
["ins_MATRICE_CODE_PAYS_IRBM.sql","ETL","CGEN_RBM001"]
["ins_MATRICE_COMPTES.sql","ETL","CGEN_RBM001"]
["ins_MATRICE_CPS.sql","ETL","CGEN_RBM001"]
["ins_MATRICE_CPS_ACCOUNT.sql","ETL","CGEN_RBM001"]
["ins_MATRICE_CREDITCLASS.sql","ETL","CGEN_RBM001"]
["ins_MATRICE_DEVISE.sql","ETL","CGEN_RBM001"]
["ins_MATRICE_INPUT_TIERS.sql","ETL","CGEN_RBM001"]
["ins_MATRICE_PERIOD_FACT.sql","ETL","CGEN_RBM001"]
["cre_pack_XXFIJI_ETL_001_PKG.sql","ETL","CGEN_RBM001"]
["cre_pack_XXFIJI_ETL_002_PKG.sql","ETL","CGEN_RBM001"]
["cre_pack_XXFIJI_ETL_003_PKG.sql","ETL","CGEN_RBM001"]
["cre_seq_XXFIJI_SAGA_RUN_ID_SEQ.sql","ETL","CGEN_RBM001"]
["cre_seq_XXFIJI_SUIVI_001_REJET_SEQ.sql","ETL","CGEN_RBM001"]
["B_IRBM_TIERS_22.ksh","ETL","CGEN_RBM001"]
["B_IRBM_TIERS_24.ksh","ETL","CGEN_RBM001"]
["B_IRBM_TIERS_42.ksh","ETL","CGEN_RBM001"]
["B_IRBM_TIERS_44.ksh","ETL","CGEN_RBM001"]
["XXFIJI_MATRICE_CPS_RAINBOW.sql","ETL","CGEN_RBM001"]
["cre_tab_LIST_ATTRIBUTS.sql","ETL","CGEN_RBM001"]
["cre_tab_MATRICE_ASSO_CMPT_EVS.sql","ETL","CGEN_RBM001"]
["cre_tab_MATRICE_ASSO_CMPT_PRD.sql","ETL","CGEN_RBM001"]
["cre_tab_MATRICE_ASSO_PRD_EVTYPE.sql","ETL","CGEN_RBM001"]
["cre_tab_MATRICE_ASSO_TIERS_CMPT.sql","ETL","CGEN_RBM001"]
["cre_tab_MATRICE_CODE_PAYS_IRBM.sql","ETL","CGEN_RBM001"]
["cre_tab_MATRICE_COMPTES.sql","ETL","CGEN_RBM001"]
["cre_tab_MATRICE_CPS.sql","ETL","CGEN_RBM001"]
["cre_tab_MATRICE_CPS_ACCOUNT.sql","ETL","CGEN_RBM001"]
["cre_tab_MATRICE_CREDITCLASS.sql","ETL","CGEN_RBM001"]
["cre_tab_MATRICE_DEVISE.sql","ETL","CGEN_RBM001"]
["cre_tab_MATRICE_INPUT_TIERS.sql","ETL","CGEN_RBM001"]
["cre_tab_MATRICE_PERIODE_FACT.sql","ETL","CGEN_RBM001"]
["cre_tab_PARAM_ACCOUNT_CREA.sql","ETL","CGEN_RBM001"]
["cre_tab_PARAM_ACCOUNT_MAJ.sql","ETL","CGEN_RBM001"]
["cre_tab_PARAM_ASSO_EVS_PLAN_CREA.sql","ETL","CGEN_RBM001"]
["cre_tab_PARAM_ASSO_EVS_PLAN_MAJ.sql","ETL","CGEN_RBM001"]
["cre_tab_PARAM_ASSO_EVT_CREA.sql","ETL","CGEN_RBM001"]
["cre_tab_PARAM_ASSO_EVT_MAJ.sql","ETL","CGEN_RBM001"]
["cre_tab_PARAM_ASSO_PRD_CREA.sql","ETL","CGEN_RBM001"]
["cre_tab_PARAM_ASSO_PRD_MAJ.sql","ETL","CGEN_RBM001"]
["cre_tab_PARAM_ATTRIB.sql","ETL","CGEN_RBM001"]
["cre_tab_PARAM_ATTRIB_MAJ.sql","ETL","CGEN_RBM001"]
["cre_tab_PARAM_CLIENT_CREA.sql","ETL","CGEN_RBM001"]
["cre_tab_PARAM_CLIENT_MAJ.sql","ETL","CGEN_RBM001"]
["cre_tab_PARAM_EVSUM_CREA.sql","ETL","CGEN_RBM001"]
["cre_tab_PARAM_EVSUM_MAJ.sql","ETL","CGEN_RBM001"]
["cre_tab_PARAM_PREL_CREA.sql","ETL","CGEN_RBM001"]
["cre_tab_PARAM_PREL_MAJ.sql","ETL","CGEN_RBM001"]
["cre_tab_XXFIJI_SUIVI_001_REJET.sql","ETL","CGEN_RBM001"]
["WKF_T_KHEOPS_IRBM_LOCAM.XML","ETL","CGEN_RBM002"]
["WKF_T_KHEOPS_IRBM_LOCAM_DETECT_ANO.XML","ETL","CGEN_RBM002"]
["WKF_T_KHEOPS_IRBM_SUIVI_TRAIT.XML","ETL","CGEN_RBM002"]
["pmserver_M_STAG_STAG_LOCAM.prm","ETL","CGEN_RBM002"]
["pmserver_M_STAG_STAG_SUIV_TRAIT_KHEOPS.prm","ETL","CGEN_RBM002"]
["cre_pack_XXFIJI_KHEOPS_001_PKG.sql","ETL","CGEN_RBM002"]
["cre_seq_XXFIJI_KHEOPS_RUN_ID_SEQ.sql","ETL","CGEN_RBM002"]
["cre_seq_XXFIJI_SUIVI_002_REJET_SEQ.sql","ETL","CGEN_RBM002"]
["B_KHEOPS_IRBM_LOCAM_32.ksh","ETL","CGEN_RBM002"]
["B_KHEOPS_IRBM_LOCAM_42.ksh","ETL","CGEN_RBM002"]
["cre_tab_PARAM_LOCAMOB_AJOUT.sql","ETL","CGEN_RBM002"]
["cre_tab_PARAM_LOCAMOB_RETRAIT.sql","ETL","CGEN_RBM002"]
["cre_tab_TMP_STAG_AREA_SUIVI_CHARGEMENT.sql","ETL","CGEN_RBM002"]
["cre_tab_XXFIJI_SUIVI_002_REJET.sql","ETL","CGEN_RBM002"]
["WKF_L_IRBM_AGG_COUR.XML","ETL","CGEN_RBM003"]
["WKF_L_IRBM_GDC_GRAT_CA_Courtier.XML","ETL","CGEN_RBM003"]
["WKF_L_IRBM_PROSYS_Carte_Ariane.XML","ETL","CGEN_RBM003"]
["WKF_L_IRBM_PROSYS_JTR_Annulation_Jeu.XML","ETL","CGEN_RBM003"]
["WKF_L_IRBM_PROSYS_JTR_Annulation_Paiement.XML","ETL","CGEN_RBM003"]
["WKF_L_IRBM_PROSYS_JTR_Annulation_Promotion.XML","ETL","CGEN_RBM003"]
["WKF_L_IRBM_PROSYS_JTR_Paiement.XML","ETL","CGEN_RBM003"]
["WKF_L_IRBM_PROSYS_JTR_Prise_De_Jeu.XML","ETL","CGEN_RBM003"]
["WKF_L_IRBM_PROSYS_JTR_Promotion.XML","ETL","CGEN_RBM003"]
["WKF_L_IRBM_PROSYS_JTR_Regularisation.XML","ETL","CGEN_RBM003"]
["WKF_L_IRBM_SGINET_GRAT_AjustLots_Courtier_DC.XML","ETL","CGEN_RBM003"]
["WKF_L_IRBM_SGINET_GRAT_CA_Detaillant.XML","ETL","CGEN_RBM003"]
["WKF_L_IRBM_SGINET_GRAT_CA_Force_Courtier.XML","ETL","CGEN_RBM003"]
["WKF_L_IRBM_SGINET_GRAT_Gratuit.XML","ETL","CGEN_RBM003"]
["WKF_L_IRBM_SGINET_GRAT_Lots.XML","ETL","CGEN_RBM003"]
["WKF_L_IRBM_SGINET_GRAT_Regularisation.XML","ETL","CGEN_RBM003"]
["WKF_L_IRBM_SGINET_GRAT_Tickets_Defect.XML","ETL","CGEN_RBM003"]
["WKF_L_IRBM_SGINET_GRAT_Tickets_Rest.XML","ETL","CGEN_RBM003"]
["WKF_L_IRBM_SGINET_GRAT_Vol_Livrets.XML","ETL","CGEN_RBM003"]
["WKF_T_GDC_IRBM_GRAT_AjustLots_Courtier_DC.XML","ETL","CGEN_RBM003"]
["WKF_T_GDC_IRBM_GRAT_CA_Courtier.XML","ETL","CGEN_RBM003"]
["WKF_T_GDC_IRBM_GRAT_CA_Courtier_COUR.XML","ETL","CGEN_RBM003"]
["WKF_T_GDC_IRBM_GRAT_Regularisation.XML","ETL","CGEN_RBM003"]
["WKF_T_GDC_IRBM_GRAT_Regularisation_COUR.XML","ETL","CGEN_RBM003"]
["WKF_T_PROSYS_IRBM_Carte_Ariane.XML","ETL","CGEN_RBM003"]
["WKF_T_PROSYS_IRBM_Carte_Ariane_COUR.XML","ETL","CGEN_RBM003"]
["WKF_T_PROSYS_IRBM_JTR_A_Promotion_COUR.XML","ETL","CGEN_RBM003"]
["WKF_T_PROSYS_IRBM_JTR_Annulation_Jeu.XML","ETL","CGEN_RBM003"]
["WKF_T_PROSYS_IRBM_JTR_Annulation_Jeu_COUR.XML","ETL","CGEN_RBM003"]
["WKF_T_PROSYS_IRBM_JTR_Annulation_Paiement.XML","ETL","CGEN_RBM003"]
["WKF_T_PROSYS_IRBM_JTR_Annulation_Promotion.XML","ETL","CGEN_RBM003"]
["WKF_T_PROSYS_IRBM_JTR_Paiement.XML","ETL","CGEN_RBM003"]
["WKF_T_PROSYS_IRBM_JTR_Prise_De_Jeu.XML","ETL","CGEN_RBM003"]
["WKF_T_PROSYS_IRBM_JTR_Prise_De_Jeu_COUR.XML","ETL","CGEN_RBM003"]
["WKF_T_PROSYS_IRBM_JTR_Promotion.XML","ETL","CGEN_RBM003"]
["WKF_T_PROSYS_IRBM_JTR_Promotion_COUR.XML","ETL","CGEN_RBM003"]
["WKF_T_PROSYS_IRBM_JTR_Regularisation.XML","ETL","CGEN_RBM003"]
["WKF_T_PROSYS_IRBM_JTR_SUIVI_TRAIT.XML","ETL","CGEN_RBM003"]
["WKF_T_SGINET_IRBM_GRAT_CA_Detaillant.XML","ETL","CGEN_RBM003"]
["WKF_T_SGINET_IRBM_GRAT_CA_Detaillant_COUR.XML","ETL","CGEN_RBM003"]
["WKF_T_SGINET_IRBM_GRAT_CA_Force_Courtier.XML","ETL","CGEN_RBM003"]
["WKF_T_SGINET_IRBM_GRAT_CA_Force_Courtier_COUR.XML","ETL","CGEN_RBM003"]
["WKF_T_SGINET_IRBM_GRAT_Gratuit.XML","ETL","CGEN_RBM003"]
["WKF_T_SGINET_IRBM_GRAT_Gratuit_COUR.XML","ETL","CGEN_RBM003"]
["WKF_T_SGINET_IRBM_GRAT_Lots.XML","ETL","CGEN_RBM003"]
["WKF_T_SGINET_IRBM_GRAT_SUIVI_TRAIT.XML","ETL","CGEN_RBM003"]
["WKF_T_SGINET_IRBM_GRAT_Tickets_Defect.XML","ETL","CGEN_RBM003"]
["WKF_T_SGINET_IRBM_GRAT_Tickets_Defect_COUR.XML","ETL","CGEN_RBM003"]
["WKF_T_SGINET_IRBM_GRAT_Tickets_Rest.XML","ETL","CGEN_RBM003"]
["WKF_T_SGINET_IRBM_GRAT_Tickets_Rest_COUR.XML","ETL","CGEN_RBM003"]
["WKF_T_SGINET_IRBM_GRAT_Vol_Livrets.XML","ETL","CGEN_RBM003"]
["pmserver_M_STAG_IRBM_AGG_COUR.prm","ETL","CGEN_RBM003"]
["pmserver_M_STAG_IRBM_Ariane.prm","ETL","CGEN_RBM003"]
["pmserver_M_STAG_IRBM_GRA_CA_Courtier.prm","ETL","CGEN_RBM003"]
["pmserver_M_STAG_IRBM_GRAT_AjustLots_Courtier_DC.prm","ETL","CGEN_RBM003"]
["pmserver_M_STAG_IRBM_GRAT_CA_Detaillant.prm","ETL","CGEN_RBM003"]
["pmserver_M_STAG_IRBM_GRAT_CA_Force_Courtier.prm","ETL","CGEN_RBM003"]
["pmserver_M_STAG_IRBM_GRAT_Gratuit.prm","ETL","CGEN_RBM003"]
["pmserver_M_STAG_IRBM_GRAT_Lots.prm","ETL","CGEN_RBM003"]
["pmserver_M_STAG_IRBM_GRAT_Regularisation.prm","ETL","CGEN_RBM003"]
["pmserver_M_STAG_IRBM_GRAT_Tickets_Defect.prm","ETL","CGEN_RBM003"]
["pmserver_M_STAG_IRBM_GRAT_Tickets_Rest.prm","ETL","CGEN_RBM003"]
["pmserver_M_STAG_IRBM_GRAT_Vol_Livrets.prm","ETL","CGEN_RBM003"]
["pmserver_M_STAG_IRBM_JTR_Annulation_Jeu.prm","ETL","CGEN_RBM003"]
["pmserver_M_STAG_IRBM_JTR_Annulation_Paiement.prm","ETL","CGEN_RBM003"]
["pmserver_M_STAG_IRBM_JTR_Annulation_Promotion.prm","ETL","CGEN_RBM003"]
["pmserver_M_STAG_IRBM_JTR_Paiement.prm","ETL","CGEN_RBM003"]
["pmserver_M_STAG_IRBM_JTR_Prise_De_Jeu.prm","ETL","CGEN_RBM003"]
["pmserver_M_STAG_IRBM_JTR_Promotion.prm","ETL","CGEN_RBM003"]
["pmserver_M_STAG_IRBM_JTR_Regularisation.prm","ETL","CGEN_RBM003"]
["pmserver_M_STAG_STAG_Ariane.prm","ETL","CGEN_RBM003"]
["pmserver_M_STAG_STAG_GRAT_AJUSLOTS_COURTIER_DC.prm","ETL","CGEN_RBM003"]
["pmserver_M_STAG_STAG_GRAT_CA_COURTIER.prm","ETL","CGEN_RBM003"]
["pmserver_M_STAG_STAG_GRAT_CA_Detaillant.prm","ETL","CGEN_RBM003"]
["pmserver_M_STAG_STAG_GRAT_CA_Force_Courtier.prm","ETL","CGEN_RBM003"]
["pmserver_M_STAG_STAG_GRAT_Gratuit.prm","ETL","CGEN_RBM003"]
["pmserver_M_STAG_STAG_GRAT_Lots.prm","ETL","CGEN_RBM003"]
["pmserver_M_STAG_STAG_GRAT_REGULARISATION.prm","ETL","CGEN_RBM003"]
["pmserver_M_STAG_STAG_GRAT_TICKETS_DEFECT.prm","ETL","CGEN_RBM003"]
["pmserver_M_STAG_STAG_GRAT_TICKETS_REST.prm","ETL","CGEN_RBM003"]
["pmserver_M_STAG_STAG_GRAT_VOL_LIVRETS.prm","ETL","CGEN_RBM003"]
["pmserver_M_STAG_STAG_JTR_ANNULATION_JEU.prm","ETL","CGEN_RBM003"]
["pmserver_M_STAG_STAG_JTR_ANNULATION_PAIEMENT.prm","ETL","CGEN_RBM003"]
["pmserver_M_STAG_STAG_JTR_ANNULATION_PROMOTION.prm","ETL","CGEN_RBM003"]
["pmserver_M_STAG_STAG_JTR_APD_ANNULATION_JEU.prm","ETL","CGEN_RBM003"]
["pmserver_M_STAG_STAG_JTR_APD_PRISE_DE_JEU.prm","ETL","CGEN_RBM003"]
["pmserver_M_STAG_STAG_JTR_PAIEMENT.prm","ETL","CGEN_RBM003"]
["pmserver_M_STAG_STAG_JTR_PRISE_DE_JEU.prm","ETL","CGEN_RBM003"]
["pmserver_M_STAG_STAG_JTR_PROMOTION.prm","ETL","CGEN_RBM003"]
["pmserver_M_STAG_STAG_JTR_REGULARISATION.prm","ETL","CGEN_RBM003"]
["pmserver_M_STAG_STAG_SUIV_TRAIT_GRAT.prm","ETL","CGEN_RBM003"]
["ins_tab_TRANSCO_CANAL_DISTR.sql","ETL","CGEN_RBM003"]
["B_SJEUX_IRBM_12.ksh","ETL","CGEN_RBM003"]
["B_SJEUX_IRBM_AGG_COUR_32.ksh","ETL","CGEN_RBM003"]
["B_SJEUX_IRBM_ARIANE_32.ksh","ETL","CGEN_RBM003"]
["B_SJEUX_IRBM_GRA_AJUSTLOTS_32.ksh","ETL","CGEN_RBM003"]
["B_SJEUX_IRBM_GRA_CACOURDC_32.ksh","ETL","CGEN_RBM003"]
["B_SJEUX_IRBM_GRA_CACOURFORCE_32.ksh","ETL","CGEN_RBM003"]
["B_SJEUX_IRBM_GRA_CADET_32.ksh","ETL","CGEN_RBM003"]
["B_SJEUX_IRBM_GRA_LOTS_32.ksh","ETL","CGEN_RBM003"]
["B_SJEUX_IRBM_GRA_REGUL_32.ksh","ETL","CGEN_RBM003"]
["B_SJEUX_IRBM_GRA_TICKDEFECT_32.ksh","ETL","CGEN_RBM003"]
["B_SJEUX_IRBM_GRA_TICKGRAT_32.ksh","ETL","CGEN_RBM003"]
["B_SJEUX_IRBM_GRA_TICKRESTIT_32.ksh","ETL","CGEN_RBM003"]
["B_SJEUX_IRBM_GRA_VOLSLIVR_32.ksh","ETL","CGEN_RBM003"]
["B_SJEUX_IRBM_JTR_ANPAIELOT_32.ksh","ETL","CGEN_RBM003"]
["B_SJEUX_IRBM_JTR_ANPRISEJEU_32.ksh","ETL","CGEN_RBM003"]
["B_SJEUX_IRBM_JTR_ANPROPRISEJEU_32.ksh","ETL","CGEN_RBM003"]
["B_SJEUX_IRBM_JTR_PAIELOT_32.ksh","ETL","CGEN_RBM003"]
["B_SJEUX_IRBM_JTR_PRISEJEU_32.ksh","ETL","CGEN_RBM003"]
["B_SJEUX_IRBM_JTR_PROPRISEJEU_32.ksh","ETL","CGEN_RBM003"]
["B_SJEUX_IRBM_JTR_REGUL_32.ksh","ETL","CGEN_RBM003"]
["Concat_EventControlFiles.sh","ETL","CGEN_RBM003"]
["Charge_Ano_CACOURDC.sql","ETL","CGEN_RBM003"]
["Charge_Ano_GRAT_AjustLots_Courtier_DC.sql","ETL","CGEN_RBM003"]
["Charge_Ano_GRAT_CA_Detaillant.sql","ETL","CGEN_RBM003"]
["Charge_Ano_GRAT_CA_Force_Courtier.sql","ETL","CGEN_RBM003"]
["Charge_Ano_GRAT_GLOTSC.sql","ETL","CGEN_RBM003"]
["Charge_Ano_GRAT_GLOTSV.sql","ETL","CGEN_RBM003"]
["Charge_Ano_GRAT_Gratuit.sql","ETL","CGEN_RBM003"]
["Charge_Ano_GRAT_Lots.sql","ETL","CGEN_RBM003"]
["Charge_Ano_GRAT_Regularisation.sql","ETL","CGEN_RBM003"]
["Charge_Ano_GRAT_Tickets_Defect.sql","ETL","CGEN_RBM003"]
["Charge_Ano_GRAT_Tickets_Rest.sql","ETL","CGEN_RBM003"]
["Charge_Ano_GRAT_Vol_Livrets.sql","ETL","CGEN_RBM003"]
["Charge_Ano_JTR_Annulation_Jeu.sql","ETL","CGEN_RBM003"]
["Charge_Ano_JTR_Annulation_Paiement.sql","ETL","CGEN_RBM003"]
["Charge_Ano_JTR_Annulation_Promotion.sql","ETL","CGEN_RBM003"]
["Charge_Ano_JTR_GLOTSC.sql","ETL","CGEN_RBM003"]
["Charge_Ano_JTR_GLOTSV.sql","ETL","CGEN_RBM003"]
["Charge_Ano_JTR_Paiement.sql","ETL","CGEN_RBM003"]
["Charge_Ano_JTR_Prise_De_Jeu","ETL","CGEN_RBM003"]
["Charge_Ano_JTR_Promotion.sql","ETL","CGEN_RBM003"]
["Charge_Ano_JTR_Regularisation.sql","ETL","CGEN_RBM003"]
["Charge_Rejets_AGG_COUR.sql","ETL","CGEN_RBM003"]
["Charge_Rejets_Ariane.sql","ETL","CGEN_RBM003"]
["Detect_Rejets_AGG_COUR.sql","ETL","CGEN_RBM003"]
["Detect_Rejets_Ariane.sql","ETL","CGEN_RBM003"]
["Detect_Rejets_GRA_AJUSTLOTS.sql","ETL","CGEN_RBM003"]
["Detect_Rejets_GRA_CACOURDC.sql","ETL","CGEN_RBM003"]
["Detect_Rejets_GRA_CACOURFORCE.sql","ETL","CGEN_RBM003"]
["Detect_Rejets_GRA_CADET.sql","ETL","CGEN_RBM003"]
["Detect_Rejets_GRA_LOTS.sql","ETL","CGEN_RBM003"]
["Detect_Rejets_GRA_REGUL.sql","ETL","CGEN_RBM003"]
["Detect_Rejets_GRA_TICKDEFECT.sql","ETL","CGEN_RBM003"]
["Detect_Rejets_GRA_TICKGRAT.sql","ETL","CGEN_RBM003"]
["Detect_Rejets_GRA_VOLSLIVR.sql","ETL","CGEN_RBM003"]
["Detect_Rejets_GRAT_GLOTSC.sql","ETL","CGEN_RBM003"]
["Detect_Rejets_GRAT_GLOTSV.sql","ETL","CGEN_RBM003"]
["Detect_Rejets_JTR_ANPAIELOT.sql","ETL","CGEN_RBM003"]
["Detect_Rejets_JTR_ANPRISEJEU.sql","ETL","CGEN_RBM003"]
["Detect_Rejets_JTR_ANPROPRISEJEU.sql","ETL","CGEN_RBM003"]
["Detect_Rejets_JTR_GLOTSC.sql","ETL","CGEN_RBM003"]
["Detect_Rejets_JTR_GLOTSV.sql","ETL","CGEN_RBM003"]
["Detect_Rejets_JTR_PAIELOT.sql","ETL","CGEN_RBM003"]
["Detect_Rejets_JTR_PRISEJEU.sql","ETL","CGEN_RBM003"]
["Detect_Rejets_JTR_PROPRISEJEU.sql","ETL","CGEN_RBM003"]
["Detect_Rejets_JTR_REGUL.sql","ETL","CGEN_RBM003"]
["Trunc_AGG_COUR.sql","ETL","CGEN_RBM003"]
["cre_tab_OUT_CJEU_REGUL_GRATTAGE","ETL","CGEN_RBM003"]
["cre_tab_OUT_I_RDV_ADELLE_ENCAISSE.sql","ETL","CGEN_RBM003"]
["cre_tab_OUT_JEUX_AGG_COUR.sql","ETL","CGEN_RBM003"]
["cre_tab_OUT_JTR_DETAILLANT_A_PAIEMENT.sql","ETL","CGEN_RBM003"]
["cre_tab_OUT_JTR_DETAILLANT_A_PROMOTION.sql","ETL","CGEN_RBM003"]
["cre_tab_OUT_JTR_DETAILLANT_ANNULATION.sql","ETL","CGEN_RBM003"]
["cre_tab_OUT_JTR_DETAILLANT_PAIEMENT.sql","ETL","CGEN_RBM003"]
["cre_tab_OUT_JTR_DETAILLANT_PRISE_DE_JEU.sql","ETL","CGEN_RBM003"]
["cre_tab_OUT_JTR_DETAILLANT_PROMOTION.sql","ETL","CGEN_RBM003"]
["cre_tab_OUT_JTR_REGULARISATION.sql","ETL","CGEN_RBM003"]
["cre_tab_OUT_PR6_CARTES_ACTIVEES.sql","ETL","CGEN_RBM003"]
["cre_tab_OUT_RDV_ADELLE_AJUSTEMENT_LOT.sql","ETL","CGEN_RBM003"]
["cre_tab_OUT_STAG_CA.sql","ETL","CGEN_RBM003"]
["cre_tab_OUT_STAG_FREE.sql","ETL","CGEN_RBM003"]
["cre_tab_OUT_STAG_GRT_LIV_FV.sql","ETL","CGEN_RBM003"]
["cre_tab_OUT_STAG_LOTV.sql","ETL","CGEN_RBM003"]
["cre_tab_OUT_STAG_LVOL.sql","ETL","CGEN_RBM003"]
["cre_tab_OUT_STAG_TDEF.sql","ETL","CGEN_RBM003"]
["cre_tab_OUT_STAG_TRES.sql","ETL","CGEN_RBM003"]
["cre_tab_REF_BIC_GAMME_JEU.sql","ETL","CGEN_RBM003"]
["cre_tab_TRANSCO_CANAL_DISTR.sql","ETL","CGEN_RBM003"]
["WKF_E_OEBS_IMPAYE.XML","ETL","CGEN_RBM004"]
["WKF_L_IRBM_OEBS_IMPAYE.XML","ETL","CGEN_RBM004"]
["WKF_T_OEBS_IRBM_IMPAYE.XML","ETL","CGEN_RBM004"]
["pmserver_M_STAG_IRBM_IMPAYE.prm","ETL","CGEN_RBM004"]
["B_OEBS_IRBM_IMPAYE_32.ksh","ETL","CGEN_RBM004"]
["Charge_Ano_IMPAYE.sql","ETL","CGEN_RBM004"]
["Detect_Rejets_IMPAYE.sql","ETL","CGEN_RBM004"]
["cre_tab_I_DELP_RECOUVREMENT.sql","ETL","CGEN_RBM004"]
["cre_tab_O_DELP_RECOUVREMENT.sql","ETL","CGEN_RBM004"]
["cre_tab_STAG_DELP_IMPAYES_LOG.sql","ETL","CGEN_RBM004"]
["WKF_TL_STAG_IRBM_CUMUL_CA_Courtier_Sem.XML","ETL","CGEN_RBM005"]
["WKF_TL_STAG_IRBM_CUMUL_CA_Expl_Sem.XML","ETL","CGEN_RBM005"]
["WKF_TL_STAG_IRBM_CUMUL_COM.XML","ETL","CGEN_RBM005"]
["WKF_TL_STAG_IRBM_CUMUL_ROCOM.XML","ETL","CGEN_RBM005"]
["B_IRBM_CUMCA_COURTIERSEM.ksh","ETL","CGEN_RBM005"]
["B_IRBM_CUMCA_PDVSEM.ksh","ETL","CGEN_RBM005"]
["B_IRBM_CUMCOM_COUR_DET.ksh","ETL","CGEN_RBM005"]
["WKF_T_BIC_IRBM_DETECT_ANO.XML","ETL","CGEN_RBM006"]
["WKF_T_BIC_IRBM_IPGACCREPGAME.XML","ETL","CGEN_RBM006"]
["WKF_T_BIC_IRBM_NOUV_JEU.XML","ETL","CGEN_RBM006"]
["WKF_T_BIC_IRBM_NOUV_NUM_EMIS.XML","ETL","CGEN_RBM006"]
["WKF_T_BIC_IRBM_NOUV_VARIANTE.XML","ETL","CGEN_RBM006"]
["WKF_T_BIC_IRBM_SUIVI_TRAIT.XML","ETL","CGEN_RBM006"]
["pmserver_M_STAG_STAG_NOUV_NUM_EMIS_IRBM.prm","ETL","CGEN_RBM006"]
["ins_MATRICE_COSTBAND_NUMEMIS.sql","ETL","CGEN_RBM006"]
["ins_MATRICE_COSTCODE_JEU.sql","ETL","CGEN_RBM006"]
["ins_MATRICE_COSTCODE_NUMEMIS.sql","ETL","CGEN_RBM006"]
["ins_MATRICE_EVENT_REV_MAP_JEU.sql","ETL","CGEN_RBM006"]
["ins_MATRICE_GAMME_EVT.sql","ETL","CGEN_RBM006"]
["ins_MATRICE_RATINGELEMENT_NUMEMIS.sql","ETL","CGEN_RBM006"]
["ins_MATRICE_REVENUE_CODE_JEU.sql","ETL","CGEN_RBM006"]
["ins_MATRICE_TARIFBASIS_NUMEMIS.sql","ETL","CGEN_RBM006"]
["XXFIJI_ETLBIC_001_PKG.sql","ETL","CGEN_RBM006"]
["B_IRBM_PRODUCT_44.ksh","ETL","CGEN_RBM006"]
["cre_tab_MATRICE_COSTBAND_NUMEMIS.sql","ETL","CGEN_RBM006"]
["cre_tab_MATRICE_COSTCODE_JEU.sql","ETL","CGEN_RBM006"]
["cre_tab_MATRICE_COSTCODE_NUMEMIS.sql","ETL","CGEN_RBM006"]
["cre_tab_MATRICE_EVENT_REV_MAP_JEU.sql","ETL","CGEN_RBM006"]
["cre_tab_MATRICE_GAMME_EVT.sql","ETL","CGEN_RBM006"]
["cre_tab_MATRICE_RATINGELEMENT_NUMEMIS.sql","ETL","CGEN_RBM006"]
["cre_tab_MATRICE_REVENUE_CODE_JEU.sql","ETL","CGEN_RBM006"]
["cre_tab_MATRICE_TARIFBASIS_NUMEMIS.sql","ETL","CGEN_RBM006"]
["cre_tab_PARAM_COSTBAND_NUMEMIS_IRBM.sql","ETL","CGEN_RBM006"]
["cre_tab_PARAM_COSTCODE_JEU_IRBM.sql","ETL","CGEN_RBM006"]
["cre_tab_PARAM_COSTCODE_NUMEMIS_IRBM.sql","ETL","CGEN_RBM006"]
["cre_tab_PARAM_COSTCODE_VJEU_IRBM.sql","ETL","CGEN_RBM006"]
["cre_tab_PARAM_EVENT_REV_MAP_JEU_IRBM.sql","ETL","CGEN_RBM006"]
["cre_tab_PARAM_RATINGELEMENT_NUMEMIS_IRBM.sql","ETL","CGEN_RBM006"]
["cre_tab_PARAM_REVENUE_CODE_JEU_IRBM.sql","ETL","CGEN_RBM006"]
["cre_tab_PARAM_TARIFBASIS_NUMEMIS_IRBM.sql","ETL","CGEN_RBM006"]
["WKF_E_IRBM_STAG_SID_ACCOUNT.XML","ETL","CGEN_SID001"]
["WKF_E_IRBM_STAG_SID_BILL_SUMMARY.XML","ETL","CGEN_SID001"]
["WKF_E_IRBM_STAG_SID_BILLSTYLE.XML","ETL","CGEN_SID001"]
["WKF_E_IRBM_STAG_SID_BILLTYPE.XML","ETL","CGEN_SID001"]
["WKF_E_IRBM_STAG_SID_COSTEDEVENT.XML","ETL","CGEN_SID001"]
["WKF_E_IRBM_STAG_SID_CURRENCY.XML","ETL","CGEN_SID001"]
["WKF_E_IRBM_STAG_SID_CUSTOMER.XML","ETL","CGEN_SID001"]
["WKF_E_IRBM_STAG_SID_CUSTOMERTYPE.XML","ETL","CGEN_SID001"]
["WKF_E_IRBM_STAG_SID_EVENTTYPE.XML","ETL","CGEN_SID001"]
["WKF_E_IRBM_STAG_SID_EVENTTYPEATTRIBUTE.XML","ETL","CGEN_SID001"]
["WKF_E_IRBM_STAG_SID_IPGGAMECATEGORY.XML","ETL","CGEN_SID001"]
["WKF_E_IRBM_STAG_SID_IPGGAMEEVENTTYPES.XML","ETL","CGEN_SID001"]
["WKF_E_IRBM_STAG_SID_MULTIPARTYEVENTMAP.XML","ETL","CGEN_SID001"]
["WKF_E_IRBM_STAG_SID_RATINGTARIFF.XML","ETL","CGEN_SID001"]
["WKF_E_IRBM_STAG_SID_REVENUECODE.XML","ETL","CGEN_SID001"]
["WKF_T_STAG_STAG_SUIV_IRBM_BILL_SUMMARY.XML","ETL","CGEN_SID001"]
["WKF_T_STAG_STAG_SUIV_IRBM_COSTEDEVENT.XML","ETL","CGEN_SID001"]
["WKF_T_STAG_STAG_SUIV_SID_RBM_FULL.XML","ETL","CGEN_SID001"]
["pmserver_M_IRBM_STAG_SID_COSTEDEVENT.prm","ETL","CGEN_SID001"]
["cre_pack_XXFIJI_SID_01_PKG.sql","ETL","CGEN_SID001"]
["cre_tab_I_RBM_ACCOUNT.sql","ETL","CGEN_SID001"]
["cre_tab_I_RBM_BILL_SUMMARY.sql","ETL","CGEN_SID001"]
["cre_tab_I_RBM_BILLSTYLE.sql","ETL","CGEN_SID001"]
["cre_tab_I_RBM_BILLTYPE.sql","ETL","CGEN_SID001"]
["cre_tab_I_RBM_COSTEDEVENT.sql","ETL","CGEN_SID001"]
["cre_tab_I_RBM_CURRENCY.sql","ETL","CGEN_SID001"]
["cre_tab_I_RBM_CUSTOMER.sql","ETL","CGEN_SID001"]
["cre_tab_I_RBM_CUSTOMERTYPE.sql","ETL","CGEN_SID001"]
["cre_tab_I_RBM_EVENTTYPEATTRIBUTE.sql","ETL","CGEN_SID001"]
["cre_tab_I_RBM_EVENTYPE.sql","ETL","CGEN_SID001"]
["cre_tab_I_RBM_IPGGAMECATEGORY.sql","ETL","CGEN_SID001"]
["cre_tab_I_RBM_IPGGAMEEVENTTYPES.sql","ETL","CGEN_SID001"]
["cre_tab_I_RBM_MULTIPARTYEVENTMAP.sql","ETL","CGEN_SID001"]
["cre_tab_I_RBM_RATINGTARIFF.sql","ETL","CGEN_SID001"]
["cre_tab_I_RBM_REVENUECODE.sql","ETL","CGEN_SID001"]
["cre_tab_SUIVI_CHARGEMENT.sql","ETL","CGEN_SID001"]
["cre_view_ETLUSR_ACCOUNT_V.sql","ETL","CGEN_SID001"]
["cre_view_ETLUSR_BILL_SUMMARY_V.sql","ETL","CGEN_SID001"]
["cre_view_ETLUSR_BILLSTYLE_V.sql","ETL","CGEN_SID001"]
["cre_view_ETLUSR_BILLTYPE_V.sql","ETL","CGEN_SID001"]
["cre_view_ETLUSR_COSTEDEVENT_V.sql","ETL","CGEN_SID001"]
["cre_view_ETLUSR_CURRENCY_V.sql","ETL","CGEN_SID001"]
["cre_view_ETLUSR_CUSTOMER_V.sql","ETL","CGEN_SID001"]
["cre_view_ETLUSR_CUSTOMERTYPE_V.sql","ETL","CGEN_SID001"]
["cre_view_ETLUSR_EVENTTYPEATTRIBUTE_V.sql","ETL","CGEN_SID001"]
["cre_view_ETLUSR_EVENTYPE_V.sql","ETL","CGEN_SID001"]
["cre_view_ETLUSR_IPGGAMECATEGORY_V.sql","ETL","CGEN_SID001"]
["cre_view_ETLUSR_IPGGAMEEVENTTYPES_V.sql","ETL","CGEN_SID001"]
["cre_view_ETLUSR_MULTIPARTYEVENTMAP_V.sql","ETL","CGEN_SID001"]
["cre_view_ETLUSR_RATINGTARIFF_V.sql","ETL","CGEN_SID001"]
["cre_view_ETLUSR_REVENUECODE_V.sql","ETL","CGEN_SID001"]
["CP_XXFIJI_XXFIJI_AC001_01_F.ldt","OeBS","AC001"]
["CP_XXFIJI_XXFIJI_AC001_02_F.ldt","OeBS","AC001"]
["PRO_XXFIJI_AC001_AR_IMPAYES_REP_ARCH_F.ldt","OeBS","AC001"]
["PRO_XXFIJI_AC001_AR_IMPAYES_REP_IN_F.ldt","OeBS","AC001"]
["PRO_XXFIJI_AC001_AR_IMPAYES_REP_REJ_F.ldt","OeBS","AC001"]
["RGRP_AR_XXFIJI_AC001_01.ldt","OeBS","AC001"]
["cre_pack_XXFIJI_AC001_01_PKG.sql","OeBS","AC001"]
["cre_tab_XXFIJI_AC001_AR_IMPAYES.sql","OeBS","AC001"]
["XXFIJI_AC001_01.prog","OeBS","AC001"]
["XXFIJI_AC001_02.ctl","OeBS","AC001"]
["PRO_XXFIJI_AC002_EXTRACT_ORG_UNIT_F.ldt","OeBS","AC002"]
["PRO_XXFIJI_AC002_MOTEUR_ARGENT_F.ldt","OeBS","AC002"]
["PRO_XXFIJI_AC002_MOTEUR_BRONZE_F.ldt","OeBS","AC002"]
["PRO_XXFIJI_AC002_MOTEUR_GESTION_F.ldt","OeBS","AC002"]
["PRO_XXFIJI_AC002_MOTEUR_OR_F.ldt","OeBS","AC002"]
["PRO_XXFIJI_AC002_MOTEUR_PLATINE_F.ldt","OeBS","AC002"]
["PRO_XXFIJI_AC002_STRAT_CESSATION_ACTIVITE_F.ldt","OeBS","AC002"]
["PRO_XXFIJI_AC002_STRAT_DECES_F.ldt","OeBS","AC002"]
["PRO_XXFIJI_AC002_STRAT_ERREUR_BANQUE_F.ldt","OeBS","AC002"]
["PRO_XXFIJI_AC002_STRAT_INCIDENT_F.ldt","OeBS","AC002"]
["PRO_XXFIJI_AC002_STRAT_PB_COORD_BANCAIRES_F.ldt","OeBS","AC002"]
["PRO_XXFIJI_AC002_STRAT_RETRAIT_AGREMENT_F.ldt","OeBS","AC002"]
["PRO_XXFIJI_AC002_STRAT_RJ_LJ_AVEC_POURS_F.ldt","OeBS","AC002"]
["PRO_XXFIJI_AC002_STRAT_RJ_LJ_SANS_POURS_F.ldt","OeBS","AC002"]
["PRO_XXFIJI_AC002_STRAT_TRANSFERT_CONTENTIEUX_F.ldt","OeBS","AC002"]
["VS_XXFIJI_AC002_MOTIF_IMPAYES_F.ldt","OeBS","AC002"]
["VS_XXFIJI_AC002_REGLES_IMPAYES_F.ldt","OeBS","AC002"]
["VS_XXFIJI_AC002_SOLDE_FACTURE_F.ldt","OeBS","AC002"]
["VS_XXFIJI_AC002_STATUT_F.ldt","OeBS","AC002"]
["VS_XXFIJI_AC002_STRATEGIES_F.ldt","OeBS","AC002"]
["cre_pack_XXFIJI_AC002_01_PKG.sql","OeBS","AC002"]
["cre_view_IEX_F_CLIENT_ARGT_V.sql","OeBS","AC002"]
["cre_view_IEX_F_CLIENT_BRONZE_V.sql","OeBS","AC002"]
["cre_view_IEX_F_CLIENT_GESTION_V.sql","OeBS","AC002"]
["cre_view_IEX_F_CLIENT_OR_V.sql","OeBS","AC002"]
["cre_view_IEX_F_CLIENT_PLAT_V.sql","OeBS","AC002"]
["cre_view_XXFIJI_AC002_HISTO_IMPAYES_V.sql","OeBS","AC002"]
["IEXCUTM1.fmb","OeBS","AC003"]
["IEXCUTM2.fmb","OeBS","AC003"]
["FCUS_IEXRCALL_F.ldt","OeBS","AC003"]
["MSGV_XXFIJI_XXFIJI_AC003_F.ldt","OeBS","AC003"]
["PRO_XXFIJI_DDF_RMBT_VALUE_F.ldt","OeBS","AC003"]
["PRO_XXFIJI_DFF_METHOD_VALUE_F.ldt","OeBS","AC003"]
["RESP_IEX_IEX_COLLECTION_AGENT_F.ldt","OeBS","AC003"]
["VS_XXFIJI_CAUTIONS_DDF_OPERATIONS_JV_F.ldt","OeBS","AC003"]
["VS_XXFIJI_CAUTIONS_ORIGINE_JV_F.ldt","OeBS","AC003"]
["VS_XXFIJI_CAUTIONS_TIERS_JV_F.ldt","OeBS","AC003"]
["VS_XXFIJI_CAUTIONS_TYPE_JV_F.ldt","OeBS","AC003"]
["cre_seq_XXFIJI_AC003_NOEMISSION_S.sql","OeBS","AC003"]
["cre_tab_XXFIJI_AC003_CAUTIONS.sql","OeBS","AC003"]
["cre_view_XXFIJI_AC003_DDF_V.sql","OeBS","AC003"]
["IEXCUTM1.pld","OeBS","AC003"]
["IEXCUTM2.pld","OeBS","AC003"]
["CP_XXFIJI_XXFIJI_AC005_01_F.ldt","OeBS","AC005"]
["RGRP_AR_XXFIJI_AC005_01.ldt","OeBS","AC005"]
["VS_XXFIJI_AC005_TYPE_DISTRIBUTEUR_F.ldt","OeBS","AC005"]
["VS_XXFIJI_AC005_TYPE_IMPAYE_F.ldt","OeBS","AC005"]
["XMLP_XXFIJI_XXFIJI_AC005_01_F.ldt","OeBS","AC005"]
["XXFIJI_XXFIJI_AC005_01.rtf","OeBS","AC005"]
["XXFIJI_AC005_01.rdf","OeBS","AC005"]
["cre_view_IEX_F_FIJI_SCORE_INVOICES_V.sql","OeBS","AC008"]
["XMLP_IEX_XXFIJI_AC009_01_F.ldt","OeBS","AC009"]
["cre_seq_XXFIJI_CHRONO_COURRIER_S.sql","OeBS","AC009"]
["cre_view_XXFIJI_AC009_C_CAUTION_V.sql","OeBS","AC009"]
["cre_view_XXFIJI_AC009_C_CIVILITE_V.sql","OeBS","AC009"]
["cre_view_XXFIJI_AC009_C_DEPOT_V.sql","OeBS","AC009"]
["cre_view_XXFIJI_AC009_C_MONTANTS_V.sql","OeBS","AC009"]
["cre_view_XXFIJI_AC009_C_PRELEV_V.sql","OeBS","AC009"]
["cre_view_XXFIJI_AC009_C_REECHLONNES_V.sql","OeBS","AC009"]
["cre_view_XXFIJI_AC009_C_RELANCE_V.sql","OeBS","AC009"]
["XXFIJI_AC009_01.sql","OeBS","AC009"]
["IEX_XXFIJI_AC009_01.rtf","OeBS","AC009"]
["XMLP_IEX_XXFIJI_AC010_F.ldt","OeBS","AC010"]
["XXFIJI_AC010_01.sql","OeBS","AC010"]
["IEX_XXFIJI_AC010.rtf","OeBS","AC010"]
["XMLP_IEX_XXFIJI_AC011_01_F.ldt","OeBS","AC011"]
["XXFIJI_AC011_01.sql","OeBS","AC011"]
["IEX_XXFIJI_AC011_01.rtf","OeBS","AC011"]
["MSGV_XXFIJI_XXFIJI_AC012_01_F.ldt","OeBS","AC012"]
["PRO_XXFIJI_EMAIL_RELANCE_F.ldt","OeBS","AC012"]
["cre_pack_iex_dunning_pvt_pkg.sql","OeBS","AC012"]
["cre_pack_iex_send_xml_pvt_pkg.sql","OeBS","AC012"]
["cre_pack_iex_strategy_work_pub_pkg.sql","OeBS","AC012"]
["cre_tab_XXINT_AP001_TEMP.sql","OeBS","AP001"]
["selvir.sql","OeBS","AP001"]
["CP_XXAP_APFJ_BALANCE_F.ldt","OeBS","AP002"]
["VS_FRAP_VENDOR_NAME_F.ldt","OeBS","AP002"]
["APFJ_BALANCE.rdf","OeBS","AP002"]
["CP_XXAP_APFJ_BAL_CUM_F.ldt","OeBS","AP003"]
["APFJ_BAL_CUM.rdf","OeBS","AP003"]
["cre_view_FIJI_V_BAL_BEG_BAL.sql","OeBS","AP003"]
["cre_view_FIJI_V_BAL_GD_LIVRE_V.sql","OeBS","AP003"]
["CP_XXAP_APFJ_GD_LIVRE_F.ldt","OeBS","AP004"]
["APFJ_GD_LIVRE.rdf","OeBS","AP004"]
["APFJ_TRESOR.rdf","OeBS","AP005"]
["PRO_XXFIJI_AP006_PRO_LEGAL_ENT_F.ldt","OeBS","AP006"]
["XMLP_IBY_XXAP_JEFRAINT_F.ldt","OeBS","AP006"]
["cre_packB_IBY_FD_EXTRACT_EXT_PUB_PKG.sql","OeBS","AP006"]
["del_tab_ap006_xdo_lobs.sql","OeBS","AP006"]
["upd_tab_ap006_iby_formats_b.sql","OeBS","AP006"]
["IBY_XXAP_JEFRAINT.rtf","OeBS","AP006"]
["XMLP_IBY_JEFRAFIJI_F.ldt","OeBS","AP007"]
["del_tab_ap007_xdo_lobs.sql","OeBS","AP007"]
["upd_tab_ap007_iby_formats_b.sql","OeBS","AP007"]
["IBY_JEFRAFIJI.rtf","OeBS","AP007"]
["CP_XXAP_APFJ_DECL_TVA_F.ldt","OeBS","AP008"]
["alt_tab_apfj_decl_tva_01.sql","OeBS","AP008"]
["alt_tab_apfj_decl_tva_02.sql","OeBS","AP008"]
["cre_ind_GL_CODE_COMBINATIONS_N99.sql","OeBS","AP008"]
["cre_pack_APFJ_TVA_PKG.sql","OeBS","AP008"]
["cre_pack_gl_period_statuses_pkg.sql","OeBS","AP008"]
["APFJ_DECL_TVA.rdf","OeBS","AP008"]
["WF_APPEWF_F.ldt","OeBS","AP009"]
["WF_WFMAIL_F.ldt","OeBS","AP009"]
["cre_packB_AP_PAYMENT_EVENT_WF_PKG.sql","OeBS","AP009"]
["cre_packS_AP_PAYMENT_EVENT_WF_PKG.sql","OeBS","AP009"]
["CP_JE_JEFRDSFI_F.ldt","OeBS","AP011"]
["JEFRDSFI.rdf","OeBS","AP011"]
["CP_XXFIJI_XXFIJI_AP012_01_F.ldt","OeBS","AP012"]
["CP_XXFIJI_XXFIJI_AP012_03_F.ldt","OeBS","AP012"]
["CP_XXFIJI_XXFIJI_AP012_04_F.ldt","OeBS","AP012"]
["CP_XXFIJI_XXFIJI_AP012_05_F.ldt","OeBS","AP012"]
["LOOKUP_XXFIJI_XXFIJI_GROUP_ID_F.ldt","OeBS","AP012"]
["PRO_XXFIJI_AP012_APXIIMPT_COMMIT_BATCH_SIZE_F.ldt","OeBS","AP012"]
["PRO_XXFIJI_AP012_CODE_JOURNAL_FACTURES_AP_F.ldt","OeBS","AP012"]
["PRO_XXFIJI_AP012_NOMBRE_FACTURES_PURGEES_AP_F.ldt","OeBS","AP012"]
["PRO_XXFIJI_AP012_ORIGINE_FACTURES_AP_F.ldt","OeBS","AP012"]
["PRO_XXFIJI_AP012_USE_SPECIFIC_VALIDATION_F.ldt","OeBS","AP012"]
["cre_ind_AP_INVOICES_N99.sql","OeBS","AP012"]
["cre_pack_XXFIJI_AP012_01_PKG.sql","OeBS","AP012"]
["cre_pack_XXFIJI_AP012_02_PKG.sql","OeBS","AP012"]
["cre_pack_XXFIJI_AP012_03_PKG.sql","OeBS","AP012"]
["cre_tab_XXFIJI_AP012_INVOICES.sql","OeBS","AP012"]
["cre_tab_XXFIJI_AP012_INVOICES_GT.sql","OeBS","AP012"]
["cre_tab_XXFIJI_AP012_PARAMETERS.sql","OeBS","AP012"]
["CP_XXFIJI_XXFIJI_AP013_01_F.ldt","OeBS","AP013"]
["MSGV_XXFIJI_XXFIJI_AP013_F.ldt","OeBS","AP013"]
["cre_ind_XXFIJI_AP013_BANK_ACCT.sql","OeBS","AP013"]
["cre_ind_XXFIJI_AP013_BANK_BRANCHES.sql","OeBS","AP013"]
["cre_ind_XXFIJI_AP013_BANKS_ERROR.sql","OeBS","AP013"]
["cre_pack_XXFIJI_AP013_01_PKG.sql","OeBS","AP013"]
["cre_pack_XXFIJI_AP013_02_PKG.sql","OeBS","AP013"]
["cre_seq_XXFIJI_AP013_BANKS_ERROR.sql","OeBS","AP013"]
["cre_tab_XXFIJI_AP013_BANK_ACCT.sql","OeBS","AP013"]
["cre_tab_XXFIJI_AP013_BANK_BRANCHES.sql","OeBS","AP013"]
["cre_tab_XXFIJI_AP013_BANKS.sql","OeBS","AP013"]
["cre_tab_XXFIJI_AP013_BANKS_ERROR.sql","OeBS","AP013"]
["cre_tab_XXFIJI_AP013_RECEIPT_METHODS.sql","OeBS","AP013"]
["CP_XXFIJI_XXFIJI_AP014_01_F.ldt","OeBS","AP014"]
["LOOKUP_XXFIJI_XXFIJI_AP_TRANSCO_CIV_CONTACT_F.ldt","OeBS","AP014"]
["LOOKUP_XXFIJI_XXFIJI_COUNTRY_F.ldt","OeBS","AP014"]
["LOOKUP_XXFIJI_XXFIJI_CUST_PRO_CLASS_NAME_F.ldt","OeBS","AP014"]
["LOOKUP_XXFIJI_XXFIJI_FACT_DEV_F.ldt","OeBS","AP014"]
["LOOKUP_XXFIJI_XXFIJI_RELATIONSHIP_TYPE_F.ldt","OeBS","AP014"]
["LOOKUP_XXFIJI_XXFIJI_TYPE_DISTRIBUTEUR_F.ldt","OeBS","AP014"]
["MSGV_XXFIJI_XXFIJI_AP014_F.ldt","OeBS","AP014"]
["cre_pack_XXFIJI_AP014_01_PKG.sql","OeBS","AP014"]
["cre_tab_XXFIJI_AP014_SUP_SITE_CONTACTS.sql","OeBS","AP014"]
["cre_tab_XXFIJI_AP014_SUPPLIER_SITES.sql","OeBS","AP014"]
["cre_tab_XXFIJI_AP014_SUPPLIERS.sql","OeBS","AP014"]
["cre_tab_XXFIJI_AP014_SUPPLIERS_ERROR.sql","OeBS","AP014"]
["CP_XXFIJI_XXFIJI_AP016_01_F.ldt","OeBS","AP016"]
["RGRP_AP_XXFIJI_AP016_01.ldt","OeBS","AP016"]
["RGRP_AR_XXFIJI_AP016_01.ldt","OeBS","AP016"]
["VS_XXFIJI_AP016_TYPE_TIERS_F.ldt","OeBS","AP016"]
["XMLP_XXFIJI_XXFIJI_AP016_01_F.ldt","OeBS","AP016"]
["XXFIJI_XXFIJI_AP016_01.rtf","OeBS","AP016"]
["XXFIJI_AP016_01.rdf","OeBS","AP016"]
["MSGV_XXFIJI_XXFIJI_CTX_HORS_FRANCE_F.ldt","OeBS","AP019"]
["MSGV_XXFIJI_XXFIJI_NO_LINE_SELECTED_F.ldt","OeBS","AP019"]
["MSGV_XXFIJI_XXFIJI_SITES_CTX_HORS_FR_F.ldt","OeBS","AP019"]
["XXFIJICrtSitesVO.xml","OeBS","AP019"]
["XXFIJIByrAddrCO.class","OeBS","AP019"]
["XXFIJIByrAddrCO.java","OeBS","AP019"]
["XXFIJIByrCrtStCO.class","OeBS","AP019"]
["XXFIJIByrCrtStCO.java","OeBS","AP019"]
["XXFIJIByrMngSitesCO.class","OeBS","AP019"]
["XXFIJIByrMngSitesCO.java","OeBS","AP019"]
["XXFIJIPOSSubst.jpx","OeBS","AP019"]
["MSGV_XXFIJI_XXFIJI_AP020_0001_F.ldt","OeBS","AP020"]
["PRO_XXFIJI_AP020_EVENEMENT_DEFAUT_F.ldt","OeBS","AP020"]
["PRO_XXFIJI_AP020_FUTUR_DEFAUT_F.ldt","OeBS","AP020"]
["PRO_XXFIJI_AP020_FUTUR2_DEFAUT_F.ldt","OeBS","AP020"]
["PRO_XXFIJI_AP020_JDV_CANAL_F.ldt","OeBS","AP020"]
["PRO_XXFIJI_AP020_JDV_COMPTE_F.ldt","OeBS","AP020"]
["PRO_XXFIJI_AP020_JDV_DETAIL_LB_F.ldt","OeBS","AP020"]
["PRO_XXFIJI_AP020_JDV_ETABLISSEMENT_F.ldt","OeBS","AP020"]
["PRO_XXFIJI_AP020_JDV_EVENEMENT_F.ldt","OeBS","AP020"]
["PRO_XXFIJI_AP020_JDV_FUTUR_F.ldt","OeBS","AP020"]
["PRO_XXFIJI_AP020_JDV_FUTUR2_F.ldt","OeBS","AP020"]
["PRO_XXFIJI_AP020_JDV_JEU_F.ldt","OeBS","AP020"]
["PRO_XXFIJI_AP020_JDV_LB_F.ldt","OeBS","AP020"]
["PRO_XXFIJI_AP020_JDV_PRODUIT_F.ldt","OeBS","AP020"]
["PRO_XXFIJI_AP020_JDV_PROJ_OP_F.ldt","OeBS","AP020"]
["PRO_XXFIJI_AP020_JDV_SECTION_F.ldt","OeBS","AP020"]
["PRO_XXFIJI_AP020_JDV_SOCIETE_F.ldt","OeBS","AP020"]
["PRO_XXFIJI_AP020_JDV_TERRITOIRE_F.ldt","OeBS","AP020"]
["PRO_XXFIJI_AP020_JEU_DEFAUT_F.ldt","OeBS","AP020"]
["PRO_XXFIJI_AP020_PRODUIT_DEFAUT_F.ldt","OeBS","AP020"]
["PRO_XXFIJI_AP020_SOCIETE_DEFAUT_F.ldt","OeBS","AP020"]
["PRO_XXFIJI_AP020_TERRITOIRE_DEFAUT_F.ldt","OeBS","AP020"]
["alt_tab_XXFIJI_AP020_REV_CLE_MAPPING.sql","OeBS","AP020"]
["cre_seq_XXFIJI_AP020_REV_CLE_MAPPING_S.sql","OeBS","AP020"]
["cre_tab_XXFIJI_AP020_REV_CLE_MAPPING.sql","OeBS","AP020"]
["XXFIJI_AP020_01.fmb","OeBS","AP020"]
["CP_XXFIJI_XXFIJI_AP021_01_F.ldt","OeBS","AP021"]
["VS_XXFIJI_AP021_SELECT_TIERS_F.ldt","OeBS","AP021"]
["cre_pack_XXFIJI_AP021_01_PKG.sql","OeBS","AP021"]
["CP_XXFIJI_XXFIJI_CAMPAGNE_AP_STATUS_F.ldt","OeBS","AP022"]
["cre_pack_XXFIJI_AP022_01_PKG.sql","OeBS","AP022"]
["cre_tab_XXFIJI_AP022_WORK_TABLE.sql","OeBS","AP022"]
["CUSTOM.pld","OeBS","AP023"]
["XXFIJI_FCT02.pld","OeBS","AP023"]
["MSGV_XXFIJI_XXFIJI_AP023_F.ldt","OeBS","AP023"]
["PRO_XXFIJI_AP023_INTERVAL_ECHEANCE_F.ldt","OeBS","AP023"]
["CP_XXFIJI_XXFIJI_AP024_01_F.ldt","OeBS","AP024"]
["MSGV_XXFIJI_XXFIJI_AP024_F.ldt","OeBS","AP024"]
["VS_XXFIJI_AP024_MODE_F.ldt","OeBS","AP024"]
["VS_XXFIJI_AP024_MODULE_F.ldt","OeBS","AP024"]
["cre_pack_XXFIJI_AP024_01_PKG.sql","OeBS","AP024"]
["cre_tab_XXFIJI_AP024_TRX.sql","OeBS","AP024"]
["PRO_XXFIJI_AR_ORIG_SYSTEM_BILL_TO_LOCATION_F.ldt","OeBS","AR001"]
["cre_pack_XXAR_PKG_CIELFACT.sql","OeBS","AR001"]
["cre_pack_XXAR_REGLEMENT_PKG.sql","OeBS","AR001"]
["XXAR_X_CIEL_FACTURE.prog","OeBS","AR001"]
["XXAR_X_CIEL_REGLEMENT.prog","OeBS","AR001"]
["CP_XXAR_XXAR_R_JGZZCSLS_C_F.ldt","OeBS","AR002"]
["CP_XXAR_XXAR_R_JGZZCSLS_F.ldt","OeBS","AR002"]
["VS_XXFIJI_COMPTE_COMPTABLE_F.ldt","OeBS","AR002"]
["VS_XXFIJI_GL_SRS_PAGEBREAK_RANGES.ldt","OeBS","AR002"]
["VS_XXFIJI_GL_SRS_PAGEBREAK_RANGES_F.ldt","OeBS","AR002"]
["VS_XXFIJI_GL_SRS_PAGEBREAK_SEGS.ldt","OeBS","AR002"]
["VS_XXFIJI_GL_SRS_PAGEBREAK_SEGS_F.ldt","OeBS","AR002"]
["cre_pack_XXAR_AR002_AR003_01_PKG.sql","OeBS","AR002"]
["cre_view_XXFIJI_AR_COMPTES_V.sql","OeBS","AR002"]
["cre_view_XXFIJI_AR_DEVISE_REF.sql","OeBS","AR002"]
["cre_view_XXFIJI_BAL_INV_V.sql","OeBS","AR002"]
["cre_view_XXFIJI_BAL_REC_V.sql","OeBS","AR002"]
["XXAR_R_JGZZCSLS.rdf","OeBS","AR002"]
["XXAR_R_JGZZCSLS_C.rdf","OeBS","AR002"]
["CP_XXAR_XXAR_R_JGZZCSLW_F.ldt","OeBS","AR003"]
["VS_XXFIJI_AR_CUSTOMER_NAME.ldt","OeBS","AR003"]
["VS_XXFIJI_AR_CUSTOMER_NAME_F.ldt","OeBS","AR003"]
["VS_XXFIJI_AR_CUSTOMER_NAME_WIDE_F.ldt","OeBS","AR003"]
["VS_XXFIJI_AR_CUSTOMER_NAME_WIDE_TO_F.ldt","OeBS","AR003"]
["VS_XXFIJI_AR_CUSTOMER_NUMBER.ldt","OeBS","AR003"]
["VS_XXFIJI_AR_CUSTOMER_NUMBER_F.ldt","OeBS","AR003"]
["VS_XXFIJI_AR_CUSTOMER_SITE.ldt","OeBS","AR003"]
["VS_XXFIJI_AR_CUSTOMER_SITE_F.ldt","OeBS","AR003"]
["VS_XXFIJI_COMPTE_COMPTABLE_F.ldt","OeBS","AR003"]
["VS_XXFIJI_GL_SRS_PAGEBREAK_RANGES.ldt","OeBS","AR003"]
["VS_XXFIJI_GL_SRS_PAGEBREAK_RANGES_F.ldt","OeBS","AR003"]
["VS_XXFIJI_GL_SRS_PAGEBREAK_SEGS.ldt","OeBS","AR003"]
["VS_XXFIJI_GL_SRS_PAGEBREAK_SEGS_F.ldt","OeBS","AR003"]
["cre_pack_XXAR_AR003_01_PKG.sql","OeBS","AR003"]
["cre_tab_XXFIJI_AR_TMP_DETAIL.sql","OeBS","AR003"]
["XXAR_R_JGZZCSLW.rdf","OeBS","AR003"]
["XXAR_R_RAXINV.rdf","OeBS","AR004"]
["VS_XXBANQUE_FIJI_F.ldt","OeBS","AR004"]
["VS_XXFIJI_AR_TRX_NUM_FROM_F.ldt","OeBS","AR004"]
["VS_XXFIJI_AR_TRX_NUM_TO_F.ldt","OeBS","AR004"]
["RXI_ZX_601_R12-FIJI-TAX_F.ldt","OeBS","AR005"]
["RXI_ZX_601_R12-FIJI-TAX_US.ldt","OeBS","AR005"]
["cre_pack_XXFIJI_AR_TVA_PKG.sql","OeBS","AR005"]
["del_tab_AR005_FA_RX_SUMMARY_TL.sql","OeBS","AR005"]
["cre_view_ZX_REP_EXTRACT_V.sql","OeBS","AR005"]
["tsn_fix_tc59542.sql","OeBS","AR005"]
["CP_AR_XXFIJI_AR006_01_F.ldt","OeBS","AR006"]
["LOOKUP_XXFIJI_XXFIJI_AR006_BATCH_SOURCE_NAME_F.ldt","OeBS","AR006"]
["LOOKUP_XXFIJI_XXFIJI_CONV_RATE_F.ldt","OeBS","AR006"]
["LOOKUP_XXFIJI_XXFIJI_CONVERSION_CODE_F.ldt","OeBS","AR006"]
["MSGV_XXFIJI_XXFIJI_AR006_F.ldt","OeBS","AR006"]
["PRO_XXFIJI_AR006_BATCH_SOURCE_NAME_F.ldt","OeBS","AR006"]
["cre_ind_XXFIJI_AR006_01.sql","OeBS","AR006"]
["cre_pack_XXFIJI_AR006_01_PKG.sql","OeBS","AR006"]
["cre_tab_xxFIJI.xxFIJI_ar006_01_gt.sql","OeBS","AR006"]
["CP_XXFIJI_XXFIJI_ACCORD_COMPENSATION_F.ldt","OeBS","AR007"]
["CP_XXFIJI_XXFIJI_INTERFACE_CLIENTS_F.ldt","OeBS","AR007"]
["CP_XXFIJI_XXFIJI_RELATIONS_CLIENTS_F.ldt","OeBS","AR007"]
["MSGV_XXFIJI_XXFIJI_AR007_F.ldt","OeBS","AR007"]
["PRO_XXFIJI_AR007_NETTING_ACCOUNT_F.ldt","OeBS","AR007"]
["VS_XXFIJI_AR007_TRX_TYPE_F.ldt","OeBS","AR007"]
["cre_pack_XXFIJI_AR007_01_PKG.sql","OeBS","AR007"]
["cre_pack_XXFIJI_AR007_02_PKG.sql","OeBS","AR007"]
["cre_pack_XXFIJI_AR007_03_PKG.sql","OeBS","AR007"]
["cre_pack_XXFIJI_AR007_04_PKG.sql","OeBS","AR007"]
["cre_tab_XXFIJI_AR007_CUST_RELATIONSHIP.sql","OeBS","AR007"]
["cre_tab_XXFIJI_AR007_INTERFACE_RESULTS.sql","OeBS","AR007"]
["RSET_XXFIJI_XXFIJI_AR008_01_F.ldt","OeBS","AR008"]
["VS_XXFIJI_AR008_BANQUE_HORS_FR_F.ldt","OeBS","AR008"]
["XMLP_IBY_XXFIJI_AR008_01_F.ldt","OeBS","AR008"]
["IBY_XXFIJI_AR008_01.rtf","OeBS","AR008"]
["CUSTOM.pld","OeBS","AR009"]
["XXFIJI_FCT01.pld","OeBS","AR009"]
["MENU_AR_RECEIPTS_GUI.ldt","OeBS","AR009"]
["MENU_AR_RECEIPTS_GUI_F.ldt","OeBS","AR009"]
["XXFIJI_ARXRWMAI.fmb  /F","OeBS","AR009"]
["XXFIJI_ARXRWMAI.fmb /US","OeBS","AR009"]
["CUSTOM.pld","OeBS","AR010"]
["XXFIJI_FCT02.pld","OeBS","AR010"]
["CP_XXFIJI_XXFIJI_REECHELONNEMENT_REGLE_F.ldt","OeBS","AR010"]
["FCUS_XXFIJI_ARXRWMAI_F.ldt","OeBS","AR010"]
["MSGV_XXFIJI_XXFIJI_AR010_F.ldt","OeBS","AR010"]
["PRO_XXFIJI_AR010_INTERVAL_ECHEANCE_F.ldt","OeBS","AR010"]
["PRO_XXFIJI_AR010_JOUR_PREL_DET_F.ldt","OeBS","AR010"]
["VS_XXFIJI_AR010_DATES_F.ldt","OeBS","AR010"]
["VS_XXFIJI_AR010_TERMS_F.ldt","OeBS","AR010"]
["cre_pack_XXFIJI_AR_PAYMENT_SCHED_PKG.sql","OeBS","AR010"]
["cre_pack_XXFIJI_AR010_01_PKG.sql","OeBS","AR010"]
["cre_tab_XXFIJI_AR_PAYMENTS.sql","OeBS","AR010"]
["cre_tri_XXFIJI_AR_PAYMENT_SCHED_BUR.sql","OeBS","AR010"]
["CP_XXFIJI_XXFIJI_AR011_01_F.ldt","OeBS","AR011"]
["VS_XXFIJI_AR011_TYPE_DISTRIBUTEUR_F.ldt","OeBS","AR011"]
["VS_XXFIJI_AR011_TYPE_GARANTIE_F.ldt","OeBS","AR011"]
["XMLP_XXFIJI_XXFIJI_AR011_01_F.ldt","OeBS","AR011"]
["XXFIJI_XXFIJI_AR011_01.rtf","OeBS","AR011"]
["XXFIJI_AR011_01.rdf","OeBS","AR011"]
["MENU_AP_NAVIGATE_GUI12_F.ldt","OeBS","AR012"]
["MENU_AR_NAVIGATE_GUI_F.ldt","OeBS","AR012"]
["MENU_IEX_COLLECTIONS_AGENT_F.ldt","OeBS","AR012"]
["MENU_IGI_AR_STP_MENU_FIJI_F.ldt","OeBS","AR012"]
["MSGV_XXFIJI_XXFIJI_AR012_CODE_TIERS.ldt","OeBS","AR012"]
["MSGV_XXFIJI_XXFIJI_AR012_CODE_TIERS_F.ldt","OeBS","AR012"]
["XXFIJI_AR012_01.fmb /F","OeBS","AR012"]
["XXFIJI_AR012_01.fmb /US","OeBS","AR012"]
["CP_XXFIJI_XXFIJI_REGLEMENT_XPF_F.ldt","OeBS","AR013"]
["MSGV_XXFIJI_XXFIJI_AR013_F.ldt","OeBS","AR013"]
["cre_pack_XXFIJI_AR013_01_PKG.sql","OeBS","AR013"]
["cre_seq_XXFIJI_AR013_NORECEIPT_S.sql","OeBS","AR013"]
["cre_tab_XXFIJI_AR013_WORK_TABLE.sql","OeBS","AR013"]
["CP_XXFIJI_XXFIJI_AR014_F.ldt","OeBS","AR014"]
["LOOKUP_XXFIJI_XXFIJI_AR014_PARAM_BANK_COUR_F.ldt","OeBS","AR014"]
["LOOKUP_XXFIJI_XXFIJI_AR014_PARAM_BANK_DET_F.ldt","OeBS","AR014"]
["MSGV_XXFIJI_XXFIJI_AR014_F.ldt","OeBS","AR014"]
["VS_XXFIJI_AR014_MODE_REGLEMENT_F.ldt","OeBS","AR014"]
["cre_pack_XXFIJI_AR014_01_PKG.sql","OeBS","AR014"]
["cre_pack_XXFIJI_COMMON_TOOLS_PKG.sql","OeBS","COMMONTOOLS"]
["cre_tri_ap_get_supplier_for_refund_bi.sql","OeBS","COMMONTOOLS"]
["cre_tri_hz_org_profiles_biur_01.sql","OeBS","COMMONTOOLS"]
["cre_tri_hz_parties_biur_01.sql","OeBS","COMMONTOOLS"]
["tsn_XXFIJI_DFX_Table_Stats_Exlusion.sql","OeBS","COMMONTOOLS"]
["CP_AR_XXFIJI_CP001_01_F.ldt","OeBS","CP001"]
["CP_AR_XXFIJI_CP001_03_F.ldt","OeBS","CP001"]
["CP_AR_XXFIJI_CP001_05_F.ldt","OeBS","CP001"]
["CP_AR_XXFIJI_CP001_06_F.ldt","OeBS","CP001"]
["MSGV_XXFIJI_XXFIJI_CP001.ldt","OeBS","CP001"]
["MSGV_XXFIJI_XXFIJI_CP001_F.ldt","OeBS","CP001"]
["PRO_XXFIJI_CP001_PAYMENT_DOCUMENT_F.ldt","OeBS","CP001"]
["PRO_XXFIJI_CP001_PAYMENT_TAMPLATE_COUR_F.ldt","OeBS","CP001"]
["PRO_XXFIJI_CP001_PAYMENT_TAMPLATE_DET_F.ldt","OeBS","CP001"]
["VS_XXFIJI_CP001_INVOICE_AP_AR_F.ldt","OeBS","CP001"]
["VS_XXFIJI_O_or_N_F.ldt","OeBS","CP001"]
["alt_tab_xxFIJI_cp001_fun_net_report.sql","OeBS","CP001"]
["cre_ind_XXFIJI_CP001_BATCHES.sql","OeBS","CP001"]
["cre_pack_XXFIJI_CP001_01_PKG.sql","OeBS","CP001"]
["cre_pack_XXFIJI_CP001_03_PKG.sql","OeBS","CP001"]
["cre_pack_XXFIJI_CP001_10_PKG.sql","OeBS","CP001"]
["cre_seq_XXFIJI_CP001_BATCHES.sql","OeBS","CP001"]
["cre_tab_XXFIJI_CP001_BATCHES.sql","OeBS","CP001"]
["cre_tab_XXFIJI_CP001_BATCHES_GT.sql","OeBS","CP001"]
["cre_tab_XXFIJI_CP001_FUN_NET_REPORT.sql","OeBS","CP001"]
["XXFIJINetBatchCompleteVO.xml","OeBS","CP001"]
["XXFIJINetBatchSearchResultVO.xml","OeBS","CP001"]
["XXFIJINetBatchUpdateVO.xml","OeBS","CP001"]
["XXFIJIPOSSubstComp.jpx","OeBS","CP001"]
["CP_XXFIJI_XXFIJI_CT001_01_F.ldt","OeBS","CT001"]
["CP_XXFIJI_XXFIJI_CT001_02_F.ldt","OeBS","CT001"]
["CP_XXFIJI_XXFIJI_CT001_BI01_F.ldt","OeBS","CT001"]
["CP_XXFIJI_XXFIJI_CT001_BI02_F.ldt","OeBS","CT001"]
["CP_XXFIJI_XXFIJI_CT001_BI03_F.ldt","OeBS","CT001"]
["CP_XXFIJI_XXFIJI_CT001_BI04_F.ldt","OeBS","CT001"]
["LOOKUP_XXFIJI_XXFIJI_CT001_TOLERANCE_F.ldt","OeBS","CT001"]
["MSGV_XXFIJI_XXFIJI_CT001_F.ldt","OeBS","CT001"]
["PRO_XXFIJI_CT001_MAIL_FROM_F.ldt","OeBS","CT001"]
["PRO_XXFIJI_CT001_SMTP_SERVER_NAME_F.ldt","OeBS","CT001"]
["VS_XXFIJI_CT001_ACC_TYPE_RBM_F.ldt","OeBS","CT001"]
["VS_XXFIJI_CT001_ETATS_F.ldt","OeBS","CT001"]
["VS_XXFIJI_CT001_MAILING_LIST_F.ldt","OeBS","CT001"]
["VS_XXFIJI_CT001_MAILING_LIST_OPER_F.ldt","OeBS","CT001"]
["VS_XXFIJI_CT001_POINT_CONTROLE_F.ldt","OeBS","CT001"]
["XMLP_XXFIJI_XXFIJI_CT001_BI01_F.ldt","OeBS","CT001"]
["XMLP_XXFIJI_XXFIJI_CT001_BI02_F.ldt","OeBS","CT001"]
["XMLP_XXFIJI_XXFIJI_CT001_BI03_F.ldt","OeBS","CT001"]
["XMLP_XXFIJI_XXFIJI_CT001_BI04_F.ldt","OeBS","CT001"]
["cre_ind_XXFIJI_CT001_GLOBAL_TRACKING.sql","OeBS","CT001"]
["cre_ind_XXFIJI_CT001_PROCESS.sql","OeBS","CT001"]
["cre_pack_XXFIJI_CT001_01_PKG.sql","OeBS","CT001"]
["cre_pack_XXFIJI_CT001_02_PKG.sql","OeBS","CT001"]
["cre_tab_XXFIJI_CT001_FACTURATION.sql","OeBS","CT001"]
["cre_tab_XXFIJI_CT001_GLOBAL_TRACK_ERROR.sql","OeBS","CT001"]
["cre_tab_XXFIJI_CT001_GLOBAL_TRACKING.sql","OeBS","CT001"]
["cre_tab_XXFIJI_CT001_PROCESS.sql","OeBS","CT001"]
["cre_tab_XXFIJI_CT001_VALORISATION.sql","OeBS","CT001"]
["XXFIJI_XXFIJI_CT001_BI01.rtf","OeBS","CT001"]
["XXFIJI_XXFIJI_CT001_BI02.rtf","OeBS","CT001"]
["XXFIJI_XXFIJI_CT001_BI03.rtf","OeBS","CT001"]
["XXFIJI_XXFIJI_CT001_BI04.rtf","OeBS","CT001"]
["XXFIJI_CT001_BI01.rdf","OeBS","CT001"]
["XXFIJI_CT001_BI02.rdf","OeBS","CT001"]
["XXFIJI_CT001_BI03.rdf","OeBS","CT001"]
["XXFIJI_CT001_BI04.rdf","OeBS","CT001"]
["rapbq_OFJ.sql","OeBS","GL001"]
["rapbq_SGE.sql","OeBS","GL001"]
["XXGL_BALANCE_ETAFI.sql","OeBS","GL002"]
["cre_tab_XXGL_TABLEPAIE.sql","OeBS","GL003"]
["paie.ctl","OeBS","GL003"]
["paie_image.ctl","OeBS","GL003"]
["paie_easylink.sql","OeBS","GL003"]
["paie_edt_site.sql","OeBS","GL003"]
["paie_edt_societe.sql","OeBS","GL003"]
["paie_prepa_easy.sql","OeBS","GL003"]
["cre_tab_XXINT_TRESO_SAGE.sql","OeBS","GL004"]
["cre_tab_XXINT_TRESO_TITAN.sql","OeBS","GL004"]
["grt_xxint_treso_sage.sql","OeBS","GL004"]
["lecture_fichier_conf.awk","OeBS","GL004"]
["treso.conf","OeBS","GL004"]
["xxint_treso.sh","OeBS","GL004"]
["xxint_treso_easylink.sql","OeBS","GL004"]
["xxint_treso_insert.sql","OeBS","GL004"]
["XXGL_R_CENTURA.rdf","OeBS","GL005"]
["CP_XXGL_GLFJ_PLIE_F.ldt","OeBS","GL006"]
["GLFJ_PLIE.rdf","OeBS","GL006"]
["CP_XXGL_GLFJ_DEPLIE_F.ldt","OeBS","GL007"]
["GLFJ_DEPLIE.rdf","OeBS","GL007"]
["PRO_GLFJ_DATE_EXTR_LETTRAGE_F.ldt","OeBS","GL008"]
["cre_pack_GLFJ_TVA_PKG.sql","OeBS","GL008"]
["cre_view_glfj_decl_tva_hist_v.sql","OeBS","GL008"]
["CP_XXGL_GLFJ_DECL_TVA_JUST_F.ldt","OeBS","GL009"]
["GLFJ_DECL_TVA_JUST.rdf","OeBS","GL009"]
["CP_XXGL_GLFJ_DECL_TVA_SOLD_F.ldt","OeBS","GL010"]
["GLFJ_DECL_TVA_SOLD.rdf","OeBS","GL010"]
["VS_GL_SRS_PERIOD_VAT.ldt","OeBS","GL011"]
["GLFJ_TVA_AUTRE.rdf","OeBS","GL011"]
["GLFJ_TVA_PKG.sql","OeBS","GL012"]
["GLFJ_DECL_TVA.fmb","OeBS","GL012"]
["XXGL_E_CENTURA.fmb","OeBS","GL013"]
["abel_charg_canal65.sql","OeBS","PO001"]
["abel_charg_fournisseurs65.sql","OeBS","PO001"]
["abel_charg_libudgets65.sql","OeBS","PO001"]
["abel_charg_oper65.sql","OeBS","PO001"]
["abel_charg_produits65.sql","OeBS","PO001"]
["abel_charg_sections65.sql","OeBS","PO001"]
["POXPRPOP.rdf","OeBS","PO002"]
["tsn_def000372.sql","OeBS","PO003"]
["POXPORRAFIJI.rdf","OeBS","PO003"]
["cre_pack_XXFIJI_PO004_01_PKG.sql","OeBS","PO004"]
["FIJI_POST_PROV.sql","OeBS","PO004"]
["CP_XXFIJI_XXFIJI_HISTORIQUE_IMPAYES_F.ldt","OeBS","REP003"]
["CP_XXFIJI_XXFIJI_INTERFACE_REGLEMENT_F.ldt","OeBS","REP003"]
["CP_XXFIJI_XXFIJI_REP003_05_F.ldt","OeBS","REP003"]
["CP_XXFIJI_XXFIJI_REPRISE_FACTURE_AR_F.ldt","OeBS","REP003"]
["PRO_XXFIJI_REP003_GL_DATE_F.ldt","OeBS","REP003"]
["cre_pack_XXFIJI_REP003_02_PKG.sql","OeBS","REP003"]
["cre_pack_XXFIJI_REP003_03_PKG.sql","OeBS","REP003"]
["cre_pack_XXFIJI_REP003_04_PKG.sql","OeBS","REP003"]
["cre_pack_XXFIJI_REP003_05_PKG.sql","OeBS","REP003"]
["cre_seq_XXFIJI_REP003_NOREGL_S.sql","OeBS","REP003"]
["cre_tab_XXFIJI_REP003_FACTURES.sql","OeBS","REP003"]
["cre_tab_XXFIJI_REP003_HIST_IMPAYES.sql","OeBS","REP003"]
["cre_tab_XXFIJI_REP003_HISTO_RELANCES.sql","OeBS","REP003"]
["cre_tab_XXFIJI_REP003_REGLEMENT.sql","OeBS","REP003"]
["tsn_FIX_TC49167.sql","OeBS","REP003"]
["tsn_FIX_TIERS_GESTION.sql","OeBS","REP003"]
["XXFIJI_REP003_02.ctl","OeBS","REP003"]
["XXFIJI_REP003_02.prog","OeBS","REP003"]
["XXFIJI_REP003_03.ctl","OeBS","REP003"]
["XXFIJI_REP003_03.prog","OeBS","REP003"]
["XXFIJI_REP003_04.ctl","OeBS","REP003"]
["XXFIJI_REP003_04.prog","OeBS","REP003"]
["XXFIJI_REP003_05.ctl","OeBS","REP003"]
["XXFIJI_REP003_05.prog","OeBS","REP003"]
["cre_pack_XXFIJI_SLA001_01_PKG.sql","OeBS","SLA001"]
["fixAccountAttrAndPRMandate.ksh","RBM","CONTROLRBM"]
["fixAccountAttrAndPRMandate.sql","RBM","CONTROLRBM"]
["paral.ksh","RBM","CONTROLRBM"]
["paral_after_RATE.sql","RBM","CONTROLRBM"]
["paral_before_RATE.sql","RBM","CONTROLRBM"]
["paral_post_checks.ksh","RBM","CONTROLRBM"]
["paral_pre_check_tablespaces.sql","RBM","CONTROLRBM"]
["paral_pre_checks.ksh","RBM","CONTROLRBM"]
["processReratingRequests.ksh","RBM","CONTROLRBM"]
["verif_courtiers.ksh","RBM","CONTROLRBM"]
["verif_courtiers.sql","RBM","CONTROLRBM"]
["AlimRefKheoLocamob.ksh","RBM","CONTROLRBM"]
["AlimRefKheoLocamob.sql","RBM","CONTROLRBM"]
["deletePendingDegressivite.ksh","RBM","CONTROLRBM"]
["deletePendingDegressivite.sql","RBM","CONTROLRBM"]
["preAlimRKLO.ksh","RBM","CONTROLRBM"]
["preAlimRKLO.sql","RBM","CONTROLRBM"]

{"sheet":"Feuil3","index":1,"n_rows":24,"n_cols":5,"rows_kept":24,"cut":false,"hidden":false,"merged":[]}
["Domaines","Sujets","Nom du composant technique",null,"nom de listes sujets"]
["RBM","CONTROLRBM","paral_post_checks.ksh",null,{"$f":"IF(B2<>\"\",B2&\"xx\",\"\")","v":"CONTROLRBMxx"}]
["BIPUB","BI001","FCOMJX.rtf",null,{"$f":"IF(B3<>\"\",B3&\"xx\",\"\")","v":"BI001xx"}]
["BIPUB","BI001","FCOMJX.rtf",null,"BI001xx"]
["RBM","CONTROLRBM","fixAccountAttrAndPRMandate.ksh",null,"CONTROLRBMxx"]
["ETL","CGEN_CGEN003","cre_tab_I_RBM_GDC_CHARGEMENT_DI.sql",null,"CGEN_CGEN003xx"]
[null,null,null,null,""]
[null,null,null,null,""]
[null,null,null,null,""]
[null,null,null,null,""]
[null,null,null,null,""]
[null,null,null,null,""]
[null,null,null,null,""]
[null,null,null,null,""]
[null,null,null,null,""]
[null,null,null,null,""]
["OeBS","AC008","cre_view_IEX_F_FIJI_SCORE_INVOICES_V.sql",null,"AC008xx"]
[null,null,null,null,""]
[null,null,null,null,""]
[null,null,null,null,""]
[null,null,null,null,""]
[null,null,null,null,""]
[null,null,null,null,""]
[null,null,null,null,""]

{"sheet":"Listes","index":2,"n_rows":182,"n_cols":101,"rows_kept":182,"cut":false,"hidden":false,"merged":[]}
["Domaine","BIPUB","ETL","OeBS","RBM","BI001","BI002","BI003","BI004","BI005","BI006","BI007","BI008","BI009","BI011","COMMON","CGEN_BILLDATA","CGEN_BIPUB001","CGEN_CGEN001","CGEN_CGEN002","CGEN_CGEN003","CGEN_CGEN004","CGEN_COMMUN","CGEN_CT001","CGEN_OEBS001","CGEN_OEBS002","CGEN_OEBS003","CGEN_OEBS004","CGEN_RBM001","CGEN_RBM002","CGEN_RBM003","CGEN_RBM004","CGEN_RBM005","CGEN_RBM006","CGEN_SID001","AC001","AC002","AC003","AC005","AC008","AC009","AC010","AC011","AC012","AP001","AP002","AP003","AP004","AP005","AP006","AP007","AP008","AP009","AP011","AP012","AP013","AP014","AP016","AP019","AP020","AP021","AP022","AP023","AP024","AR001","AR002","AR003","AR004","AR005","AR006","AR007","AR008","AR009","AR010","AR011","AR012","AR013","AR014","COMMONTOOLS","CP001","CT001","GL001","GL002","GL003","GL004","GL005","GL006","GL007","GL008","GL009","GL010","GL011","GL012","GL013","PO001","PO002","PO003","PO004","REP003","SLA001","CONTROLRBM"]
["BIPUB","BI001","CGEN_BILLDATA","AC001","CONTROLRBM","CTRLFILEFCOMJX.xml","CTRLFILEFCOMSC.xml","CTRLFILEFPRIJX.xml","CTRLFILEFACBSC.xml","CTRLFILERELOPE.xml","CTRLFILEFACVOL.xml","CTRLFILEREPREM.xml","CTRLFILEREPCAC.xml","CTRLFILEREPFAC.xml","CTRLFILEREPCOM.xml","FIJIbursting.java","billdata.jar","WKF_T_STAG_STAG_BI_PUB_ETACOM.XML","WKF_L_PROSYS_IRBM_TCP.XML","WKF_T_STAG_STAG_XML_RO_1.XML","WKF_E_IRBM_STAG_XML_GDC.XML","WKF_OeBS_SAGA_IMPAYES.XML","B_ARCH_RG1_AGG_COUR.ksh","WKF_STAG_END_PROCESS_ID.XML","WKF_E_IRBM_AR_Factures.XML","WKF_E_IRBM_AP_EnTetes_Factures.XML","WKF_E_IRBM_COMP_AP.XML","WKF_L_SAGA_DELPHES_TIERS.XML","WKF_T_OEBS_IRBM_TIERS.XML","WKF_T_KHEOPS_IRBM_LOCAM.XML","WKF_L_IRBM_AGG_COUR.XML","WKF_E_OEBS_IMPAYE.XML","WKF_TL_STAG_IRBM_CUMUL_CA_Courtier_Sem.XML","WKF_T_BIC_IRBM_DETECT_ANO.XML","WKF_E_IRBM_STAG_SID_ACCOUNT.XML","CP_XXFIJI_XXFIJI_AC001_01_F.ldt","PRO_XXFIJI_AC002_EXTRACT_ORG_UNIT_F.ldt","IEXCUTM1.fmb","CP_XXFIJI_XXFIJI_AC005_01_F.ldt","cre_view_IEX_F_FIJI_SCORE_INVOICES_V.sql","XMLP_IEX_XXFIJI_AC009_01_F.ldt","XMLP_IEX_XXFIJI_AC010_F.ldt","XMLP_IEX_XXFIJI_AC011_01_F.ldt","MSGV_XXFIJI_XXFIJI_AC012_01_F.ldt","cre_tab_XXINT_AP001_TEMP.sql","CP_XXAP_APFJ_BALANCE_F.ldt","CP_XXAP_APFJ_BAL_CUM_F.ldt","CP_XXAP_APFJ_GD_LIVRE_F.ldt","APFJ_TRESOR.rdf","PRO_XXFIJI_AP006_PRO_LEGAL_ENT_F.ldt","XMLP_IBY_JEFRAFIJI_F.ldt","CP_XXAP_APFJ_DECL_TVA_F.ldt","WF_APPEWF_F.ldt","CP_JE_JEFRDSFI_F.ldt","CP_XXFIJI_XXFIJI_AP012_01_F.ldt","CP_XXFIJI_XXFIJI_AP013_01_F.ldt","CP_XXFIJI_XXFIJI_AP014_01_F.ldt","CP_XXFIJI_XXFIJI_AP016_01_F.ldt","MSGV_XXFIJI_XXFIJI_CTX_HORS_FRANCE_F.ldt","MSGV_XXFIJI_XXFIJI_AP020_0001_F.ldt","CP_XXFIJI_XXFIJI_AP021_01_F.ldt","CP_XXFIJI_XXFIJI_CAMPAGNE_AP_STATUS_F.ldt","CUSTOM.pld","CP_XXFIJI_XXFIJI_AP024_01_F.ldt","PRO_XXFIJI_AR_ORIG_SYSTEM_BILL_TO_LOCATION_F.ldt","CP_XXAR_XXAR_R_JGZZCSLS_C_F.ldt","CP_XXAR_XXAR_R_JGZZCSLW_F.ldt","XXAR_R_RAXINV.rdf","RXI_ZX_601_R12-FIJI-TAX_F.ldt","CP_AR_XXFIJI_AR006_01_F.ldt","CP_XXFIJI_XXFIJI_ACCORD_COMPENSATION_F.ldt","RSET_XXFIJI_XXFIJI_AR008_01_F.ldt","CUSTOM.pld","CUSTOM.pld","CP_XXFIJI_XXFIJI_AR011_01_F.ldt","MENU_AP_NAVIGATE_GUI12_F.ldt","CP_XXFIJI_XXFIJI_REGLEMENT_XPF_F.ldt","CP_XXFIJI_XXFIJI_AR014_F.ldt","cre_pack_XXFIJI_COMMON_TOOLS_PKG.sql","CP_AR_XXFIJI_CP001_01_F.ldt","CP_XXFIJI_XXFIJI_CT001_01_F.ldt","rapbq_OFJ.sql","XXGL_BALANCE_ETAFI.sql","cre_tab_XXGL_TABLEPAIE.sql","cre_tab_XXINT_TRESO_SAGE.sql","XXGL_R_CENTURA.rdf","CP_XXGL_GLFJ_PLIE_F.ldt","CP_XXGL_GLFJ_DEPLIE_F.ldt","PRO_GLFJ_DATE_EXTR_LETTRAGE_F.ldt","CP_XXGL_GLFJ_DECL_TVA_JUST_F.ldt","CP_XXGL_GLFJ_DECL_TVA_SOLD_F.ldt","VS_GL_SRS_PERIOD_VAT.ldt","GLFJ_TVA_PKG.sql","XXGL_E_CENTURA.fmb","abel_charg_canal65.sql","POXPRPOP.rdf","tsn_def000372.sql","cre_pack_XXFIJI_PO004_01_PKG.sql","CP_XXFIJI_XXFIJI_HISTORIQUE_IMPAYES_F.ldt","cre_pack_XXFIJI_SLA001_01_PKG.sql","fixAccountAttrAndPRMandate.ksh"]
["ETL","BI002","CGEN_BIPUB001","AC002",null,"FCOMJX.rtf","FCOMSC.rtf","FPRIJX.rtf","FACBSC.rtf","RELOPE.rtf","FACVOL.rtf","REPREM.rtf","REPCAC.rtf","REPFAC.rtf","REPCOM.rtf","run_edition.properties","billdata.properties","WKF_T_STAG_STAG_BI_PUB_ETACUM.XML","WKF_T_IRBM_PROSYS_TCP.XML","WKF_T_STAG_STAG_XML_RO_2.XML","WKF_T_STAG_STAG_SUIV_TRAIT_GDC.XML","WKF_T_STAG_STAG_SUIV_TRAIT_SAGA.XML","B_ARCH_RG1_GDC.ksh","WKF_STAG_START_PROCESS_ID.XML","WKF_L_OEBS_IRBM_AR_Distributions.XML","WKF_E_IRBM_AP_Lignes_Factures.XML","WKF_E_IRBM_COMP_AR.XML","WKF_L_SAGA_DELPHES_TIERS_B.XML","WKF_T_OEBS_IRBM_TIERS_DETECT_ANO.XML","WKF_T_KHEOPS_IRBM_LOCAM_DETECT_ANO.XML","WKF_L_IRBM_GDC_GRAT_CA_Courtier.XML","WKF_L_IRBM_OEBS_IMPAYE.XML","WKF_TL_STAG_IRBM_CUMUL_CA_Expl_Sem.XML","WKF_T_BIC_IRBM_IPGACCREPGAME.XML","WKF_E_IRBM_STAG_SID_BILL_SUMMARY.XML","CP_XXFIJI_XXFIJI_AC001_02_F.ldt","PRO_XXFIJI_AC002_MOTEUR_ARGENT_F.ldt","IEXCUTM2.fmb","RGRP_AR_XXFIJI_AC005_01.ldt",null,"cre_seq_XXFIJI_CHRONO_COURRIER_S.sql","XXFIJI_AC010_01.sql","XXFIJI_AC011_01.sql","PRO_XXFIJI_EMAIL_RELANCE_F.ldt","selvir.sql","VS_FRAP_VENDOR_NAME_F.ldt","APFJ_BAL_CUM.rdf","APFJ_GD_LIVRE.rdf",null,"XMLP_IBY_XXAP_JEFRAINT_F.ldt","del_tab_ap007_xdo_lobs.sql","alt_tab_apfj_decl_tva_01.sql","WF_WFMAIL_F.ldt","JEFRDSFI.rdf","CP_XXFIJI_XXFIJI_AP012_03_F.ldt","MSGV_XXFIJI_XXFIJI_AP013_F.ldt","LOOKUP_XXFIJI_XXFIJI_AP_TRANSCO_CIV_CONTACT_F.ldt","RGRP_AP_XXFIJI_AP016_01.ldt","MSGV_XXFIJI_XXFIJI_NO_LINE_SELECTED_F.ldt","PRO_XXFIJI_AP020_EVENEMENT_DEFAUT_F.ldt","VS_XXFIJI_AP021_SELECT_TIERS_F.ldt","cre_pack_XXFIJI_AP022_01_PKG.sql","XXFIJI_FCT02.pld","MSGV_XXFIJI_XXFIJI_AP024_F.ldt","cre_pack_XXAR_PKG_CIELFACT.sql","CP_XXAR_XXAR_R_JGZZCSLS_F.ldt","VS_XXFIJI_AR_CUSTOMER_NAME.ldt","VS_XXBANQUE_FIJI_F.ldt","RXI_ZX_601_R12-FIJI-TAX_US.ldt","LOOKUP_XXFIJI_XXFIJI_AR006_BATCH_SOURCE_NAME_F.ldt","CP_XXFIJI_XXFIJI_INTERFACE_CLIENTS_F.ldt","VS_XXFIJI_AR008_BANQUE_HORS_FR_F.ldt","XXFIJI_FCT01.pld","XXFIJI_FCT02.pld","VS_XXFIJI_AR011_TYPE_DISTRIBUTEUR_F.ldt","MENU_AR_NAVIGATE_GUI_F.ldt","MSGV_XXFIJI_XXFIJI_AR013_F.ldt","LOOKUP_XXFIJI_XXFIJI_AR014_PARAM_BANK_COUR_F.ldt","cre_tri_ap_get_supplier_for_refund_bi.sql","CP_AR_XXFIJI_CP001_03_F.ldt","CP_XXFIJI_XXFIJI_CT001_02_F.ldt","rapbq_SGE.sql",null,"paie.ctl","cre_tab_XXINT_TRESO_TITAN.sql",null,"GLFJ_PLIE.rdf","GLFJ_DEPLIE.rdf","cre_pack_GLFJ_TVA_PKG.sql","GLFJ_DECL_TVA_JUST.rdf","GLFJ_DECL_TVA_SOLD.rdf","GLFJ_TVA_AUTRE.rdf","GLFJ_DECL_TVA.fmb",null,"abel_charg_fournisseurs65.sql",null,"POXPORRAFIJI.rdf","FIJI_POST_PROV.sql","CP_XXFIJI_XXFIJI_INTERFACE_REGLEMENT_F.ldt",null,"fixAccountAttrAndPRMandate.sql"]
["OeBS","BI003","CGEN_CGEN001","AC003",null,null,null,null,null,null,null,null,null,null,null,"run_edition.sh","Billdata_to_XML.ksh","WKF_T_STAG_STAG_BI_PUB_ETAFAC.XML","pmserver_STAG_PROSYS_TCP.prm","alim_tab_REF_D_REFUSANT_PRELEVEMENT.sql","WKF_T_STAG_STAG_XML_GDC.XML","B_OeBS_SAGA_IMPAYES_32.ksh","B_ARCH_RG1_IBM.ksh","WKF_T_IRBM_OEBS_PC10.XML","WKF_L_OEBS_IRBM_AR_Factures.XML","WKF_L_OEBS_IRBM_AP_EnTetes_Factures.XML","WKF_E_IRBM_COMP_Lots.XML","WKF_T_OEBS_STAG_RETOUR.XML","WKF_T_OEBS_IRBM_TIERS_DETECT_ANO_MAJ.XML","WKF_T_KHEOPS_IRBM_SUIVI_TRAIT.XML","WKF_L_IRBM_PROSYS_Carte_Ariane.XML","WKF_T_OEBS_IRBM_IMPAYE.XML","WKF_TL_STAG_IRBM_CUMUL_COM.XML","WKF_T_BIC_IRBM_NOUV_JEU.XML","WKF_E_IRBM_STAG_SID_BILLSTYLE.XML","PRO_XXFIJI_AC001_AR_IMPAYES_REP_ARCH_F.ldt","PRO_XXFIJI_AC002_MOTEUR_BRONZE_F.ldt","FCUS_IEXRCALL_F.ldt","VS_XXFIJI_AC005_TYPE_DISTRIBUTEUR_F.ldt",null,"cre_view_XXFIJI_AC009_C_CAUTION_V.sql","IEX_XXFIJI_AC010.rtf","IEX_XXFIJI_AC011_01.rtf","cre_pack_iex_dunning_pvt_pkg.sql",null,"APFJ_BALANCE.rdf","cre_view_FIJI_V_BAL_BEG_BAL.sql",null,null,"cre_packB_IBY_FD_EXTRACT_EXT_PUB_PKG.sql","upd_tab_ap007_iby_formats_b.sql","alt_tab_apfj_decl_tva_02.sql","cre_packB_AP_PAYMENT_EVENT_WF_PKG.sql",null,"CP_XXFIJI_XXFIJI_AP012_04_F.ldt","cre_ind_XXFIJI_AP013_BANK_ACCT.sql","LOOKUP_XXFIJI_XXFIJI_COUNTRY_F.ldt","RGRP_AR_XXFIJI_AP016_01.ldt","MSGV_XXFIJI_XXFIJI_SITES_CTX_HORS_FR_F.ldt","PRO_XXFIJI_AP020_FUTUR_DEFAUT_F.ldt","cre_pack_XXFIJI_AP021_01_PKG.sql","cre_tab_XXFIJI_AP022_WORK_TABLE.sql","MSGV_XXFIJI_XXFIJI_AP023_F.ldt","VS_XXFIJI_AP024_MODE_F.ldt","cre_pack_XXAR_REGLEMENT_PKG.sql","VS_XXFIJI_COMPTE_COMPTABLE_F.ldt","VS_XXFIJI_AR_CUSTOMER_NAME_F.ldt","VS_XXFIJI_AR_TRX_NUM_FROM_F.ldt","cre_pack_XXFIJI_AR_TVA_PKG.sql","LOOKUP_XXFIJI_XXFIJI_CONV_RATE_F.ldt","CP_XXFIJI_XXFIJI_RELATIONS_CLIENTS_F.ldt","XMLP_IBY_XXFIJI_AR008_01_F.ldt","MENU_AR_RECEIPTS_GUI.ldt","CP_XXFIJI_XXFIJI_REECHELONNEMENT_REGLE_F.ldt","VS_XXFIJI_AR011_TYPE_GARANTIE_F.ldt","MENU_IEX_COLLECTIONS_AGENT_F.ldt","cre_pack_XXFIJI_AR013_01_PKG.sql","LOOKUP_XXFIJI_XXFIJI_AR014_PARAM_BANK_DET_F.ldt","cre_tri_hz_org_profiles_biur_01.sql","CP_AR_XXFIJI_CP001_05_F.ldt","CP_XXFIJI_XXFIJI_CT001_BI01_F.ldt",null,null,"paie_image.ctl","grt_xxint_treso_sage.sql",null,null,null,"cre_view_glfj_decl_tva_hist_v.sql",null,null,null,null,null,"abel_charg_libudgets65.sql",null,null,null,"CP_XXFIJI_XXFIJI_REP003_05_F.ldt",null,"paral.ksh"]
["RBM","BI004","CGEN_CGEN002","AC005",null,null,null,null,null,null,null,null,null,null,null,null,"log4j-1.2.16.jar","WKF_T_STAG_STAG_BI_PUB_ETAREM.XML","pmserver_STAG_STAG_TCP.prm","B_IRBM_SGINET_32.ksh","B_IRBM_GDC_32.ksh","Charge_Ano_OeBS_SAGA_IMPAYES.sql","B_ARCH_RG1_Prosys.ksh","WKF_T_IRBM_OEBS_PC103.XML","WKF_T_IRBM_AR_SUIV_TRAIT.XML","WKF_L_OEBS_IRBM_AP_Lignes_Factures.XML","WKF_L_OEBS_IRBM_COMP_AP.XML","WKF_T_SAGA_DELPHES_AGENCES.XML","WKF_T_OEBS_IRBM_TIERS_MAJ.XML","pmserver_M_STAG_STAG_LOCAM.prm","WKF_L_IRBM_PROSYS_JTR_Annulation_Jeu.XML","pmserver_M_STAG_IRBM_IMPAYE.prm","WKF_TL_STAG_IRBM_CUMUL_ROCOM.XML","WKF_T_BIC_IRBM_NOUV_NUM_EMIS.XML","WKF_E_IRBM_STAG_SID_BILLTYPE.XML","PRO_XXFIJI_AC001_AR_IMPAYES_REP_IN_F.ldt","PRO_XXFIJI_AC002_MOTEUR_GESTION_F.ldt","MSGV_XXFIJI_XXFIJI_AC003_F.ldt","VS_XXFIJI_AC005_TYPE_IMPAYE_F.ldt",null,"cre_view_XXFIJI_AC009_C_CIVILITE_V.sql",null,null,"cre_pack_iex_send_xml_pvt_pkg.sql",null,null,"cre_view_FIJI_V_BAL_GD_LIVRE_V.sql",null,null,"del_tab_ap006_xdo_lobs.sql","IBY_JEFRAFIJI.rtf","cre_ind_GL_CODE_COMBINATIONS_N99.sql","cre_packS_AP_PAYMENT_EVENT_WF_PKG.sql",null,"CP_XXFIJI_XXFIJI_AP012_05_F.ldt","cre_ind_XXFIJI_AP013_BANK_BRANCHES.sql","LOOKUP_XXFIJI_XXFIJI_CUST_PRO_CLASS_NAME_F.ldt","VS_XXFIJI_AP016_TYPE_TIERS_F.ldt","XXFIJICrtSitesVO.xml","PRO_XXFIJI_AP020_FUTUR2_DEFAUT_F.ldt",null,null,"PRO_XXFIJI_AP023_INTERVAL_ECHEANCE_F.ldt","VS_XXFIJI_AP024_MODULE_F.ldt","XXAR_X_CIEL_FACTURE.prog","VS_XXFIJI_GL_SRS_PAGEBREAK_RANGES.ldt","VS_XXFIJI_AR_CUSTOMER_NAME_WIDE_F.ldt","VS_XXFIJI_AR_TRX_NUM_TO_F.ldt","del_tab_AR005_FA_RX_SUMMARY_TL.sql","LOOKUP_XXFIJI_XXFIJI_CONVERSION_CODE_F.ldt","MSGV_XXFIJI_XXFIJI_AR007_F.ldt","IBY_XXFIJI_AR008_01.rtf","MENU_AR_RECEIPTS_GUI_F.ldt","FCUS_XXFIJI_ARXRWMAI_F.ldt","XMLP_XXFIJI_XXFIJI_AR011_01_F.ldt","MENU_IGI_AR_STP_MENU_FIJI_F.ldt","cre_seq_XXFIJI_AR013_NORECEIPT_S.sql","MSGV_XXFIJI_XXFIJI_AR014_F.ldt","cre_tri_hz_parties_biur_01.sql","CP_AR_XXFIJI_CP001_06_F.ldt","CP_XXFIJI_XXFIJI_CT001_BI02_F.ldt",null,null,"paie_easylink.sql","lecture_fichier_conf.awk",null,null,null,null,null,null,null,null,null,"abel_charg_oper65.sql",null,null,null,"CP_XXFIJI_XXFIJI_REPRISE_FACTURE_AR_F.ldt",null,"paral_after_RATE.sql"]
[null,"BI005","CGEN_CGEN003","AC008",null,null,null,null,null,null,null,null,null,null,null,null,null,"WKF_T_STAG_STAG_BI_PUB_FACBSC.XML","alim_tab_TR_CURRENCY.sql","Charge_Rejets_SGINET.sql","Charge_Ano_GDC.sql","Detect_Rejet_OeBS_SAGA.sql","B_ARCH_RG1_SGINet.ksh","WKF_T_IRBM_OEBS_PC11.XML","WKF_T_IRBM_OEBS_AR_Distrib_cle_client.XML","WKF_T_IRBM_AP_SUIV_TRAIT.XML","WKF_L_OEBS_IRBM_COMP_AP_UPD_PAY.XML","WKF_T_SAGA_DELPHES_BANQUES.XML","pmserver_M_STAG_STAG_TIERS_IRBM.prm","pmserver_M_STAG_STAG_SUIV_TRAIT_KHEOPS.prm","WKF_L_IRBM_PROSYS_JTR_Annulation_Paiement.XML","B_OEBS_IRBM_IMPAYE_32.ksh","B_IRBM_CUMCA_COURTIERSEM.ksh","WKF_T_BIC_IRBM_NOUV_VARIANTE.XML","WKF_E_IRBM_STAG_SID_COSTEDEVENT.XML","PRO_XXFIJI_AC001_AR_IMPAYES_REP_REJ_F.ldt","PRO_XXFIJI_AC002_MOTEUR_OR_F.ldt","PRO_XXFIJI_DDF_RMBT_VALUE_F.ldt","XMLP_XXFIJI_XXFIJI_AC005_01_F.ldt",null,"cre_view_XXFIJI_AC009_C_DEPOT_V.sql",null,null,"cre_pack_iex_strategy_work_pub_pkg.sql",null,null,null,null,null,"upd_tab_ap006_iby_formats_b.sql",null,"cre_pack_APFJ_TVA_PKG.sql",null,null,"LOOKUP_XXFIJI_XXFIJI_GROUP_ID_F.ldt","cre_ind_XXFIJI_AP013_BANKS_ERROR.sql","LOOKUP_XXFIJI_XXFIJI_FACT_DEV_F.ldt","XMLP_XXFIJI_XXFIJI_AP016_01_F.ldt","XXFIJIByrAddrCO.class","PRO_XXFIJI_AP020_JDV_CANAL_F.ldt",null,null,null,"cre_pack_XXFIJI_AP024_01_PKG.sql","XXAR_X_CIEL_REGLEMENT.prog","VS_XXFIJI_GL_SRS_PAGEBREAK_RANGES_F.ldt","VS_XXFIJI_AR_CUSTOMER_NAME_WIDE_TO_F.ldt",null,"cre_view_ZX_REP_EXTRACT_V.sql","MSGV_XXFIJI_XXFIJI_AR006_F.ldt","PRO_XXFIJI_AR007_NETTING_ACCOUNT_F.ldt",null,"XXFIJI_ARXRWMAI.fmb  /F","MSGV_XXFIJI_XXFIJI_AR010_F.ldt","XXFIJI_XXFIJI_AR011_01.rtf","MSGV_XXFIJI_XXFIJI_AR012_CODE_TIERS.ldt","cre_tab_XXFIJI_AR013_WORK_TABLE.sql","VS_XXFIJI_AR014_MODE_REGLEMENT_F.ldt","tsn_XXFIJI_DFX_Table_Stats_Exlusion.sql","MSGV_XXFIJI_XXFIJI_CP001.ldt","CP_XXFIJI_XXFIJI_CT001_BI03_F.ldt",null,null,"paie_edt_site.sql","treso.conf",null,null,null,null,null,null,null,null,null,"abel_charg_produits65.sql",null,null,null,"PRO_XXFIJI_REP003_GL_DATE_F.ldt",null,"paral_before_RATE.sql"]
[null,"BI006","CGEN_CGEN004","AC009",null,null,null,null,null,null,null,null,null,null,null,null,null,"WKF_T_STAG_STAG_BI_PUB_FACVOL.XML","alim_tab_TR_NAT_OPE_PREL_ID.sql","Detect_Ano_SGINET.sql","Detect_Rejets_GDC.sql","cre_tab_O_DELP_IMPAYES.sql","B_ARCH_RG3_iRBM_AP.ksh","WKF_T_IRBM_OEBS_PC3.XML","WKF_T_IRBM_OEBS_AR_Distrib_cle_prod.XML","WKF_T_IRBM_OEBS_AP_EnTetes_Factures.XML","WKF_L_OEBS_IRBM_COMP_AR.XML","WKF_T_SAGA_DELPHES_C_CONTACTS.XML","pmserver_M_STAG_STAG_TIERS_IRBM_MAJ.prm","cre_pack_XXFIJI_KHEOPS_001_PKG.sql","WKF_L_IRBM_PROSYS_JTR_Annulation_Promotion.XML","Charge_Ano_IMPAYE.sql","B_IRBM_CUMCA_PDVSEM.ksh","WKF_T_BIC_IRBM_SUIVI_TRAIT.XML","WKF_E_IRBM_STAG_SID_CURRENCY.XML","RGRP_AR_XXFIJI_AC001_01.ldt","PRO_XXFIJI_AC002_MOTEUR_PLATINE_F.ldt","PRO_XXFIJI_DFF_METHOD_VALUE_F.ldt","XXFIJI_XXFIJI_AC005_01.rtf",null,"cre_view_XXFIJI_AC009_C_MONTANTS_V.sql",null,null,null,null,null,null,null,null,"IBY_XXAP_JEFRAINT.rtf",null,"cre_pack_gl_period_statuses_pkg.sql",null,null,"PRO_XXFIJI_AP012_APXIIMPT_COMMIT_BATCH_SIZE_F.ldt","cre_pack_XXFIJI_AP013_01_PKG.sql","LOOKUP_XXFIJI_XXFIJI_RELATIONSHIP_TYPE_F.ldt","XXFIJI_XXFIJI_AP016_01.rtf","XXFIJIByrAddrCO.java","PRO_XXFIJI_AP020_JDV_COMPTE_F.ldt",null,null,null,"cre_tab_XXFIJI_AP024_TRX.sql",null,"VS_XXFIJI_GL_SRS_PAGEBREAK_SEGS.ldt","VS_XXFIJI_AR_CUSTOMER_NUMBER.ldt",null,"tsn_fix_tc59542.sql","PRO_XXFIJI_AR006_BATCH_SOURCE_NAME_F.ldt","VS_XXFIJI_AR007_TRX_TYPE_F.ldt",null,"XXFIJI_ARXRWMAI.fmb /US","PRO_XXFIJI_AR010_INTERVAL_ECHEANCE_F.ldt","XXFIJI_AR011_01.rdf","MSGV_XXFIJI_XXFIJI_AR012_CODE_TIERS_F.ldt",null,"cre_pack_XXFIJI_AR014_01_PKG.sql",null,"MSGV_XXFIJI_XXFIJI_CP001_F.ldt","CP_XXFIJI_XXFIJI_CT001_BI04_F.ldt",null,null,"paie_edt_societe.sql","xxint_treso.sh",null,null,null,null,null,null,null,null,null,"abel_charg_sections65.sql",null,null,null,"cre_pack_XXFIJI_REP003_02_PKG.sql",null,"paral_post_checks.ksh"]
[null,"BI007","CGEN_COMMUN","AC010",null,null,null,null,null,null,null,null,null,null,null,null,null,"WKF_T_STAG_STAG_BI_PUB_FCOMJX.XML","cre_get_terminal_id.sql","cre_tab_IN_STRUCTURE_RO.sql","cre_tab_I_RBM_GDC_CHARGEMENT_DI.sql",null,"B_ARCH_RG3_iRBM_COMP.ksh","WKF_T_IRBM_OEBS_PC4.XML","WKF_T_IRBM_OEBS_AR_Factures.XML","WKF_T_IRBM_OEBS_AP_Lignes_Factures.XML","WKF_L_OEBS_IRBM_COMP_Lots.XML","WKF_T_SAGA_DELPHES_C_ENTETES.XML","init_Tiers_FIJI.sql","cre_seq_XXFIJI_KHEOPS_RUN_ID_SEQ.sql","WKF_L_IRBM_PROSYS_JTR_Paiement.XML","Detect_Rejets_IMPAYE.sql","B_IRBM_CUMCOM_COUR_DET.ksh","pmserver_M_STAG_STAG_NOUV_NUM_EMIS_IRBM.prm","WKF_E_IRBM_STAG_SID_CUSTOMER.XML","cre_pack_XXFIJI_AC001_01_PKG.sql","PRO_XXFIJI_AC002_STRAT_CESSATION_ACTIVITE_F.ldt","RESP_IEX_IEX_COLLECTION_AGENT_F.ldt","XXFIJI_AC005_01.rdf",null,"cre_view_XXFIJI_AC009_C_PRELEV_V.sql",null,null,null,null,null,null,null,null,null,null,"APFJ_DECL_TVA.rdf",null,null,"PRO_XXFIJI_AP012_CODE_JOURNAL_FACTURES_AP_F.ldt","cre_pack_XXFIJI_AP013_02_PKG.sql","LOOKUP_XXFIJI_XXFIJI_TYPE_DISTRIBUTEUR_F.ldt","XXFIJI_AP016_01.rdf","XXFIJIByrCrtStCO.class","PRO_XXFIJI_AP020_JDV_DETAIL_LB_F.ldt",null,null,null,null,null,"VS_XXFIJI_GL_SRS_PAGEBREAK_SEGS_F.ldt","VS_XXFIJI_AR_CUSTOMER_NUMBER_F.ldt",null,null,"cre_ind_XXFIJI_AR006_01.sql","cre_pack_XXFIJI_AR007_01_PKG.sql",null,null,"PRO_XXFIJI_AR010_JOUR_PREL_DET_F.ldt",null,"XXFIJI_AR012_01.fmb /F",null,null,null,"PRO_XXFIJI_CP001_PAYMENT_DOCUMENT_F.ldt","LOOKUP_XXFIJI_XXFIJI_CT001_TOLERANCE_F.ldt",null,null,"paie_prepa_easy.sql","xxint_treso_easylink.sql",null,null,null,null,null,null,null,null,null,null,null,null,null,"cre_pack_XXFIJI_REP003_03_PKG.sql",null,"paral_pre_check_tablespaces.sql"]
[null,"BI008","CGEN_CT001","AC011",null,null,null,null,null,null,null,null,null,null,null,null,null,"WKF_T_STAG_STAG_BI_PUB_FCOMSC.XML","B_IRBM_PROSYS_32.ksh","cre_tab_IN_VENTE_JEUX.sql","cre_tab_O_GDC_CHARGEMENT_DI.sql",null,"B_ARCH_RG4_iRBM_AR.ksh","WKF_T_IRBM_OEBS_PC8.XML","B_IRBM_OEBS_AR_32.ksh","B_IRBM_OEBS_AP_32.ksh","WKF_T_IRBM_COMP_SUIV_TRAIT.XML","WKF_T_SAGA_DELPHES_C_ENTETES_DET.XML","ins_LIST_ATTRIBUTS.sql","cre_seq_XXFIJI_SUIVI_002_REJET_SEQ.sql","WKF_L_IRBM_PROSYS_JTR_Prise_De_Jeu.XML","cre_tab_I_DELP_RECOUVREMENT.sql",null,"ins_MATRICE_COSTBAND_NUMEMIS.sql","WKF_E_IRBM_STAG_SID_CUSTOMERTYPE.XML","cre_tab_XXFIJI_AC001_AR_IMPAYES.sql","PRO_XXFIJI_AC002_STRAT_DECES_F.ldt","VS_XXFIJI_CAUTIONS_DDF_OPERATIONS_JV_F.ldt",null,null,"cre_view_XXFIJI_AC009_C_REECHLONNES_V.sql",null,null,null,null,null,null,null,null,null,null,null,null,null,"PRO_XXFIJI_AP012_NOMBRE_FACTURES_PURGEES_AP_F.ldt","cre_seq_XXFIJI_AP013_BANKS_ERROR.sql","MSGV_XXFIJI_XXFIJI_AP014_F.ldt",null,"XXFIJIByrCrtStCO.java","PRO_XXFIJI_AP020_JDV_ETABLISSEMENT_F.ldt",null,null,null,null,null,"cre_pack_XXAR_AR002_AR003_01_PKG.sql","VS_XXFIJI_AR_CUSTOMER_SITE.ldt",null,null,"cre_pack_XXFIJI_AR006_01_PKG.sql","cre_pack_XXFIJI_AR007_02_PKG.sql",null,null,"VS_XXFIJI_AR010_DATES_F.ldt",null,"XXFIJI_AR012_01.fmb /US",null,null,null,"PRO_XXFIJI_CP001_PAYMENT_TAMPLATE_COUR_F.ldt","MSGV_XXFIJI_XXFIJI_CT001_F.ldt",null,null,null,"xxint_treso_insert.sql",null,null,null,null,null,null,null,null,null,null,null,null,null,"cre_pack_XXFIJI_REP003_04_PKG.sql",null,"paral_pre_checks.ksh"]
[null,"BI009","CGEN_OEBS001","AC012",null,null,null,null,null,null,null,null,null,null,null,null,null,"WKF_T_STAG_STAG_BI_PUB_RELOPE.XML","Charge_Ano_PROSYS.sql","cre_tab_REF_D_REFUSANT_PRELEVEMENT.sql",null,null,"CommonFunctions.ksh","WKF_T_OEBS_OEBS_PC9.XML","Charge_Ano_AR.sql","Charge_Ano_AP.sql","WKF_T_IRBM_OEBS_COMP_AP.XML","WKF_T_SAGA_DELPHES_C_METHOD_PAIM.XML","ins_MATRICE_ASSO_CMPT_EVS.sql","B_KHEOPS_IRBM_LOCAM_32.ksh","WKF_L_IRBM_PROSYS_JTR_Promotion.XML","cre_tab_O_DELP_RECOUVREMENT.sql",null,"ins_MATRICE_COSTCODE_JEU.sql","WKF_E_IRBM_STAG_SID_EVENTTYPE.XML","XXFIJI_AC001_01.prog","PRO_XXFIJI_AC002_STRAT_ERREUR_BANQUE_F.ldt","VS_XXFIJI_CAUTIONS_ORIGINE_JV_F.ldt",null,null,"cre_view_XXFIJI_AC009_C_RELANCE_V.sql",null,null,null,null,null,null,null,null,null,null,null,null,null,"PRO_XXFIJI_AP012_ORIGINE_FACTURES_AP_F.ldt","cre_tab_XXFIJI_AP013_BANK_ACCT.sql","cre_pack_XXFIJI_AP014_01_PKG.sql",null,"XXFIJIByrMngSitesCO.class","PRO_XXFIJI_AP020_JDV_EVENEMENT_F.ldt",null,null,null,null,null,"cre_view_XXFIJI_AR_COMPTES_V.sql","VS_XXFIJI_AR_CUSTOMER_SITE_F.ldt",null,null,"cre_tab_xxFIJI.xxFIJI_ar006_01_gt.sql","cre_pack_XXFIJI_AR007_03_PKG.sql",null,null,"VS_XXFIJI_AR010_TERMS_F.ldt",null,null,null,null,null,"PRO_XXFIJI_CP001_PAYMENT_TAMPLATE_DET_F.ldt","PRO_XXFIJI_CT001_MAIL_FROM_F.ldt",null,null,null,null,null,null,null,null,null,null,null,null,null,null,null,null,null,"cre_pack_XXFIJI_REP003_05_PKG.sql",null,"processReratingRequests.ksh"]
[null,"BI011","CGEN_OEBS002","AP001",null,null,null,null,null,null,null,null,null,null,null,null,null,"pmserver_M_STAG_STAG_BI_PUB_ETACOM.prm","Detect_Rejets_PROSYS.sql",null,null,null,"LoadVariables.ksh","WKF_T_OEBS_OEBS_PC9_FACTURATION.XML","Detect_Rejets_AR.sql","Detect_Rejets_AP.sql","WKF_T_IRBM_OEBS_COMP_AR.XML","WKF_T_SAGA_DELPHES_C_PROFIL.XML","ins_MATRICE_ASSO_CMPT_PRD.sql","B_KHEOPS_IRBM_LOCAM_42.ksh","WKF_L_IRBM_PROSYS_JTR_Regularisation.XML","cre_tab_STAG_DELP_IMPAYES_LOG.sql",null,"ins_MATRICE_COSTCODE_NUMEMIS.sql","WKF_E_IRBM_STAG_SID_EVENTTYPEATTRIBUTE.XML","XXFIJI_AC001_02.ctl","PRO_XXFIJI_AC002_STRAT_INCIDENT_F.ldt","VS_XXFIJI_CAUTIONS_TIERS_JV_F.ldt",null,null,"XXFIJI_AC009_01.sql",null,null,null,null,null,null,null,null,null,null,null,null,null,"PRO_XXFIJI_AP012_USE_SPECIFIC_VALIDATION_F.ldt","cre_tab_XXFIJI_AP013_BANK_BRANCHES.sql","cre_tab_XXFIJI_AP014_SUP_SITE_CONTACTS.sql",null,"XXFIJIByrMngSitesCO.java","PRO_XXFIJI_AP020_JDV_FUTUR_F.ldt",null,null,null,null,null,"cre_view_XXFIJI_AR_DEVISE_REF.sql","VS_XXFIJI_COMPTE_COMPTABLE_F.ldt",null,null,null,"cre_pack_XXFIJI_AR007_04_PKG.sql",null,null,"cre_pack_XXFIJI_AR_PAYMENT_SCHED_PKG.sql",null,null,null,null,null,"VS_XXFIJI_CP001_INVOICE_AP_AR_F.ldt","PRO_XXFIJI_CT001_SMTP_SERVER_NAME_F.ldt",null,null,null,null,null,null,null,null,null,null,null,null,null,null,null,null,null,"cre_seq_XXFIJI_REP003_NOREGL_S.sql",null,"verif_courtiers.ksh"]
[null,"COMMON","CGEN_OEBS003","AP002",null,null,null,null,null,null,null,null,null,null,null,null,null,"pmserver_M_STAG_STAG_BI_PUB_ETACUM.prm","cre_tab_OUT_DETAILLANTS.sql",null,null,null,"LoadVariables_iRBM.ksh","WKF_T_STAG_OEBS_PC1.XML","cre_tab_IN_RA_INTERFACE_LINES_ALL.sql","cre_tab_IN_AP_INVOICE_LINES_INTERFACE.sql","WKF_T_IRBM_OEBS_COMP_Lots.XML","WKF_T_SAGA_DELPHES_C_PROFIL_DET.XML","ins_MATRICE_ASSO_PRD_EVTYPE.sql","cre_tab_PARAM_LOCAMOB_AJOUT.sql","WKF_L_IRBM_SGINET_GRAT_AjustLots_Courtier_DC.XML",null,null,"ins_MATRICE_EVENT_REV_MAP_JEU.sql","WKF_E_IRBM_STAG_SID_IPGGAMECATEGORY.XML",null,"PRO_XXFIJI_AC002_STRAT_PB_COORD_BANCAIRES_F.ldt","VS_XXFIJI_CAUTIONS_TYPE_JV_F.ldt",null,null,"IEX_XXFIJI_AC009_01.rtf",null,null,null,null,null,null,null,null,null,null,null,null,null,"cre_ind_AP_INVOICES_N99.sql","cre_tab_XXFIJI_AP013_BANKS.sql","cre_tab_XXFIJI_AP014_SUPPLIER_SITES.sql",null,"XXFIJIPOSSubst.jpx","PRO_XXFIJI_AP020_JDV_FUTUR2_F.ldt",null,null,null,null,null,"cre_view_XXFIJI_BAL_INV_V.sql","VS_XXFIJI_GL_SRS_PAGEBREAK_RANGES.ldt",null,null,null,"cre_tab_XXFIJI_AR007_CUST_RELATIONSHIP.sql",null,null,"cre_pack_XXFIJI_AR010_01_PKG.sql",null,null,null,null,null,"VS_XXFIJI_O_or_N_F.ldt","VS_XXFIJI_CT001_ACC_TYPE_RBM_F.ldt",null,null,null,null,null,null,null,null,null,null,null,null,null,null,null,null,null,"cre_tab_XXFIJI_REP003_FACTURES.sql",null,"verif_courtiers.sql"]
[null,null,"CGEN_OEBS004","AP003",null,null,null,null,null,null,null,null,null,null,null,null,null,"pmserver_M_STAG_STAG_BI_PUB_ETAFAC.prm","cre_tab_OUT_DONNEES.sql",null,null,null,null,"WKF_T_STAG_OEBS_PC100.XML","cre_tab_O_RA_INTERFACE_DISTRIBUTIONS_ALL.sql","cre_tab_IN_AP_INVOICES_INTERFACE.sql","B_IRBM_OEBS_COMP_32.ksh","WKF_T_SAGA_DELPHES_C_RELATIONS.XML","ins_MATRICE_ASSO_TIERS_CMPT.sql","cre_tab_PARAM_LOCAMOB_RETRAIT.sql","WKF_L_IRBM_SGINET_GRAT_CA_Detaillant.XML",null,null,"ins_MATRICE_GAMME_EVT.sql","WKF_E_IRBM_STAG_SID_IPGGAMEEVENTTYPES.XML",null,"PRO_XXFIJI_AC002_STRAT_RETRAIT_AGREMENT_F.ldt","cre_seq_XXFIJI_AC003_NOEMISSION_S.sql",null,null,null,null,null,null,null,null,null,null,null,null,null,null,null,null,"cre_pack_XXFIJI_AP012_01_PKG.sql","cre_tab_XXFIJI_AP013_BANKS_ERROR.sql","cre_tab_XXFIJI_AP014_SUPPLIERS.sql",null,null,"PRO_XXFIJI_AP020_JDV_JEU_F.ldt",null,null,null,null,null,"cre_view_XXFIJI_BAL_REC_V.sql","VS_XXFIJI_GL_SRS_PAGEBREAK_RANGES_F.ldt",null,null,null,"cre_tab_XXFIJI_AR007_INTERFACE_RESULTS.sql",null,null,"cre_tab_XXFIJI_AR_PAYMENTS.sql",null,null,null,null,null,"alt_tab_xxFIJI_cp001_fun_net_report.sql","VS_XXFIJI_CT001_ETATS_F.ldt",null,null,null,null,null,null,null,null,null,null,null,null,null,null,null,null,null,"cre_tab_XXFIJI_REP003_HIST_IMPAYES.sql",null,"AlimRefKheoLocamob.ksh"]
[null,null,"CGEN_RBM001","AP004",null,null,null,null,null,null,null,null,null,null,null,null,null,"pmserver_M_STAG_STAG_BI_PUB_ETAREM.prm","cre_tab_TR_CURRENCY.sql",null,null,null,null,"WKF_T_STAG_OEBS_PC101.XML","cre_tab_OUT_RA_INTERFACE_LINES_ALL.sql","cre_tab_OUT_AP_INVOICE_LINES_INTERFACE.sql","Charge_Ano_COMP.sql","WKF_T_SAGA_DELPHES_COMPTES.XML","ins_MATRICE_CODE_PAYS_IRBM.sql","cre_tab_TMP_STAG_AREA_SUIVI_CHARGEMENT.sql","WKF_L_IRBM_SGINET_GRAT_CA_Force_Courtier.XML",null,null,"ins_MATRICE_RATINGELEMENT_NUMEMIS.sql","WKF_E_IRBM_STAG_SID_MULTIPARTYEVENTMAP.XML",null,"PRO_XXFIJI_AC002_STRAT_RJ_LJ_AVEC_POURS_F.ldt","cre_tab_XXFIJI_AC003_CAUTIONS.sql",null,null,null,null,null,null,null,null,null,null,null,null,null,null,null,null,"cre_pack_XXFIJI_AP012_02_PKG.sql","cre_tab_XXFIJI_AP013_RECEIPT_METHODS.sql","cre_tab_XXFIJI_AP014_SUPPLIERS_ERROR.sql",null,null,"PRO_XXFIJI_AP020_JDV_LB_F.ldt",null,null,null,null,null,"XXAR_R_JGZZCSLS.rdf","VS_XXFIJI_GL_SRS_PAGEBREAK_SEGS.ldt",null,null,null,null,null,null,"cre_tri_XXFIJI_AR_PAYMENT_SCHED_BUR.sql",null,null,null,null,null,"cre_ind_XXFIJI_CP001_BATCHES.sql","VS_XXFIJI_CT001_MAILING_LIST_F.ldt",null,null,null,null,null,null,null,null,null,null,null,null,null,null,null,null,null,"cre_tab_XXFIJI_REP003_HISTO_RELANCES.sql",null,"AlimRefKheoLocamob.sql"]
[null,null,"CGEN_RBM002","AP005",null,null,null,null,null,null,null,null,null,null,null,null,null,"pmserver_M_STAG_STAG_BI_PUB_FACBSC.prm","cre_tab_TR_NAT_OPE_PREL_ID.sql",null,null,null,null,"WKF_T_STAG_OEBS_PC102.XML",null,"cre_tab_OUT_AP_INVOICES_INTERFACE.sql","Detect_Rejets_COMP.sql","WKF_T_SAGA_DELPHES_COURTIER.XML","ins_MATRICE_COMPTES.sql","cre_tab_XXFIJI_SUIVI_002_REJET.sql","WKF_L_IRBM_SGINET_GRAT_Gratuit.XML",null,null,"ins_MATRICE_REVENUE_CODE_JEU.sql","WKF_E_IRBM_STAG_SID_RATINGTARIFF.XML",null,"PRO_XXFIJI_AC002_STRAT_RJ_LJ_SANS_POURS_F.ldt","cre_view_XXFIJI_AC003_DDF_V.sql",null,null,null,null,null,null,null,null,null,null,null,null,null,null,null,null,"cre_pack_XXFIJI_AP012_03_PKG.sql",null,null,null,null,"PRO_XXFIJI_AP020_JDV_PRODUIT_F.ldt",null,null,null,null,null,"XXAR_R_JGZZCSLS_C.rdf","VS_XXFIJI_GL_SRS_PAGEBREAK_SEGS_F.ldt",null,null,null,null,null,null,null,null,null,null,null,null,"cre_pack_XXFIJI_CP001_01_PKG.sql","VS_XXFIJI_CT001_MAILING_LIST_OPER_F.ldt",null,null,null,null,null,null,null,null,null,null,null,null,null,null,null,null,null,"cre_tab_XXFIJI_REP003_REGLEMENT.sql",null,"deletePendingDegressivite.ksh"]
[null,null,"CGEN_RBM003","AP006",null,null,null,null,null,null,null,null,null,null,null,null,null,"pmserver_M_STAG_STAG_BI_PUB_FACVOL.prm",null,null,null,null,null,"WKF_T_STAG_OEBS_PC2.XML",null,null,"cre_tab_IN_FUN_NET_AP_INVS_ALL.sql","WKF_T_SAGA_DELPHES_DETAILLANTS.XML","ins_MATRICE_CPS.sql",null,"WKF_L_IRBM_SGINET_GRAT_Lots.XML",null,null,"ins_MATRICE_TARIFBASIS_NUMEMIS.sql","WKF_E_IRBM_STAG_SID_REVENUECODE.XML",null,"PRO_XXFIJI_AC002_STRAT_TRANSFERT_CONTENTIEUX_F.ldt","IEXCUTM1.pld",null,null,null,null,null,null,null,null,null,null,null,null,null,null,null,null,"cre_tab_XXFIJI_AP012_INVOICES.sql",null,null,null,null,"PRO_XXFIJI_AP020_JDV_PROJ_OP_F.ldt",null,null,null,null,null,null,"cre_pack_XXAR_AR003_01_PKG.sql",null,null,null,null,null,null,null,null,null,null,null,null,"cre_pack_XXFIJI_CP001_03_PKG.sql","VS_XXFIJI_CT001_POINT_CONTROLE_F.ldt",null,null,null,null,null,null,null,null,null,null,null,null,null,null,null,null,null,"tsn_FIX_TC49167.sql",null,"deletePendingDegressivite.sql"]
[null,null,"CGEN_RBM004","AP007",null,null,null,null,null,null,null,null,null,null,null,null,null,"pmserver_M_STAG_STAG_BI_PUB_FCOMJX.prm",null,null,null,null,null,"WKF_T_STAG_OEBS_PC2_VALORISATION.XML",null,null,"cre_tab_IN_FUN_NET_AR_TXNS_ALL.sql","WKF_T_SAGA_DELPHES_EXPLOITATIONS.XML","ins_MATRICE_CPS_ACCOUNT.sql",null,"WKF_L_IRBM_SGINET_GRAT_Regularisation.XML",null,null,"XXFIJI_ETLBIC_001_PKG.sql","WKF_T_STAG_STAG_SUIV_IRBM_BILL_SUMMARY.XML",null,"VS_XXFIJI_AC002_MOTIF_IMPAYES_F.ldt","IEXCUTM2.pld",null,null,null,null,null,null,null,null,null,null,null,null,null,null,null,null,"cre_tab_XXFIJI_AP012_INVOICES_GT.sql",null,null,null,null,"PRO_XXFIJI_AP020_JDV_SECTION_F.ldt",null,null,null,null,null,null,"cre_tab_XXFIJI_AR_TMP_DETAIL.sql",null,null,null,null,null,null,null,null,null,null,null,null,"cre_pack_XXFIJI_CP001_10_PKG.sql","XMLP_XXFIJI_XXFIJI_CT001_BI01_F.ldt",null,null,null,null,null,null,null,null,null,null,null,null,null,null,null,null,null,"tsn_FIX_TIERS_GESTION.sql",null,"preAlimRKLO.ksh"]
[null,null,"CGEN_RBM005","AP008",null,null,null,null,null,null,null,null,null,null,null,null,null,"pmserver_M_STAG_STAG_BI_PUB_FCOMSC.prm",null,null,null,null,null,"WKF_T_STAG_OEBS_PC5.XML",null,null,"cre_tab_IN_FUN_NET_BATCHES_ALL.sql","WKF_T_SAGA_DELPHES_F_CONTACTS.XML","ins_MATRICE_CREDITCLASS.sql",null,"WKF_L_IRBM_SGINET_GRAT_Tickets_Defect.XML",null,null,"B_IRBM_PRODUCT_44.ksh","WKF_T_STAG_STAG_SUIV_IRBM_COSTEDEVENT.XML",null,"VS_XXFIJI_AC002_REGLES_IMPAYES_F.ldt",null,null,null,null,null,null,null,null,null,null,null,null,null,null,null,null,null,"cre_tab_XXFIJI_AP012_PARAMETERS.sql",null,null,null,null,"PRO_XXFIJI_AP020_JDV_SOCIETE_F.ldt",null,null,null,null,null,null,"XXAR_R_JGZZCSLW.rdf",null,null,null,null,null,null,null,null,null,null,null,null,"cre_seq_XXFIJI_CP001_BATCHES.sql","XMLP_XXFIJI_XXFIJI_CT001_BI02_F.ldt",null,null,null,null,null,null,null,null,null,null,null,null,null,null,null,null,null,"XXFIJI_REP003_02.ctl",null,"preAlimRKLO.sql"]
[null,null,"CGEN_RBM006","AP009",null,null,null,null,null,null,null,null,null,null,null,null,null,"pmserver_M_STAG_STAG_BI_PUB_RELOPE.prm",null,null,null,null,null,"WKF_T_STAG_OEBS_PC6.XML",null,null,"cre_tab_OUT_FUN_NET_AP_INVS_ALL.sql","WKF_T_SAGA_DELPHES_F_ENTETES.XML","ins_MATRICE_DEVISE.sql",null,"WKF_L_IRBM_SGINET_GRAT_Tickets_Rest.XML",null,null,"cre_tab_MATRICE_COSTBAND_NUMEMIS.sql","WKF_T_STAG_STAG_SUIV_SID_RBM_FULL.XML",null,"VS_XXFIJI_AC002_SOLDE_FACTURE_F.ldt",null,null,null,null,null,null,null,null,null,null,null,null,null,null,null,null,null,null,null,null,null,null,"PRO_XXFIJI_AP020_JDV_TERRITOIRE_F.ldt",null,null,null,null,null,null,null,null,null,null,null,null,null,null,null,null,null,null,null,"cre_tab_XXFIJI_CP001_BATCHES.sql","XMLP_XXFIJI_XXFIJI_CT001_BI03_F.ldt",null,null,null,null,null,null,null,null,null,null,null,null,null,null,null,null,null,"XXFIJI_REP003_02.prog"]
[null,null,"CGEN_SID001","AP011",null,null,null,null,null,null,null,null,null,null,null,null,null,"ins_tab_TRANSCO_SRC_GRATTAGE.sql",null,null,null,null,null,"WKF_T_STAG_OEBS_PC7.XML",null,null,"cre_tab_OUT_FUN_NET_AR_TXNS_ALL.sql","WKF_T_SAGA_DELPHES_F_ENTETES_DET.XML","ins_MATRICE_INPUT_TIERS.sql",null,"WKF_L_IRBM_SGINET_GRAT_Vol_Livrets.XML",null,null,"cre_tab_MATRICE_COSTCODE_JEU.sql","pmserver_M_IRBM_STAG_SID_COSTEDEVENT.prm",null,"VS_XXFIJI_AC002_STATUT_F.ldt",null,null,null,null,null,null,null,null,null,null,null,null,null,null,null,null,null,null,null,null,null,null,"PRO_XXFIJI_AP020_JEU_DEFAUT_F.ldt",null,null,null,null,null,null,null,null,null,null,null,null,null,null,null,null,null,null,null,"cre_tab_XXFIJI_CP001_BATCHES_GT.sql","XMLP_XXFIJI_XXFIJI_CT001_BI04_F.ldt",null,null,null,null,null,null,null,null,null,null,null,null,null,null,null,null,null,"XXFIJI_REP003_03.ctl"]
[null,null,null,"AP012",null,null,null,null,null,null,null,null,null,null,null,null,null,"cre_tab_TRANSCO_SRC_GRATTAGE.sql",null,null,null,null,null,null,null,null,"cre_tab_OUT_FUN_NET_BATCHES_ALL.sql","WKF_T_SAGA_DELPHES_F_SITES.XML","ins_MATRICE_PERIOD_FACT.sql",null,"WKF_T_GDC_IRBM_GRAT_AjustLots_Courtier_DC.XML",null,null,"cre_tab_MATRICE_COSTCODE_NUMEMIS.sql","cre_pack_XXFIJI_SID_01_PKG.sql",null,"VS_XXFIJI_AC002_STRATEGIES_F.ldt",null,null,null,null,null,null,null,null,null,null,null,null,null,null,null,null,null,null,null,null,null,null,"PRO_XXFIJI_AP020_PRODUIT_DEFAUT_F.ldt",null,null,null,null,null,null,null,null,null,null,null,null,null,null,null,null,null,null,null,"cre_tab_XXFIJI_CP001_FUN_NET_REPORT.sql","cre_ind_XXFIJI_CT001_GLOBAL_TRACKING.sql",null,null,null,null,null,null,null,null,null,null,null,null,null,null,null,null,null,"XXFIJI_REP003_03.prog"]
[null,null,null,"AP013",null,null,null,null,null,null,null,null,null,null,null,null,null,null,null,null,null,null,null,null,null,null,null,"WKF_T_SAGA_DELPHES_GIE.XML","cre_pack_XXFIJI_ETL_001_PKG.sql",null,"WKF_T_GDC_IRBM_GRAT_CA_Courtier.XML",null,null,"cre_tab_MATRICE_EVENT_REV_MAP_JEU.sql","cre_tab_I_RBM_ACCOUNT.sql",null,"cre_pack_XXFIJI_AC002_01_PKG.sql",null,null,null,null,null,null,null,null,null,null,null,null,null,null,null,null,null,null,null,null,null,null,"PRO_XXFIJI_AP020_SOCIETE_DEFAUT_F.ldt",null,null,null,null,null,null,null,null,null,null,null,null,null,null,null,null,null,null,null,"XXFIJINetBatchCompleteVO.xml","cre_ind_XXFIJI_CT001_PROCESS.sql",null,null,null,null,null,null,null,null,null,null,null,null,null,null,null,null,null,"XXFIJI_REP003_04.ctl"]
[null,null,null,"AP014",null,null,null,null,null,null,null,null,null,null,null,null,null,null,null,null,null,null,null,null,null,null,null,"WKF_T_SAGA_DELPHES_PDV.XML","cre_pack_XXFIJI_ETL_002_PKG.sql",null,"WKF_T_GDC_IRBM_GRAT_CA_Courtier_COUR.XML",null,null,"cre_tab_MATRICE_GAMME_EVT.sql","cre_tab_I_RBM_BILL_SUMMARY.sql",null,"cre_view_IEX_F_CLIENT_ARGT_V.sql",null,null,null,null,null,null,null,null,null,null,null,null,null,null,null,null,null,null,null,null,null,null,"PRO_XXFIJI_AP020_TERRITOIRE_DEFAUT_F.ldt",null,null,null,null,null,null,null,null,null,null,null,null,null,null,null,null,null,null,null,"XXFIJINetBatchSearchResultVO.xml","cre_pack_XXFIJI_CT001_01_PKG.sql",null,null,null,null,null,null,null,null,null,null,null,null,null,null,null,null,null,"XXFIJI_REP003_04.prog"]
[null,null,null,"AP016",null,null,null,null,null,null,null,null,null,null,null,null,null,null,null,null,null,null,null,null,null,null,null,"WKF_T_SAGA_DELPHES_PIVOT_LISTE_REJET.XML","cre_pack_XXFIJI_ETL_003_PKG.sql",null,"WKF_T_GDC_IRBM_GRAT_Regularisation.XML",null,null,"cre_tab_MATRICE_RATINGELEMENT_NUMEMIS.sql","cre_tab_I_RBM_BILLSTYLE.sql",null,"cre_view_IEX_F_CLIENT_BRONZE_V.sql",null,null,null,null,null,null,null,null,null,null,null,null,null,null,null,null,null,null,null,null,null,null,"alt_tab_XXFIJI_AP020_REV_CLE_MAPPING.sql",null,null,null,null,null,null,null,null,null,null,null,null,null,null,null,null,null,null,null,"XXFIJINetBatchUpdateVO.xml","cre_pack_XXFIJI_CT001_02_PKG.sql",null,null,null,null,null,null,null,null,null,null,null,null,null,null,null,null,null,"XXFIJI_REP003_05.ctl"]
[null,null,null,"AP019",null,null,null,null,null,null,null,null,null,null,null,null,null,null,null,null,null,null,null,null,null,null,null,"WKF_T_SAGA_DELPHES_SUIVI_TRAIT.XML","cre_seq_XXFIJI_SAGA_RUN_ID_SEQ.sql",null,"WKF_T_GDC_IRBM_GRAT_Regularisation_COUR.XML",null,null,"cre_tab_MATRICE_REVENUE_CODE_JEU.sql","cre_tab_I_RBM_BILLTYPE.sql",null,"cre_view_IEX_F_CLIENT_GESTION_V.sql",null,null,null,null,null,null,null,null,null,null,null,null,null,null,null,null,null,null,null,null,null,null,"cre_seq_XXFIJI_AP020_REV_CLE_MAPPING_S.sql",null,null,null,null,null,null,null,null,null,null,null,null,null,null,null,null,null,null,null,"XXFIJIPOSSubstComp.jpx","cre_tab_XXFIJI_CT001_FACTURATION.sql",null,null,null,null,null,null,null,null,null,null,null,null,null,null,null,null,null,"XXFIJI_REP003_05.prog"]
[null,null,null,"AP020",null,null,null,null,null,null,null,null,null,null,null,null,null,null,null,null,null,null,null,null,null,null,null,"WKF_T_STAG_STAG_C_UPD_ERR_1.XML","cre_seq_XXFIJI_SUIVI_001_REJET_SEQ.sql",null,"WKF_T_PROSYS_IRBM_Carte_Ariane.XML",null,null,"cre_tab_MATRICE_TARIFBASIS_NUMEMIS.sql","cre_view_ETLUSR_COSTEDEVENT_V.sql",null,"cre_view_IEX_F_CLIENT_OR_V.sql",null,null,null,null,null,null,null,null,null,null,null,null,null,null,null,null,null,null,null,null,null,null,"cre_tab_XXFIJI_AP020_REV_CLE_MAPPING.sql",null,null,null,null,null,null,null,null,null,null,null,null,null,null,null,null,null,null,null,null,"cre_tab_XXFIJI_CT001_GLOBAL_TRACK_ERROR.sql"]
[null,null,null,"AP021",null,null,null,null,null,null,null,null,null,null,null,null,null,null,null,null,null,null,null,null,null,null,null,"WKF_T_STAG_STAG_C_UPD_ERR_2.XML","B_IRBM_TIERS_22.ksh",null,"WKF_T_PROSYS_IRBM_Carte_Ariane_COUR.XML",null,null,"cre_tab_PARAM_COSTBAND_NUMEMIS_IRBM.sql","cre_tab_I_RBM_CURRENCY.sql",null,"cre_view_IEX_F_CLIENT_PLAT_V.sql",null,null,null,null,null,null,null,null,null,null,null,null,null,null,null,null,null,null,null,null,null,null,"XXFIJI_AP020_01.fmb",null,null,null,null,null,null,null,null,null,null,null,null,null,null,null,null,null,null,null,null,"cre_tab_XXFIJI_CT001_GLOBAL_TRACKING.sql"]
[null,null,null,"AP022",null,null,null,null,null,null,null,null,null,null,null,null,null,null,null,null,null,null,null,null,null,null,null,"WKF_T_STAG_STAG_C_UPD_ERR_3.XML","B_IRBM_TIERS_24.ksh",null,"WKF_T_PROSYS_IRBM_JTR_A_Promotion_COUR.XML",null,null,"cre_tab_PARAM_COSTCODE_JEU_IRBM.sql","cre_tab_I_RBM_CUSTOMER.sql",null,"cre_view_XXFIJI_AC002_HISTO_IMPAYES_V.sql",null,null,null,null,null,null,null,null,null,null,null,null,null,null,null,null,null,null,null,null,null,null,null,null,null,null,null,null,null,null,null,null,null,null,null,null,null,null,null,null,null,null,null,"cre_tab_XXFIJI_CT001_PROCESS.sql"]
[null,null,null,"AP023",null,null,null,null,null,null,null,null,null,null,null,null,null,null,null,null,null,null,null,null,null,null,null,"WKF_T_STAG_STAG_C_UPD_ERR_4.XML","B_IRBM_TIERS_42.ksh",null,"WKF_T_PROSYS_IRBM_JTR_Annulation_Jeu.XML",null,null,"cre_tab_PARAM_COSTCODE_NUMEMIS_IRBM.sql","cre_tab_I_RBM_CUSTOMERTYPE.sql",null,null,null,null,null,null,null,null,null,null,null,null,null,null,null,null,null,null,null,null,null,null,null,null,null,null,null,null,null,null,null,null,null,null,null,null,null,null,null,null,null,null,null,null,null,"cre_tab_XXFIJI_CT001_VALORISATION.sql"]
[null,null,null,"AP024",null,null,null,null,null,null,null,null,null,null,null,null,null,null,null,null,null,null,null,null,null,null,null,"WKF_T_STAG_STAG_C_UPD_ERR_5.XML","B_IRBM_TIERS_44.ksh",null,"WKF_T_PROSYS_IRBM_JTR_Annulation_Jeu_COUR.XML",null,null,"cre_tab_PARAM_COSTCODE_VJEU_IRBM.sql","cre_tab_I_RBM_EVENTTYPEATTRIBUTE.sql",null,null,null,null,null,null,null,null,null,null,null,null,null,null,null,null,null,null,null,null,null,null,null,null,null,null,null,null,null,null,null,null,null,null,null,null,null,null,null,null,null,null,null,null,null,"XXFIJI_XXFIJI_CT001_BI01.rtf"]
[null,null,null,"AR001",null,null,null,null,null,null,null,null,null,null,null,null,null,null,null,null,null,null,null,null,null,null,null,"WKF_T_STAG_STAG_F_UPD_ERR_1.XML","XXFIJI_MATRICE_CPS_RAINBOW.sql",null,"WKF_T_PROSYS_IRBM_JTR_Annulation_Paiement.XML",null,null,"cre_tab_PARAM_EVENT_REV_MAP_JEU_IRBM.sql","cre_tab_I_RBM_EVENTYPE.sql",null,null,null,null,null,null,null,null,null,null,null,null,null,null,null,null,null,null,null,null,null,null,null,null,null,null,null,null,null,null,null,null,null,null,null,null,null,null,null,null,null,null,null,null,null,"XXFIJI_XXFIJI_CT001_BI02.rtf"]
[null,null,null,"AR002",null,null,null,null,null,null,null,null,null,null,null,null,null,null,null,null,null,null,null,null,null,null,null,"WKF_T_STAG_STAG_F_UPD_ERR_2.XML","cre_tab_LIST_ATTRIBUTS.sql",null,"WKF_T_PROSYS_IRBM_JTR_Annulation_Promotion.XML",null,null,"cre_tab_PARAM_RATINGELEMENT_NUMEMIS_IRBM.sql","cre_tab_I_RBM_IPGGAMECATEGORY.sql",null,null,null,null,null,null,null,null,null,null,null,null,null,null,null,null,null,null,null,null,null,null,null,null,null,null,null,null,null,null,null,null,null,null,null,null,null,null,null,null,null,null,null,null,null,"XXFIJI_XXFIJI_CT001_BI03.rtf"]
[null,null,null,"AR003",null,null,null,null,null,null,null,null,null,null,null,null,null,null,null,null,null,null,null,null,null,null,null,"WKF_T_STAG_STAG_F_UPD_ERR_3.XML","cre_tab_MATRICE_ASSO_CMPT_EVS.sql",null,"WKF_T_PROSYS_IRBM_JTR_Paiement.XML",null,null,"cre_tab_PARAM_REVENUE_CODE_JEU_IRBM.sql","cre_tab_I_RBM_IPGGAMEEVENTTYPES.sql",null,null,null,null,null,null,null,null,null,null,null,null,null,null,null,null,null,null,null,null,null,null,null,null,null,null,null,null,null,null,null,null,null,null,null,null,null,null,null,null,null,null,null,null,null,"XXFIJI_XXFIJI_CT001_BI04.rtf"]
[null,null,null,"AR004",null,null,null,null,null,null,null,null,null,null,null,null,null,null,null,null,null,null,null,null,null,null,null,"WKF_T_STAG_STAG_TIERS_UPD_ERR_1.XML","cre_tab_MATRICE_ASSO_CMPT_PRD.sql",null,"WKF_T_PROSYS_IRBM_JTR_Prise_De_Jeu.XML",null,null,"cre_tab_PARAM_TARIFBASIS_NUMEMIS_IRBM.sql","cre_tab_I_RBM_MULTIPARTYEVENTMAP.sql",null,null,null,null,null,null,null,null,null,null,null,null,null,null,null,null,null,null,null,null,null,null,null,null,null,null,null,null,null,null,null,null,null,null,null,null,null,null,null,null,null,null,null,null,null,"XXFIJI_CT001_BI01.rdf"]
[null,null,null,"AR005",null,null,null,null,null,null,null,null,null,null,null,null,null,null,null,null,null,null,null,null,null,null,null,"WKF_T_STAG_STAG_TIERS_UPD_ERR_2.XML","cre_tab_MATRICE_ASSO_PRD_EVTYPE.sql",null,"WKF_T_PROSYS_IRBM_JTR_Prise_De_Jeu_COUR.XML",null,null,null,"cre_tab_I_RBM_RATINGTARIFF.sql",null,null,null,null,null,null,null,null,null,null,null,null,null,null,null,null,null,null,null,null,null,null,null,null,null,null,null,null,null,null,null,null,null,null,null,null,null,null,null,null,null,null,null,null,null,"XXFIJI_CT001_BI02.rdf"]
[null,null,null,"AR006",null,null,null,null,null,null,null,null,null,null,null,null,null,null,null,null,null,null,null,null,null,null,null,"WKF_T_STAG_STAG_TIERS_UPD_ERR_3.XML","cre_tab_MATRICE_ASSO_TIERS_CMPT.sql",null,"WKF_T_PROSYS_IRBM_JTR_Promotion.XML",null,null,null,"cre_tab_I_RBM_REVENUECODE.sql",null,null,null,null,null,null,null,null,null,null,null,null,null,null,null,null,null,null,null,null,null,null,null,null,null,null,null,null,null,null,null,null,null,null,null,null,null,null,null,null,null,null,null,null,null,"XXFIJI_CT001_BI03.rdf"]
[null,null,null,"AR007",null,null,null,null,null,null,null,null,null,null,null,null,null,null,null,null,null,null,null,null,null,null,null,"WKF_T_STAG_STAG_TIERS_UPD_ERR_4.XML","cre_tab_MATRICE_CODE_PAYS_IRBM.sql",null,"WKF_T_PROSYS_IRBM_JTR_Promotion_COUR.XML",null,null,null,"cre_tab_SUIVI_CHARGEMENT.sql",null,null,null,null,null,null,null,null,null,null,null,null,null,null,null,null,null,null,null,null,null,null,null,null,null,null,null,null,null,null,null,null,null,null,null,null,null,null,null,null,null,null,null,null,null,"XXFIJI_CT001_BI04.rdf"]
[null,null,null,"AR008",null,null,null,null,null,null,null,null,null,null,null,null,null,null,null,null,null,null,null,null,null,null,null,"pmserver_M_STAG_STAG_COURTIER_DELPHES.prm","cre_tab_MATRICE_COMPTES.sql",null,"WKF_T_PROSYS_IRBM_JTR_Regularisation.XML",null,null,null,"cre_view_ETLUSR_ACCOUNT_V.sql"]
[null,null,null,"AR009",null,null,null,null,null,null,null,null,null,null,null,null,null,null,null,null,null,null,null,null,null,null,null,"pmserver_M_STAG_STAG_DETAILLANTS_DELPHES.prm","cre_tab_MATRICE_CPS.sql",null,"WKF_T_PROSYS_IRBM_JTR_SUIVI_TRAIT.XML",null,null,null,"cre_view_ETLUSR_BILL_SUMMARY_V.sql"]
[null,null,null,"AR010",null,null,null,null,null,null,null,null,null,null,null,null,null,null,null,null,null,null,null,null,null,null,null,"pmserver_M_STAG_STAG_EXPL_DELPHES.prm","cre_tab_MATRICE_CPS_ACCOUNT.sql",null,"WKF_T_SGINET_IRBM_GRAT_CA_Detaillant.XML",null,null,null,"cre_view_ETLUSR_BILLSTYLE_V.sql"]
[null,null,null,"AR011",null,null,null,null,null,null,null,null,null,null,null,null,null,null,null,null,null,null,null,null,null,null,null,"pmserver_M_STAG_STAG_GIE_DELPHES.prm","cre_tab_MATRICE_CREDITCLASS.sql",null,"WKF_T_SGINET_IRBM_GRAT_CA_Detaillant_COUR.XML",null,null,null,"cre_view_ETLUSR_BILLTYPE_V.sql"]
[null,null,null,"AR012",null,null,null,null,null,null,null,null,null,null,null,null,null,null,null,null,null,null,null,null,null,null,null,"pmserver_M_STAG_STAG_PDV_DELPHES.prm","cre_tab_MATRICE_DEVISE.sql",null,"WKF_T_SGINET_IRBM_GRAT_CA_Force_Courtier.XML",null,null,null,"cre_view_ETLUSR_COSTEDEVENT_V.sql"]
[null,null,null,"AR013",null,null,null,null,null,null,null,null,null,null,null,null,null,null,null,null,null,null,null,null,null,null,null,"pmserver_M_STAG_STAG_SUIV_TRAIT_SAGA_TIERS.prm","cre_tab_MATRICE_INPUT_TIERS.sql",null,"WKF_T_SGINET_IRBM_GRAT_CA_Force_Courtier_COUR.XML",null,null,null,"cre_view_ETLUSR_CURRENCY_V.sql"]
[null,null,null,"AR014",null,null,null,null,null,null,null,null,null,null,null,null,null,null,null,null,null,null,null,null,null,null,null,"B_SAGA_DELPHES_TIERS_32.ksh","cre_tab_MATRICE_PERIODE_FACT.sql",null,"WKF_T_SGINET_IRBM_GRAT_Gratuit.XML",null,null,null,"cre_view_ETLUSR_CUSTOMER_V.sql"]
[null,null,null,"COMMONTOOLS",null,null,null,null,null,null,null,null,null,null,null,null,null,null,null,null,null,null,null,null,null,null,null,"Charge_Rejets_TIERS_DELPHES.sql","cre_tab_PARAM_ACCOUNT_CREA.sql",null,"WKF_T_SGINET_IRBM_GRAT_Gratuit_COUR.XML",null,null,null,"cre_view_ETLUSR_CUSTOMERTYPE_V.sql"]
[null,null,null,"CP001",null,null,null,null,null,null,null,null,null,null,null,null,null,null,null,null,null,null,null,null,null,null,null,"Detect_Rejets_TIERS_DELPHES.sql","cre_tab_PARAM_ACCOUNT_MAJ.sql",null,"WKF_T_SGINET_IRBM_GRAT_Lots.XML",null,null,null,"cre_view_ETLUSR_EVENTTYPEATTRIBUTE_V.sql"]
[null,null,null,"CT001",null,null,null,null,null,null,null,null,null,null,null,null,null,null,null,null,null,null,null,null,null,null,null,"cre_tab_O_PIVOT_ACTEURS.sql","cre_tab_PARAM_ASSO_EVS_PLAN_CREA.sql",null,"WKF_T_SGINET_IRBM_GRAT_SUIVI_TRAIT.XML",null,null,null,"cre_view_ETLUSR_EVENTYPE_V.sql"]
[null,null,null,"GL001",null,null,null,null,null,null,null,null,null,null,null,null,null,null,null,null,null,null,null,null,null,null,null,"cre_tab_O_PIVOT_EXPLOITATIONS.sql","cre_tab_PARAM_ASSO_EVS_PLAN_MAJ.sql",null,"WKF_T_SGINET_IRBM_GRAT_Tickets_Defect.XML",null,null,null,"cre_view_ETLUSR_IPGGAMECATEGORY_V.sql"]
[null,null,null,"GL002",null,null,null,null,null,null,null,null,null,null,null,null,null,null,null,null,null,null,null,null,null,null,null,"cre_tab_O_PIVOT_PDV.sql","cre_tab_PARAM_ASSO_EVT_CREA.sql",null,"WKF_T_SGINET_IRBM_GRAT_Tickets_Defect_COUR.XML",null,null,null,"cre_view_ETLUSR_IPGGAMEEVENTTYPES_V.sql"]
[null,null,null,"GL003",null,null,null,null,null,null,null,null,null,null,null,null,null,null,null,null,null,null,null,null,null,null,null,"cre_tab_O_PIVOT_TIERS_COMPTABLE.sql","cre_tab_PARAM_ASSO_EVT_MAJ.sql",null,"WKF_T_SGINET_IRBM_GRAT_Tickets_Rest.XML",null,null,null,"cre_view_ETLUSR_MULTIPARTYEVENTMAP_V.sql"]
[null,null,null,"GL004",null,null,null,null,null,null,null,null,null,null,null,null,null,null,null,null,null,null,null,null,null,null,null,"cre_tab_O_PIVOT_TIERS_REJET.sql","cre_tab_PARAM_ASSO_PRD_CREA.sql",null,"WKF_T_SGINET_IRBM_GRAT_Tickets_Rest_COUR.XML",null,null,null,"cre_view_ETLUSR_RATINGTARIFF_V.sql"]
[null,null,null,"GL005",null,null,null,null,null,null,null,null,null,null,null,null,null,null,null,null,null,null,null,null,null,null,null,"cre_tab_O_RA_CONTACT_PHONES_INT_ALL.sql","cre_tab_PARAM_ASSO_PRD_MAJ.sql",null,"WKF_T_SGINET_IRBM_GRAT_Vol_Livrets.XML",null,null,null,"cre_view_ETLUSR_REVENUECODE_V.sql"]
[null,null,null,"GL006",null,null,null,null,null,null,null,null,null,null,null,null,null,null,null,null,null,null,null,null,null,null,null,"cre_tab_O_RA_CUST_PAY_METHOD_INT_ALL.sql","cre_tab_PARAM_ATTRIB.sql",null,"pmserver_M_STAG_IRBM_AGG_COUR.prm"]
[null,null,null,"GL007",null,null,null,null,null,null,null,null,null,null,null,null,null,null,null,null,null,null,null,null,null,null,null,"cre_tab_O_RA_CUSTOMER_PROFILES_INT_ALL.sql","cre_tab_PARAM_ATTRIB_MAJ.sql",null,"pmserver_M_STAG_IRBM_Ariane.prm"]
[null,null,null,"GL008",null,null,null,null,null,null,null,null,null,null,null,null,null,null,null,null,null,null,null,null,null,null,null,"cre_tab_O_RA_CUSTOMERS_INTERFACE_ALL.sql","cre_tab_PARAM_CLIENT_CREA.sql",null,"pmserver_M_STAG_IRBM_GRA_CA_Courtier.prm"]
[null,null,null,"GL009",null,null,null,null,null,null,null,null,null,null,null,null,null,null,null,null,null,null,null,null,null,null,null,"cre_tab_O_XXFIJI_AP013_BANK_ACCT.sql","cre_tab_PARAM_CLIENT_MAJ.sql",null,"pmserver_M_STAG_IRBM_GRAT_AjustLots_Courtier_DC.prm"]
[null,null,null,"GL010",null,null,null,null,null,null,null,null,null,null,null,null,null,null,null,null,null,null,null,null,null,null,null,"cre_tab_O_XXFIJI_AP013_BANK_BRANCHES.sql","cre_tab_PARAM_EVSUM_CREA.sql",null,"pmserver_M_STAG_IRBM_GRAT_CA_Detaillant.prm"]
[null,null,null,"GL011",null,null,null,null,null,null,null,null,null,null,null,null,null,null,null,null,null,null,null,null,null,null,null,"cre_tab_O_XXFIJI_AP013_BANKS.sql","cre_tab_PARAM_EVSUM_MAJ.sql",null,"pmserver_M_STAG_IRBM_GRAT_CA_Force_Courtier.prm"]
[null,null,null,"GL012",null,null,null,null,null,null,null,null,null,null,null,null,null,null,null,null,null,null,null,null,null,null,null,"cre_tab_O_XXFIJI_AP014_SUP_SITE_CONTAC.sql","cre_tab_PARAM_PREL_CREA.sql",null,"pmserver_M_STAG_IRBM_GRAT_Gratuit.prm"]
[null,null,null,"GL013",null,null,null,null,null,null,null,null,null,null,null,null,null,null,null,null,null,null,null,null,null,null,null,"cre_tab_O_XXFIJI_AP014_SUPPLIER_SITES.sql","cre_tab_PARAM_PREL_MAJ.sql",null,"pmserver_M_STAG_IRBM_GRAT_Lots.prm"]
[null,null,null,"PO001",null,null,null,null,null,null,null,null,null,null,null,null,null,null,null,null,null,null,null,null,null,null,null,"cre_tab_O_XXFIJI_AP014_SUPPLIERS.sql","cre_tab_XXFIJI_SUIVI_001_REJET.sql",null,"pmserver_M_STAG_IRBM_GRAT_Regularisation.prm"]
[null,null,null,"PO002",null,null,null,null,null,null,null,null,null,null,null,null,null,null,null,null,null,null,null,null,null,null,null,"cre_tab_O_XXFIJI_AR007_CUST_RELATIONSHI.sql",null,null,"pmserver_M_STAG_IRBM_GRAT_Tickets_Defect.prm"]
[null,null,null,"PO003",null,null,null,null,null,null,null,null,null,null,null,null,null,null,null,null,null,null,null,null,null,null,null,null,null,null,"pmserver_M_STAG_IRBM_GRAT_Tickets_Rest.prm"]
[null,null,null,"PO004",null,null,null,null,null,null,null,null,null,null,null,null,null,null,null,null,null,null,null,null,null,null,null,null,null,null,"pmserver_M_STAG_IRBM_GRAT_Vol_Livrets.prm"]
[null,null,null,"REP003",null,null,null,null,null,null,null,null,null,null,null,null,null,null,null,null,null,null,null,null,null,null,null,null,null,null,"pmserver_M_STAG_IRBM_JTR_Annulation_Jeu.prm"]
[null,null,null,"SLA001",null,null,null,null,null,null,null,null,null,null,null,null,null,null,null,null,null,null,null,null,null,null,null,null,null,null,"pmserver_M_STAG_IRBM_JTR_Annulation_Paiement.prm"]
[null,null,null,null,null,null,null,null,null,null,null,null,null,null,null,null,null,null,null,null,null,null,null,null,null,null,null,null,null,null,"pmserver_M_STAG_IRBM_JTR_Annulation_Promotion.prm"]
[null,null,null,null,null,null,null,null,null,null,null,null,null,null,null,null,null,null,null,null,null,null,null,null,null,null,null,null,null,null,"pmserver_M_STAG_IRBM_JTR_Paiement.prm"]
[null,null,null,null,null,null,null,null,null,null,null,null,null,null,null,null,null,null,null,null,null,null,null,null,null,null,null,null,null,null,"pmserver_M_STAG_IRBM_JTR_Prise_De_Jeu.prm"]
[null,null,null,null,null,null,null,null,null,null,null,null,null,null,null,null,null,null,null,null,null,null,null,null,null,null,null,null,null,null,"pmserver_M_STAG_IRBM_JTR_Promotion.prm"]
[null,null,null,null,null,null,null,null,null,null,null,null,null,null,null,null,null,null,null,null,null,null,null,null,null,null,null,null,null,null,"pmserver_M_STAG_IRBM_JTR_Regularisation.prm"]
[null,null,null,null,null,null,null,null,null,null,null,null,null,null,null,null,null,null,null,null,null,null,null,null,null,null,null,null,null,null,"pmserver_M_STAG_STAG_Ariane.prm"]
[null,null,null,null,null,null,null,null,null,null,null,null,null,null,null,null,null,null,null,null,null,null,null,null,null,null,null,null,null,null,"pmserver_M_STAG_STAG_GRAT_AJUSLOTS_COURTIER_DC.prm"]
[null,null,null,null,null,null,null,null,null,null,null,null,null,null,null,null,null,null,null,null,null,null,null,null,null,null,null,null,null,null,"pmserver_M_STAG_STAG_GRAT_CA_COURTIER.prm"]
[null,null,null,null,null,null,null,null,null,null,null,null,null,null,null,null,null,null,null,null,null,null,null,null,null,null,null,null,null,null,"pmserver_M_STAG_STAG_GRAT_CA_Detaillant.prm"]
[null,null,null,null,null,null,null,null,null,null,null,null,null,null,null,null,null,null,null,null,null,null,null,null,null,null,null,null,null,null,"pmserver_M_STAG_STAG_GRAT_CA_Force_Courtier.prm"]
[null,null,null,null,null,null,null,null,null,null,null,null,null,null,null,null,null,null,null,null,null,null,null,null,null,null,null,null,null,null,"WKF_T_SGINET_IRBM_GRAT_Gratuit.XML"]
[null,null,null,null,null,null,null,null,null,null,null,null,null,null,null,null,null,null,null,null,null,null,null,null,null,null,null,null,null,null,"WKF_T_SGINET_IRBM_GRAT_Gratuit_COUR.XML"]
[null,null,null,null,null,null,null,null,null,null,null,null,null,null,null,null,null,null,null,null,null,null,null,null,null,null,null,null,null,null,"pmserver_M_STAG_STAG_GRAT_Lots.prm"]
[null,null,null,null,null,null,null,null,null,null,null,null,null,null,null,null,null,null,null,null,null,null,null,null,null,null,null,null,null,null,"pmserver_M_STAG_STAG_GRAT_REGULARISATION.prm"]
[null,null,null,null,null,null,null,null,null,null,null,null,null,null,null,null,null,null,null,null,null,null,null,null,null,null,null,null,null,null,"pmserver_M_STAG_STAG_GRAT_TICKETS_DEFECT.prm"]
[null,null,null,null,null,null,null,null,null,null,null,null,null,null,null,null,null,null,null,null,null,null,null,null,null,null,null,null,null,null,"pmserver_M_STAG_STAG_GRAT_TICKETS_REST.prm"]
[null,null,null,null,null,null,null,null,null,null,null,null,null,null,null,null,null,null,null,null,null,null,null,null,null,null,null,null,null,null,"pmserver_M_STAG_STAG_GRAT_VOL_LIVRETS.prm"]
[null,null,null,null,null,null,null,null,null,null,null,null,null,null,null,null,null,null,null,null,null,null,null,null,null,null,null,null,null,null,"pmserver_M_STAG_STAG_JTR_ANNULATION_JEU.prm"]
[null,null,null,null,null,null,null,null,null,null,null,null,null,null,null,null,null,null,null,null,null,null,null,null,null,null,null,null,null,null,"pmserver_M_STAG_STAG_JTR_ANNULATION_PAIEMENT.prm"]
[null,null,null,null,null,null,null,null,null,null,null,null,null,null,null,null,null,null,null,null,null,null,null,null,null,null,null,null,null,null,"pmserver_M_STAG_STAG_JTR_ANNULATION_PROMOTION.prm"]
[null,null,null,null,null,null,null,null,null,null,null,null,null,null,null,null,null,null,null,null,null,null,null,null,null,null,null,null,null,null,"pmserver_M_STAG_STAG_JTR_APD_ANNULATION_JEU.prm"]
[null,null,null,null,null,null,null,null,null,null,null,null,null,null,null,null,null,null,null,null,null,null,null,null,null,null,null,null,null,null,"pmserver_M_STAG_STAG_JTR_APD_PRISE_DE_JEU.prm"]
[null,null,null,null,null,null,null,null,null,null,null,null,null,null,null,null,null,null,null,null,null,null,null,null,null,null,null,null,null,null,"pmserver_M_STAG_STAG_JTR_PAIEMENT.prm"]
[null,null,null,null,null,null,null,null,null,null,null,null,null,null,null,null,null,null,null,null,null,null,null,null,null,null,null,null,null,null,"pmserver_M_STAG_STAG_JTR_PRISE_DE_JEU.prm"]
[null,null,null,null,null,null,null,null,null,null,null,null,null,null,null,null,null,null,null,null,null,null,null,null,null,null,null,null,null,null,"pmserver_M_STAG_STAG_JTR_PROMOTION.prm"]
[null,null,null,null,null,null,null,null,null,null,null,null,null,null,null,null,null,null,null,null,null,null,null,null,null,null,null,null,null,null,"pmserver_M_STAG_STAG_JTR_REGULARISATION.prm"]
[null,null,null,null,null,null,null,null,null,null,null,null,null,null,null,null,null,null,null,null,null,null,null,null,null,null,null,null,null,null,"pmserver_M_STAG_STAG_SUIV_TRAIT_GRAT.prm"]
[null,null,null,null,null,null,null,null,null,null,null,null,null,null,null,null,null,null,null,null,null,null,null,null,null,null,null,null,null,null,"ins_tab_TRANSCO_CANAL_DISTR.sql"]
[null,null,null,null,null,null,null,null,null,null,null,null,null,null,null,null,null,null,null,null,null,null,null,null,null,null,null,null,null,null,"B_SJEUX_IRBM_12.ksh"]
[null,null,null,null,null,null,null,null,null,null,null,null,null,null,null,null,null,null,null,null,null,null,null,null,null,null,null,null,null,null,"B_SJEUX_IRBM_AGG_COUR_32.ksh"]
[null,null,null,null,null,null,null,null,null,null,null,null,null,null,null,null,null,null,null,null,null,null,null,null,null,null,null,null,null,null,"B_SJEUX_IRBM_ARIANE_32.ksh"]
[null,null,null,null,null,null,null,null,null,null,null,null,null,null,null,null,null,null,null,null,null,null,null,null,null,null,null,null,null,null,"B_SJEUX_IRBM_GRA_AJUSTLOTS_32.ksh"]
[null,null,null,null,null,null,null,null,null,null,null,null,null,null,null,null,null,null,null,null,null,null,null,null,null,null,null,null,null,null,"B_SJEUX_IRBM_GRA_CACOURDC_32.ksh"]
[null,null,null,null,null,null,null,null,null,null,null,null,null,null,null,null,null,null,null,null,null,null,null,null,null,null,null,null,null,null,"B_SJEUX_IRBM_GRA_CACOURFORCE_32.ksh"]
[null,null,null,null,null,null,null,null,null,null,null,null,null,null,null,null,null,null,null,null,null,null,null,null,null,null,null,null,null,null,"B_SJEUX_IRBM_GRA_CADET_32.ksh"]
[null,null,null,null,null,null,null,null,null,null,null,null,null,null,null,null,null,null,null,null,null,null,null,null,null,null,null,null,null,null,"B_SJEUX_IRBM_GRA_LOTS_32.ksh"]
[null,null,null,null,null,null,null,null,null,null,null,null,null,null,null,null,null,null,null,null,null,null,null,null,null,null,null,null,null,null,"B_SJEUX_IRBM_GRA_REGUL_32.ksh"]
[null,null,null,null,null,null,null,null,null,null,null,null,null,null,null,null,null,null,null,null,null,null,null,null,null,null,null,null,null,null,"B_SJEUX_IRBM_GRA_TICKDEFECT_32.ksh"]
[null,null,null,null,null,null,null,null,null,null,null,null,null,null,null,null,null,null,null,null,null,null,null,null,null,null,null,null,null,null,"B_SJEUX_IRBM_GRA_TICKGRAT_32.ksh"]
[null,null,null,null,null,null,null,null,null,null,null,null,null,null,null,null,null,null,null,null,null,null,null,null,null,null,null,null,null,null,"B_SJEUX_IRBM_GRA_TICKRESTIT_32.ksh"]
[null,null,null,null,null,null,null,null,null,null,null,null,null,null,null,null,null,null,null,null,null,null,null,null,null,null,null,null,null,null,"B_SJEUX_IRBM_GRA_VOLSLIVR_32.ksh"]
[null,null,null,null,null,null,null,null,null,null,null,null,null,null,null,null,null,null,null,null,null,null,null,null,null,null,null,null,null,null,"B_SJEUX_IRBM_JTR_ANPAIELOT_32.ksh"]
[null,null,null,null,null,null,null,null,null,null,null,null,null,null,null,null,null,null,null,null,null,null,null,null,null,null,null,null,null,null,"B_SJEUX_IRBM_JTR_ANPRISEJEU_32.ksh"]
[null,null,null,null,null,null,null,null,null,null,null,null,null,null,null,null,null,null,null,null,null,null,null,null,null,null,null,null,null,null,"B_SJEUX_IRBM_JTR_ANPROPRISEJEU_32.ksh"]
[null,null,null,null,null,null,null,null,null,null,null,null,null,null,null,null,null,null,null,null,null,null,null,null,null,null,null,null,null,null,"B_SJEUX_IRBM_JTR_PAIELOT_32.ksh"]
[null,null,null,null,null,null,null,null,null,null,null,null,null,null,null,null,null,null,null,null,null,null,null,null,null,null,null,null,null,null,"B_SJEUX_IRBM_JTR_PRISEJEU_32.ksh"]
[null,null,null,null,null,null,null,null,null,null,null,null,null,null,null,null,null,null,null,null,null,null,null,null,null,null,null,null,null,null,"B_SJEUX_IRBM_JTR_PROPRISEJEU_32.ksh"]
[null,null,null,null,null,null,null,null,null,null,null,null,null,null,null,null,null,null,null,null,null,null,null,null,null,null,null,null,null,null,"B_SJEUX_IRBM_JTR_REGUL_32.ksh"]
[null,null,null,null,null,null,null,null,null,null,null,null,null,null,null,null,null,null,null,null,null,null,null,null,null,null,null,null,null,null,"Concat_EventControlFiles.sh"]
[null,null,null,null,null,null,null,null,null,null,null,null,null,null,null,null,null,null,null,null,null,null,null,null,null,null,null,null,null,null,"Charge_Ano_CACOURDC.sql"]
[null,null,null,null,null,null,null,null,null,null,null,null,null,null,null,null,null,null,null,null,null,null,null,null,null,null,null,null,null,null,"Charge_Ano_GRAT_AjustLots_Courtier_DC.sql"]
[null,null,null,null,null,null,null,null,null,null,null,null,null,null,null,null,null,null,null,null,null,null,null,null,null,null,null,null,null,null,"Charge_Ano_GRAT_CA_Detaillant.sql"]
[null,null,null,null,null,null,null,null,null,null,null,null,null,null,null,null,null,null,null,null,null,null,null,null,null,null,null,null,null,null,"Charge_Ano_GRAT_CA_Force_Courtier.sql"]
[null,null,null,null,null,null,null,null,null,null,null,null,null,null,null,null,null,null,null,null,null,null,null,null,null,null,null,null,null,null,"Charge_Ano_GRAT_GLOTSC.sql"]
[null,null,null,null,null,null,null,null,null,null,null,null,null,null,null,null,null,null,null,null,null,null,null,null,null,null,null,null,null,null,"Charge_Ano_GRAT_GLOTSV.sql"]
[null,null,null,null,null,null,null,null,null,null,null,null,null,null,null,null,null,null,null,null,null,null,null,null,null,null,null,null,null,null,"Charge_Ano_GRAT_Gratuit.sql"]
[null,null,null,null,null,null,null,null,null,null,null,null,null,null,null,null,null,null,null,null,null,null,null,null,null,null,null,null,null,null,"Charge_Ano_GRAT_Lots.sql"]
[null,null,null,null,null,null,null,null,null,null,null,null,null,null,null,null,null,null,null,null,null,null,null,null,null,null,null,null,null,null,"Charge_Ano_GRAT_Regularisation.sql"]
[null,null,null,null,null,null,null,null,null,null,null,null,null,null,null,null,null,null,null,null,null,null,null,null,null,null,null,null,null,null,"Charge_Ano_GRAT_Tickets_Defect.sql"]
[null,null,null,null,null,null,null,null,null,null,null,null,null,null,null,null,null,null,null,null,null,null,null,null,null,null,null,null,null,null,"Charge_Ano_GRAT_Tickets_Rest.sql"]
[null,null,null,null,null,null,null,null,null,null,null,null,null,null,null,null,null,null,null,null,null,null,null,null,null,null,null,null,null,null,"Charge_Ano_GRAT_Vol_Livrets.sql"]
[null,null,null,null,null,null,null,null,null,null,null,null,null,null,null,null,null,null,null,null,null,null,null,null,null,null,null,null,null,null,"Charge_Ano_JTR_Annulation_Jeu.sql"]
[null,null,null,null,null,null,null,null,null,null,null,null,null,null,null,null,null,null,null,null,null,null,null,null,null,null,null,null,null,null,"Charge_Ano_JTR_Annulation_Paiement.sql"]
[null,null,null,null,null,null,null,null,null,null,null,null,null,null,null,null,null,null,null,null,null,null,null,null,null,null,null,null,null,null,"Charge_Ano_JTR_Annulation_Promotion.sql"]
[null,null,null,null,null,null,null,null,null,null,null,null,null,null,null,null,null,null,null,null,null,null,null,null,null,null,null,null,null,null,"Charge_Ano_JTR_GLOTSC.sql"]
[null,null,null,null,null,null,null,null,null,null,null,null,null,null,null,null,null,null,null,null,null,null,null,null,null,null,null,null,null,null,"Charge_Ano_JTR_GLOTSV.sql"]
[null,null,null,null,null,null,null,null,null,null,null,null,null,null,null,null,null,null,null,null,null,null,null,null,null,null,null,null,null,null,"Charge_Ano_JTR_Paiement.sql"]
[null,null,null,null,null,null,null,null,null,null,null,null,null,null,null,null,null,null,null,null,null,null,null,null,null,null,null,null,null,null,"Charge_Ano_JTR_Prise_De_Jeu"]
[null,null,null,null,null,null,null,null,null,null,null,null,null,null,null,null,null,null,null,null,null,null,null,null,null,null,null,null,null,null,"Charge_Ano_JTR_Promotion.sql"]
[null,null,null,null,null,null,null,null,null,null,null,null,null,null,null,null,null,null,null,null,null,null,null,null,null,null,null,null,null,null,"Charge_Ano_JTR_Regularisation.sql"]
[null,null,null,null,null,null,null,null,null,null,null,null,null,null,null,null,null,null,null,null,null,null,null,null,null,null,null,null,null,null,"Charge_Rejets_AGG_COUR.sql"]
[null,null,null,null,null,null,null,null,null,null,null,null,null,null,null,null,null,null,null,null,null,null,null,null,null,null,null,null,null,null,"Charge_Rejets_Ariane.sql"]
[null,null,null,null,null,null,null,null,null,null,null,null,null,null,null,null,null,null,null,null,null,null,null,null,null,null,null,null,null,null,"Detect_Rejets_AGG_COUR.sql"]
[null,null,null,null,null,null,null,null,null,null,null,null,null,null,null,null,null,null,null,null,null,null,null,null,null,null,null,null,null,null,"Detect_Rejets_Ariane.sql"]
[null,null,null,null,null,null,null,null,null,null,null,null,null,null,null,null,null,null,null,null,null,null,null,null,null,null,null,null,null,null,"Detect_Rejets_GRA_AJUSTLOTS.sql"]
[null,null,null,null,null,null,null,null,null,null,null,null,null,null,null,null,null,null,null,null,null,null,null,null,null,null,null,null,null,null,"Detect_Rejets_GRA_CACOURDC.sql"]
[null,null,null,null,null,null,null,null,null,null,null,null,null,null,null,null,null,null,null,null,null,null,null,null,null,null,null,null,null,null,"Detect_Rejets_GRA_CACOURFORCE.sql"]
[null,null,null,null,null,null,null,null,null,null,null,null,null,null,null,null,null,null,null,null,null,null,null,null,null,null,null,null,null,null,"Detect_Rejets_GRA_CADET.sql"]
[null,null,null,null,null,null,null,null,null,null,null,null,null,null,null,null,null,null,null,null,null,null,null,null,null,null,null,null,null,null,"Detect_Rejets_GRA_LOTS.sql"]
[null,null,null,null,null,null,null,null,null,null,null,null,null,null,null,null,null,null,null,null,null,null,null,null,null,null,null,null,null,null,"Detect_Rejets_GRA_REGUL.sql"]
[null,null,null,null,null,null,null,null,null,null,null,null,null,null,null,null,null,null,null,null,null,null,null,null,null,null,null,null,null,null,"Detect_Rejets_GRA_TICKDEFECT.sql"]
[null,null,null,null,null,null,null,null,null,null,null,null,null,null,null,null,null,null,null,null,null,null,null,null,null,null,null,null,null,null,"Detect_Rejets_GRA_TICKGRAT.sql"]
[null,null,null,null,null,null,null,null,null,null,null,null,null,null,null,null,null,null,null,null,null,null,null,null,null,null,null,null,null,null,"Detect_Rejets_GRA_VOLSLIVR.sql"]
[null,null,null,null,null,null,null,null,null,null,null,null,null,null,null,null,null,null,null,null,null,null,null,null,null,null,null,null,null,null,"Detect_Rejets_GRAT_GLOTSC.sql"]
[null,null,null,null,null,null,null,null,null,null,null,null,null,null,null,null,null,null,null,null,null,null,null,null,null,null,null,null,null,null,"Detect_Rejets_GRAT_GLOTSV.sql"]
[null,null,null,null,null,null,null,null,null,null,null,null,null,null,null,null,null,null,null,null,null,null,null,null,null,null,null,null,null,null,"Detect_Rejets_JTR_ANPAIELOT.sql"]
[null,null,null,null,null,null,null,null,null,null,null,null,null,null,null,null,null,null,null,null,null,null,null,null,null,null,null,null,null,null,"Detect_Rejets_JTR_ANPRISEJEU.sql"]
[null,null,null,null,null,null,null,null,null,null,null,null,null,null,null,null,null,null,null,null,null,null,null,null,null,null,null,null,null,null,"Detect_Rejets_JTR_ANPROPRISEJEU.sql"]
[null,null,null,null,null,null,null,null,null,null,null,null,null,null,null,null,null,null,null,null,null,null,null,null,null,null,null,null,null,null,"Detect_Rejets_JTR_GLOTSC.sql"]
[null,null,null,null,null,null,null,null,null,null,null,null,null,null,null,null,null,null,null,null,null,null,null,null,null,null,null,null,null,null,"Detect_Rejets_JTR_GLOTSV.sql"]
[null,null,null,null,null,null,null,null,null,null,null,null,null,null,null,null,null,null,null,null,null,null,null,null,null,null,null,null,null,null,"Detect_Rejets_JTR_PAIELOT.sql"]
[null,null,null,null,null,null,null,null,null,null,null,null,null,null,null,null,null,null,null,null,null,null,null,null,null,null,null,null,null,null,"Detect_Rejets_JTR_PRISEJEU.sql"]
[null,null,null,null,null,null,null,null,null,null,null,null,null,null,null,null,null,null,null,null,null,null,null,null,null,null,null,null,null,null,"Detect_Rejets_JTR_PROPRISEJEU.sql"]
[null,null,null,null,null,null,null,null,null,null,null,null,null,null,null,null,null,null,null,null,null,null,null,null,null,null,null,null,null,null,"Detect_Rejets_JTR_REGUL.sql"]
[null,null,null,null,null,null,null,null,null,null,null,null,null,null,null,null,null,null,null,null,null,null,null,null,null,null,null,null,null,null,"Trunc_AGG_COUR.sql"]
[null,null,null,null,null,null,null,null,null,null,null,null,null,null,null,null,null,null,null,null,null,null,null,null,null,null,null,null,null,null,"cre_tab_OUT_CJEU_REGUL_GRATTAGE"]
[null,null,null,null,null,null,null,null,null,null,null,null,null,null,null,null,null,null,null,null,null,null,null,null,null,null,null,null,null,null,"cre_tab_OUT_I_RDV_ADELLE_ENCAISSE.sql"]
[null,null,null,null,null,null,null,null,null,null,null,null,null,null,null,null,null,null,null,null,null,null,null,null,null,null,null,null,null,null,"cre_tab_OUT_JEUX_AGG_COUR.sql"]
[null,null,null,null,null,null,null,null,null,null,null,null,null,null,null,null,null,null,null,null,null,null,null,null,null,null,null,null,null,null,"cre_tab_OUT_JTR_DETAILLANT_A_PAIEMENT.sql"]
[null,null,null,null,null,null,null,null,null,null,null,null,null,null,null,null,null,null,null,null,null,null,null,null,null,null,null,null,null,null,"cre_tab_OUT_JTR_DETAILLANT_A_PROMOTION.sql"]
[null,null,null,null,null,null,null,null,null,null,null,null,null,null,null,null,null,null,null,null,null,null,null,null,null,null,null,null,null,null,"cre_tab_OUT_JTR_DETAILLANT_ANNULATION.sql"]
[null,null,null,null,null,null,null,null,null,null,null,null,null,null,null,null,null,null,null,null,null,null,null,null,null,null,null,null,null,null,"cre_tab_OUT_JTR_DETAILLANT_PAIEMENT.sql"]
[null,null,null,null,null,null,null,null,null,null,null,null,null,null,null,null,null,null,null,null,null,null,null,null,null,null,null,null,null,null,"cre_tab_OUT_JTR_DETAILLANT_PRISE_DE_JEU.sql"]
[null,null,null,null,null,null,null,null,null,null,null,null,null,null,null,null,null,null,null,null,null,null,null,null,null,null,null,null,null,null,"cre_tab_OUT_JTR_DETAILLANT_PROMOTION.sql"]
[null,null,null,null,null,null,null,null,null,null,null,null,null,null,null,null,null,null,null,null,null,null,null,null,null,null,null,null,null,null,"cre_tab_OUT_JTR_REGULARISATION.sql"]
[null,null,null,null,null,null,null,null,null,null,null,null,null,null,null,null,null,null,null,null,null,null,null,null,null,null,null,null,null,null,"cre_tab_OUT_PR6_CARTES_ACTIVEES.sql"]
[null,null,null,null,null,null,null,null,null,null,null,null,null,null,null,null,null,null,null,null,null,null,null,null,null,null,null,null,null,null,"cre_tab_OUT_RDV_ADELLE_AJUSTEMENT_LOT.sql"]
[null,null,null,null,null,null,null,null,null,null,null,null,null,null,null,null,null,null,null,null,null,null,null,null,null,null,null,null,null,null,"cre_tab_OUT_STAG_CA.sql"]
[null,null,null,null,null,null,null,null,null,null,null,null,null,null,null,null,null,null,null,null,null,null,null,null,null,null,null,null,null,null,"cre_tab_OUT_STAG_FREE.sql"]
[null,null,null,null,null,null,null,null,null,null,null,null,null,null,null,null,null,null,null,null,null,null,null,null,null,null,null,null,null,null,"cre_tab_OUT_STAG_GRT_LIV_FV.sql"]
[null,null,null,null,null,null,null,null,null,null,null,null,null,null,null,null,null,null,null,null,null,null,null,null,null,null,null,null,null,null,"cre_tab_OUT_STAG_LOTV.sql"]
[null,null,null,null,null,null,null,null,null,null,null,null,null,null,null,null,null,null,null,null,null,null,null,null,null,null,null,null,null,null,"cre_tab_OUT_STAG_LVOL.sql"]
[null,null,null,null,null,null,null,null,null,null,null,null,null,null,null,null,null,null,null,null,null,null,null,null,null,null,null,null,null,null,"cre_tab_OUT_STAG_TDEF.sql"]
[null,null,null,null,null,null,null,null,null,null,null,null,null,null,null,null,null,null,null,null,null,null,null,null,null,null,null,null,null,null,"cre_tab_OUT_STAG_TRES.sql"]
[null,null,null,null,null,null,null,null,null,null,null,null,null,null,null,null,null,null,null,null,null,null,null,null,null,null,null,null,null,null,"cre_tab_REF_BIC_GAMME_JEU.sql"]
[null,null,null,null,null,null,null,null,null,null,null,null,null,null,null,null,null,null,null,null,null,null,null,null,null,null,null,null,null,null,"cre_tab_TRANSCO_CANAL_DISTR.sql"]

{"sheet":"Feuil4","index":3,"n_rows":1067,"n_cols":3,"rows_kept":1067,"cut":false,"hidden":false,"merged":[]}
["Nom du composant technique","Domaine","Sujets"]
["CP_XXFIJI_XXFIJI_AC001_01_F.ldt","OeBS","AC001"]
["CP_XXFIJI_XXFIJI_AC001_02_F.ldt","OeBS","AC001"]
["PRO_XXFIJI_AC001_AR_IMPAYES_REP_ARCH_F.ldt","OeBS","AC001"]
["PRO_XXFIJI_AC001_AR_IMPAYES_REP_IN_F.ldt","OeBS","AC001"]
["PRO_XXFIJI_AC001_AR_IMPAYES_REP_REJ_F.ldt","OeBS","AC001"]
["RGRP_AR_XXFIJI_AC001_01.ldt","OeBS","AC001"]
["cre_pack_XXFIJI_AC001_01_PKG.sql","OeBS","AC001"]
["cre_tab_XXFIJI_AC001_AR_IMPAYES.sql","OeBS","AC001"]
["XXFIJI_AC001_01.prog","OeBS","AC001"]
["XXFIJI_AC001_02.ctl","OeBS","AC001"]
["PRO_XXFIJI_AC002_EXTRACT_ORG_UNIT_F.ldt","OeBS","AC002"]
["PRO_XXFIJI_AC002_MOTEUR_ARGENT_F.ldt","OeBS","AC002"]
["PRO_XXFIJI_AC002_MOTEUR_BRONZE_F.ldt","OeBS","AC002"]
["PRO_XXFIJI_AC002_MOTEUR_GESTION_F.ldt","OeBS","AC002"]
["PRO_XXFIJI_AC002_MOTEUR_OR_F.ldt","OeBS","AC002"]
["PRO_XXFIJI_AC002_MOTEUR_PLATINE_F.ldt","OeBS","AC002"]
["PRO_XXFIJI_AC002_STRAT_CESSATION_ACTIVITE_F.ldt","OeBS","AC002"]
["PRO_XXFIJI_AC002_STRAT_DECES_F.ldt","OeBS","AC002"]
["PRO_XXFIJI_AC002_STRAT_ERREUR_BANQUE_F.ldt","OeBS","AC002"]
["PRO_XXFIJI_AC002_STRAT_INCIDENT_F.ldt","OeBS","AC002"]
["PRO_XXFIJI_AC002_STRAT_PB_COORD_BANCAIRES_F.ldt","OeBS","AC002"]
["PRO_XXFIJI_AC002_STRAT_RETRAIT_AGREMENT_F.ldt","OeBS","AC002"]
["PRO_XXFIJI_AC002_STRAT_RJ_LJ_AVEC_POURS_F.ldt","OeBS","AC002"]
["PRO_XXFIJI_AC002_STRAT_RJ_LJ_SANS_POURS_F.ldt","OeBS","AC002"]
["PRO_XXFIJI_AC002_STRAT_TRANSFERT_CONTENTIEUX_F.ldt","OeBS","AC002"]
["VS_XXFIJI_AC002_MOTIF_IMPAYES_F.ldt","OeBS","AC002"]
["VS_XXFIJI_AC002_REGLES_IMPAYES_F.ldt","OeBS","AC002"]
["VS_XXFIJI_AC002_SOLDE_FACTURE_F.ldt","OeBS","AC002"]
["VS_XXFIJI_AC002_STATUT_F.ldt","OeBS","AC002"]
["VS_XXFIJI_AC002_STRATEGIES_F.ldt","OeBS","AC002"]
["cre_pack_XXFIJI_AC002_01_PKG.sql","OeBS","AC002"]
["cre_view_IEX_F_CLIENT_ARGT_V.sql","OeBS","AC002"]
["cre_view_IEX_F_CLIENT_BRONZE_V.sql","OeBS","AC002"]
["cre_view_IEX_F_CLIENT_GESTION_V.sql","OeBS","AC002"]
["cre_view_IEX_F_CLIENT_OR_V.sql","OeBS","AC002"]
["cre_view_IEX_F_CLIENT_PLAT_V.sql","OeBS","AC002"]
["cre_view_XXFIJI_AC002_HISTO_IMPAYES_V.sql","OeBS","AC002"]
["IEXCUTM1.fmb","OeBS","AC003"]
["IEXCUTM2.fmb","OeBS","AC003"]
["FCUS_IEXRCALL_F.ldt","OeBS","AC003"]
["MSGV_XXFIJI_XXFIJI_AC003_F.ldt","OeBS","AC003"]
["PRO_XXFIJI_DDF_RMBT_VALUE_F.ldt","OeBS","AC003"]
["PRO_XXFIJI_DFF_METHOD_VALUE_F.ldt","OeBS","AC003"]
["RESP_IEX_IEX_COLLECTION_AGENT_F.ldt","OeBS","AC003"]
["VS_XXFIJI_CAUTIONS_DDF_OPERATIONS_JV_F.ldt","OeBS","AC003"]
["VS_XXFIJI_CAUTIONS_ORIGINE_JV_F.ldt","OeBS","AC003"]
["VS_XXFIJI_CAUTIONS_TIERS_JV_F.ldt","OeBS","AC003"]
["VS_XXFIJI_CAUTIONS_TYPE_JV_F.ldt","OeBS","AC003"]
["cre_seq_XXFIJI_AC003_NOEMISSION_S.sql","OeBS","AC003"]
["cre_tab_XXFIJI_AC003_CAUTIONS.sql","OeBS","AC003"]
["cre_view_XXFIJI_AC003_DDF_V.sql","OeBS","AC003"]
["IEXCUTM1.pld","OeBS","AC003"]
["IEXCUTM2.pld","OeBS","AC003"]
["CP_XXFIJI_XXFIJI_AC005_01_F.ldt","OeBS","AC005"]
["RGRP_AR_XXFIJI_AC005_01.ldt","OeBS","AC005"]
["VS_XXFIJI_AC005_TYPE_DISTRIBUTEUR_F.ldt","OeBS","AC005"]
["VS_XXFIJI_AC005_TYPE_IMPAYE_F.ldt","OeBS","AC005"]
["XMLP_XXFIJI_XXFIJI_AC005_01_F.ldt","OeBS","AC005"]
["XXFIJI_XXFIJI_AC005_01.rtf","OeBS","AC005"]
["XXFIJI_AC005_01.rdf","OeBS","AC005"]
["cre_view_IEX_F_FIJI_SCORE_INVOICES_V.sql","OeBS","AC008"]
["XMLP_IEX_XXFIJI_AC009_01_F.ldt","OeBS","AC009"]
["cre_seq_XXFIJI_CHRONO_COURRIER_S.sql","OeBS","AC009"]
["cre_view_XXFIJI_AC009_C_CAUTION_V.sql","OeBS","AC009"]
["cre_view_XXFIJI_AC009_C_CIVILITE_V.sql","OeBS","AC009"]
["cre_view_XXFIJI_AC009_C_DEPOT_V.sql","OeBS","AC009"]
["cre_view_XXFIJI_AC009_C_MONTANTS_V.sql","OeBS","AC009"]
["cre_view_XXFIJI_AC009_C_PRELEV_V.sql","OeBS","AC009"]
["cre_view_XXFIJI_AC009_C_REECHLONNES_V.sql","OeBS","AC009"]
["cre_view_XXFIJI_AC009_C_RELANCE_V.sql","OeBS","AC009"]
["XXFIJI_AC009_01.sql","OeBS","AC009"]
["IEX_XXFIJI_AC009_01.rtf","OeBS","AC009"]
["XMLP_IEX_XXFIJI_AC010_F.ldt","OeBS","AC010"]
["XXFIJI_AC010_01.sql","OeBS","AC010"]
["IEX_XXFIJI_AC010.rtf","OeBS","AC010"]
["XMLP_IEX_XXFIJI_AC011_01_F.ldt","OeBS","AC011"]
["XXFIJI_AC011_01.sql","OeBS","AC011"]
["IEX_XXFIJI_AC011_01.rtf","OeBS","AC011"]
["MSGV_XXFIJI_XXFIJI_AC012_01_F.ldt","OeBS","AC012"]
["PRO_XXFIJI_EMAIL_RELANCE_F.ldt","OeBS","AC012"]
["cre_pack_iex_dunning_pvt_pkg.sql","OeBS","AC012"]
["cre_pack_iex_send_xml_pvt_pkg.sql","OeBS","AC012"]
["cre_pack_iex_strategy_work_pub_pkg.sql","OeBS","AC012"]
["cre_tab_XXINT_AP001_TEMP.sql","OeBS","AP001"]
["selvir.sql","OeBS","AP001"]
["CP_XXAP_APFJ_BALANCE_F.ldt","OeBS","AP002"]
["VS_FRAP_VENDOR_NAME_F.ldt","OeBS","AP002"]
["APFJ_BALANCE.rdf","OeBS","AP002"]
["CP_XXAP_APFJ_BAL_CUM_F.ldt","OeBS","AP003"]
["APFJ_BAL_CUM.rdf","OeBS","AP003"]
["cre_view_FIJI_V_BAL_BEG_BAL.sql","OeBS","AP003"]
["cre_view_FIJI_V_BAL_GD_LIVRE_V.sql","OeBS","AP003"]
["CP_XXAP_APFJ_GD_LIVRE_F.ldt","OeBS","AP004"]
["APFJ_GD_LIVRE.rdf","OeBS","AP004"]
["APFJ_TRESOR.rdf","OeBS","AP005"]
["PRO_XXFIJI_AP006_PRO_LEGAL_ENT_F.ldt","OeBS","AP006"]
["XMLP_IBY_XXAP_JEFRAINT_F.ldt","OeBS","AP006"]
["cre_packB_IBY_FD_EXTRACT_EXT_PUB_PKG.sql","OeBS","AP006"]
["del_tab_ap006_xdo_lobs.sql","OeBS","AP006"]
["upd_tab_ap006_iby_formats_b.sql","OeBS","AP006"]
["IBY_XXAP_JEFRAINT.rtf","OeBS","AP006"]
["XMLP_IBY_JEFRAFIJI_F.ldt","OeBS","AP007"]
["del_tab_ap007_xdo_lobs.sql","OeBS","AP007"]
["upd_tab_ap007_iby_formats_b.sql","OeBS","AP007"]
["IBY_JEFRAFIJI.rtf","OeBS","AP007"]
["CP_XXAP_APFJ_DECL_TVA_F.ldt","OeBS","AP008"]
["alt_tab_apfj_decl_tva_01.sql","OeBS","AP008"]
["alt_tab_apfj_decl_tva_02.sql","OeBS","AP008"]
["cre_ind_GL_CODE_COMBINATIONS_N99.sql","OeBS","AP008"]
["cre_pack_APFJ_TVA_PKG.sql","OeBS","AP008"]
["cre_pack_gl_period_statuses_pkg.sql","OeBS","AP008"]
["APFJ_DECL_TVA.rdf","OeBS","AP008"]
["WF_APPEWF_F.ldt","OeBS","AP009"]
["WF_WFMAIL_F.ldt","OeBS","AP009"]
["cre_packB_AP_PAYMENT_EVENT_WF_PKG.sql","OeBS","AP009"]
["cre_packS_AP_PAYMENT_EVENT_WF_PKG.sql","OeBS","AP009"]
["CP_JE_JEFRDSFI_F.ldt","OeBS","AP011"]
["JEFRDSFI.rdf","OeBS","AP011"]
["CP_XXFIJI_XXFIJI_AP012_01_F.ldt","OeBS","AP012"]
["CP_XXFIJI_XXFIJI_AP012_03_F.ldt","OeBS","AP012"]
["CP_XXFIJI_XXFIJI_AP012_04_F.ldt","OeBS","AP012"]
["CP_XXFIJI_XXFIJI_AP012_05_F.ldt","OeBS","AP012"]
["LOOKUP_XXFIJI_XXFIJI_GROUP_ID_F.ldt","OeBS","AP012"]
["PRO_XXFIJI_AP012_APXIIMPT_COMMIT_BATCH_SIZE_F.ldt","OeBS","AP012"]
["PRO_XXFIJI_AP012_CODE_JOURNAL_FACTURES_AP_F.ldt","OeBS","AP012"]
["PRO_XXFIJI_AP012_NOMBRE_FACTURES_PURGEES_AP_F.ldt","OeBS","AP012"]
["PRO_XXFIJI_AP012_ORIGINE_FACTURES_AP_F.ldt","OeBS","AP012"]
["PRO_XXFIJI_AP012_USE_SPECIFIC_VALIDATION_F.ldt","OeBS","AP012"]
["cre_ind_AP_INVOICES_N99.sql","OeBS","AP012"]
["cre_pack_XXFIJI_AP012_01_PKG.sql","OeBS","AP012"]
["cre_pack_XXFIJI_AP012_02_PKG.sql","OeBS","AP012"]
["cre_pack_XXFIJI_AP012_03_PKG.sql","OeBS","AP012"]
["cre_tab_XXFIJI_AP012_INVOICES.sql","OeBS","AP012"]
["cre_tab_XXFIJI_AP012_INVOICES_GT.sql","OeBS","AP012"]
["cre_tab_XXFIJI_AP012_PARAMETERS.sql","OeBS","AP012"]
["CP_XXFIJI_XXFIJI_AP013_01_F.ldt","OeBS","AP013"]
["MSGV_XXFIJI_XXFIJI_AP013_F.ldt","OeBS","AP013"]
["cre_ind_XXFIJI_AP013_BANK_ACCT.sql","OeBS","AP013"]
["cre_ind_XXFIJI_AP013_BANK_BRANCHES.sql","OeBS","AP013"]
["cre_ind_XXFIJI_AP013_BANKS_ERROR.sql","OeBS","AP013"]
["cre_pack_XXFIJI_AP013_01_PKG.sql","OeBS","AP013"]
["cre_pack_XXFIJI_AP013_02_PKG.sql","OeBS","AP013"]
["cre_seq_XXFIJI_AP013_BANKS_ERROR.sql","OeBS","AP013"]
["cre_tab_XXFIJI_AP013_BANK_ACCT.sql","OeBS","AP013"]
["cre_tab_XXFIJI_AP013_BANK_BRANCHES.sql","OeBS","AP013"]
["cre_tab_XXFIJI_AP013_BANKS.sql","OeBS","AP013"]
["cre_tab_XXFIJI_AP013_BANKS_ERROR.sql","OeBS","AP013"]
["cre_tab_XXFIJI_AP013_RECEIPT_METHODS.sql","OeBS","AP013"]
["CP_XXFIJI_XXFIJI_AP014_01_F.ldt","OeBS","AP014"]
["LOOKUP_XXFIJI_XXFIJI_AP_TRANSCO_CIV_CONTACT_F.ldt","OeBS","AP014"]
["LOOKUP_XXFIJI_XXFIJI_COUNTRY_F.ldt","OeBS","AP014"]
["LOOKUP_XXFIJI_XXFIJI_CUST_PRO_CLASS_NAME_F.ldt","OeBS","AP014"]
["LOOKUP_XXFIJI_XXFIJI_FACT_DEV_F.ldt","OeBS","AP014"]
["LOOKUP_XXFIJI_XXFIJI_RELATIONSHIP_TYPE_F.ldt","OeBS","AP014"]
["LOOKUP_XXFIJI_XXFIJI_TYPE_DISTRIBUTEUR_F.ldt","OeBS","AP014"]
["MSGV_XXFIJI_XXFIJI_AP014_F.ldt","OeBS","AP014"]
["cre_pack_XXFIJI_AP014_01_PKG.sql","OeBS","AP014"]
["cre_tab_XXFIJI_AP014_SUP_SITE_CONTACTS.sql","OeBS","AP014"]
["cre_tab_XXFIJI_AP014_SUPPLIER_SITES.sql","OeBS","AP014"]
["cre_tab_XXFIJI_AP014_SUPPLIERS.sql","OeBS","AP014"]
["cre_tab_XXFIJI_AP014_SUPPLIERS_ERROR.sql","OeBS","AP014"]
["CP_XXFIJI_XXFIJI_AP016_01_F.ldt","OeBS","AP016"]
["RGRP_AP_XXFIJI_AP016_01.ldt","OeBS","AP016"]
["RGRP_AR_XXFIJI_AP016_01.ldt","OeBS","AP016"]
["VS_XXFIJI_AP016_TYPE_TIERS_F.ldt","OeBS","AP016"]
["XMLP_XXFIJI_XXFIJI_AP016_01_F.ldt","OeBS","AP016"]
["XXFIJI_XXFIJI_AP016_01.rtf","OeBS","AP016"]
["XXFIJI_AP016_01.rdf","OeBS","AP016"]
["MSGV_XXFIJI_XXFIJI_CTX_HORS_FRANCE_F.ldt","OeBS","AP019"]
["MSGV_XXFIJI_XXFIJI_NO_LINE_SELECTED_F.ldt","OeBS","AP019"]
["MSGV_XXFIJI_XXFIJI_SITES_CTX_HORS_FR_F.ldt","OeBS","AP019"]
["XXFIJICrtSitesVO.xml","OeBS","AP019"]
["XXFIJIByrAddrCO.class","OeBS","AP019"]
["XXFIJIByrAddrCO.java","OeBS","AP019"]
["XXFIJIByrCrtStCO.class","OeBS","AP019"]
["XXFIJIByrCrtStCO.java","OeBS","AP019"]
["XXFIJIByrMngSitesCO.class","OeBS","AP019"]
["XXFIJIByrMngSitesCO.java","OeBS","AP019"]
["XXFIJIPOSSubst.jpx","OeBS","AP019"]
["MSGV_XXFIJI_XXFIJI_AP020_0001_F.ldt","OeBS","AP020"]
["PRO_XXFIJI_AP020_EVENEMENT_DEFAUT_F.ldt","OeBS","AP020"]
["PRO_XXFIJI_AP020_FUTUR_DEFAUT_F.ldt","OeBS","AP020"]
["PRO_XXFIJI_AP020_FUTUR2_DEFAUT_F.ldt","OeBS","AP020"]
["PRO_XXFIJI_AP020_JDV_CANAL_F.ldt","OeBS","AP020"]
["PRO_XXFIJI_AP020_JDV_COMPTE_F.ldt","OeBS","AP020"]
["PRO_XXFIJI_AP020_JDV_DETAIL_LB_F.ldt","OeBS","AP020"]
["PRO_XXFIJI_AP020_JDV_ETABLISSEMENT_F.ldt","OeBS","AP020"]
["PRO_XXFIJI_AP020_JDV_EVENEMENT_F.ldt","OeBS","AP020"]
["PRO_XXFIJI_AP020_JDV_FUTUR_F.ldt","OeBS","AP020"]
["PRO_XXFIJI_AP020_JDV_FUTUR2_F.ldt","OeBS","AP020"]
["PRO_XXFIJI_AP020_JDV_JEU_F.ldt","OeBS","AP020"]
["PRO_XXFIJI_AP020_JDV_LB_F.ldt","OeBS","AP020"]
["PRO_XXFIJI_AP020_JDV_PRODUIT_F.ldt","OeBS","AP020"]
["PRO_XXFIJI_AP020_JDV_PROJ_OP_F.ldt","OeBS","AP020"]
["PRO_XXFIJI_AP020_JDV_SECTION_F.ldt","OeBS","AP020"]
["PRO_XXFIJI_AP020_JDV_SOCIETE_F.ldt","OeBS","AP020"]
["PRO_XXFIJI_AP020_JDV_TERRITOIRE_F.ldt","OeBS","AP020"]
["PRO_XXFIJI_AP020_JEU_DEFAUT_F.ldt","OeBS","AP020"]
["PRO_XXFIJI_AP020_PRODUIT_DEFAUT_F.ldt","OeBS","AP020"]
["PRO_XXFIJI_AP020_SOCIETE_DEFAUT_F.ldt","OeBS","AP020"]
["PRO_XXFIJI_AP020_TERRITOIRE_DEFAUT_F.ldt","OeBS","AP020"]
["alt_tab_XXFIJI_AP020_REV_CLE_MAPPING.sql","OeBS","AP020"]
["cre_seq_XXFIJI_AP020_REV_CLE_MAPPING_S.sql","OeBS","AP020"]
["cre_tab_XXFIJI_AP020_REV_CLE_MAPPING.sql","OeBS","AP020"]
["XXFIJI_AP020_01.fmb","OeBS","AP020"]
["CP_XXFIJI_XXFIJI_AP021_01_F.ldt","OeBS","AP021"]
["VS_XXFIJI_AP021_SELECT_TIERS_F.ldt","OeBS","AP021"]
["cre_pack_XXFIJI_AP021_01_PKG.sql","OeBS","AP021"]
["CP_XXFIJI_XXFIJI_CAMPAGNE_AP_STATUS_F.ldt","OeBS","AP022"]
["cre_pack_XXFIJI_AP022_01_PKG.sql","OeBS","AP022"]
["cre_tab_XXFIJI_AP022_WORK_TABLE.sql","OeBS","AP022"]
["CUSTOM.pld","OeBS","AP023"]
["XXFIJI_FCT02.pld","OeBS","AP023"]
["MSGV_XXFIJI_XXFIJI_AP023_F.ldt","OeBS","AP023"]
["PRO_XXFIJI_AP023_INTERVAL_ECHEANCE_F.ldt","OeBS","AP023"]
["CP_XXFIJI_XXFIJI_AP024_01_F.ldt","OeBS","AP024"]
["MSGV_XXFIJI_XXFIJI_AP024_F.ldt","OeBS","AP024"]
["VS_XXFIJI_AP024_MODE_F.ldt","OeBS","AP024"]
["VS_XXFIJI_AP024_MODULE_F.ldt","OeBS","AP024"]
["cre_pack_XXFIJI_AP024_01_PKG.sql","OeBS","AP024"]
["cre_tab_XXFIJI_AP024_TRX.sql","OeBS","AP024"]
["PRO_XXFIJI_AR_ORIG_SYSTEM_BILL_TO_LOCATION_F.ldt","OeBS","AR001"]
["cre_pack_XXAR_PKG_CIELFACT.sql","OeBS","AR001"]
["cre_pack_XXAR_REGLEMENT_PKG.sql","OeBS","AR001"]
["XXAR_X_CIEL_FACTURE.prog","OeBS","AR001"]
["XXAR_X_CIEL_REGLEMENT.prog","OeBS","AR001"]
["CP_XXAR_XXAR_R_JGZZCSLS_C_F.ldt","OeBS","AR002"]
["CP_XXAR_XXAR_R_JGZZCSLS_F.ldt","OeBS","AR002"]
["VS_XXFIJI_COMPTE_COMPTABLE_F.ldt","OeBS","AR002"]
["VS_XXFIJI_GL_SRS_PAGEBREAK_RANGES.ldt","OeBS","AR002"]
["VS_XXFIJI_GL_SRS_PAGEBREAK_RANGES_F.ldt","OeBS","AR002"]
["VS_XXFIJI_GL_SRS_PAGEBREAK_SEGS.ldt","OeBS","AR002"]
["VS_XXFIJI_GL_SRS_PAGEBREAK_SEGS_F.ldt","OeBS","AR002"]
["cre_pack_XXAR_AR002_AR003_01_PKG.sql","OeBS","AR002"]
["cre_view_XXFIJI_AR_COMPTES_V.sql","OeBS","AR002"]
["cre_view_XXFIJI_AR_DEVISE_REF.sql","OeBS","AR002"]
["cre_view_XXFIJI_BAL_INV_V.sql","OeBS","AR002"]
["cre_view_XXFIJI_BAL_REC_V.sql","OeBS","AR002"]
["XXAR_R_JGZZCSLS.rdf","OeBS","AR002"]
["XXAR_R_JGZZCSLS_C.rdf","OeBS","AR002"]
["CP_XXAR_XXAR_R_JGZZCSLW_F.ldt","OeBS","AR003"]
["VS_XXFIJI_AR_CUSTOMER_NAME.ldt","OeBS","AR003"]
["VS_XXFIJI_AR_CUSTOMER_NAME_F.ldt","OeBS","AR003"]
["VS_XXFIJI_AR_CUSTOMER_NAME_WIDE_F.ldt","OeBS","AR003"]
["VS_XXFIJI_AR_CUSTOMER_NAME_WIDE_TO_F.ldt","OeBS","AR003"]
["VS_XXFIJI_AR_CUSTOMER_NUMBER.ldt","OeBS","AR003"]
["VS_XXFIJI_AR_CUSTOMER_NUMBER_F.ldt","OeBS","AR003"]
["VS_XXFIJI_AR_CUSTOMER_SITE.ldt","OeBS","AR003"]
["VS_XXFIJI_AR_CUSTOMER_SITE_F.ldt","OeBS","AR003"]
["VS_XXFIJI_COMPTE_COMPTABLE_F.ldt","OeBS","AR003"]
["VS_XXFIJI_GL_SRS_PAGEBREAK_RANGES.ldt","OeBS","AR003"]
["VS_XXFIJI_GL_SRS_PAGEBREAK_RANGES_F.ldt","OeBS","AR003"]
["VS_XXFIJI_GL_SRS_PAGEBREAK_SEGS.ldt","OeBS","AR003"]
["VS_XXFIJI_GL_SRS_PAGEBREAK_SEGS_F.ldt","OeBS","AR003"]
["cre_pack_XXAR_AR003_01_PKG.sql","OeBS","AR003"]
["cre_tab_XXFIJI_AR_TMP_DETAIL.sql","OeBS","AR003"]
["XXAR_R_JGZZCSLW.rdf","OeBS","AR003"]
["XXAR_R_RAXINV.rdf","OeBS","AR004"]
["VS_XXBANQUE_FIJI_F.ldt","OeBS","AR004"]
["VS_XXFIJI_AR_TRX_NUM_FROM_F.ldt","OeBS","AR004"]
["VS_XXFIJI_AR_TRX_NUM_TO_F.ldt","OeBS","AR004"]
["RXI_ZX_601_R12-FIJI-TAX_F.ldt","OeBS","AR005"]
["RXI_ZX_601_R12-FIJI-TAX_US.ldt","OeBS","AR005"]
["cre_pack_XXFIJI_AR_TVA_PKG.sql","OeBS","AR005"]
["del_tab_AR005_FA_RX_SUMMARY_TL.sql","OeBS","AR005"]
["cre_view_ZX_REP_EXTRACT_V.sql","OeBS","AR005"]
["tsn_fix_tc59542.sql","OeBS","AR005"]
["CP_AR_XXFIJI_AR006_01_F.ldt","OeBS","AR006"]
["LOOKUP_XXFIJI_XXFIJI_AR006_BATCH_SOURCE_NAME_F.ldt","OeBS","AR006"]
["LOOKUP_XXFIJI_XXFIJI_CONV_RATE_F.ldt","OeBS","AR006"]
["LOOKUP_XXFIJI_XXFIJI_CONVERSION_CODE_F.ldt","OeBS","AR006"]
["MSGV_XXFIJI_XXFIJI_AR006_F.ldt","OeBS","AR006"]
["PRO_XXFIJI_AR006_BATCH_SOURCE_NAME_F.ldt","OeBS","AR006"]
["cre_ind_XXFIJI_AR006_01.sql","OeBS","AR006"]
["cre_pack_XXFIJI_AR006_01_PKG.sql","OeBS","AR006"]
["cre_tab_xxFIJI.xxFIJI_ar006_01_gt.sql","OeBS","AR006"]
["CP_XXFIJI_XXFIJI_ACCORD_COMPENSATION_F.ldt","OeBS","AR007"]
["CP_XXFIJI_XXFIJI_INTERFACE_CLIENTS_F.ldt","OeBS","AR007"]
["CP_XXFIJI_XXFIJI_RELATIONS_CLIENTS_F.ldt","OeBS","AR007"]
["MSGV_XXFIJI_XXFIJI_AR007_F.ldt","OeBS","AR007"]
["PRO_XXFIJI_AR007_NETTING_ACCOUNT_F.ldt","OeBS","AR007"]
["VS_XXFIJI_AR007_TRX_TYPE_F.ldt","OeBS","AR007"]
["cre_pack_XXFIJI_AR007_01_PKG.sql","OeBS","AR007"]
["cre_pack_XXFIJI_AR007_02_PKG.sql","OeBS","AR007"]
["cre_pack_XXFIJI_AR007_03_PKG.sql","OeBS","AR007"]
["cre_pack_XXFIJI_AR007_04_PKG.sql","OeBS","AR007"]
["cre_tab_XXFIJI_AR007_CUST_RELATIONSHIP.sql","OeBS","AR007"]
["cre_tab_XXFIJI_AR007_INTERFACE_RESULTS.sql","OeBS","AR007"]
["RSET_XXFIJI_XXFIJI_AR008_01_F.ldt","OeBS","AR008"]
["VS_XXFIJI_AR008_BANQUE_HORS_FR_F.ldt","OeBS","AR008"]
["XMLP_IBY_XXFIJI_AR008_01_F.ldt","OeBS","AR008"]
["IBY_XXFIJI_AR008_01.rtf","OeBS","AR008"]
["CUSTOM.pld","OeBS","AR009"]
["XXFIJI_FCT01.pld","OeBS","AR009"]
["MENU_AR_RECEIPTS_GUI.ldt","OeBS","AR009"]
["MENU_AR_RECEIPTS_GUI_F.ldt","OeBS","AR009"]
["XXFIJI_ARXRWMAI.fmb  /F","OeBS","AR009"]
["XXFIJI_ARXRWMAI.fmb /US","OeBS","AR009"]
["CUSTOM.pld","OeBS","AR010"]
["XXFIJI_FCT02.pld","OeBS","AR010"]
["CP_XXFIJI_XXFIJI_REECHELONNEMENT_REGLE_F.ldt","OeBS","AR010"]
["FCUS_XXFIJI_ARXRWMAI_F.ldt","OeBS","AR010"]
["MSGV_XXFIJI_XXFIJI_AR010_F.ldt","OeBS","AR010"]
["PRO_XXFIJI_AR010_INTERVAL_ECHEANCE_F.ldt","OeBS","AR010"]
["PRO_XXFIJI_AR010_JOUR_PREL_DET_F.ldt","OeBS","AR010"]
["VS_XXFIJI_AR010_DATES_F.ldt","OeBS","AR010"]
["VS_XXFIJI_AR010_TERMS_F.ldt","OeBS","AR010"]
["cre_pack_XXFIJI_AR_PAYMENT_SCHED_PKG.sql","OeBS","AR010"]
["cre_pack_XXFIJI_AR010_01_PKG.sql","OeBS","AR010"]
["cre_tab_XXFIJI_AR_PAYMENTS.sql","OeBS","AR010"]
["cre_tri_XXFIJI_AR_PAYMENT_SCHED_BUR.sql","OeBS","AR010"]
["CP_XXFIJI_XXFIJI_AR011_01_F.ldt","OeBS","AR011"]
["VS_XXFIJI_AR011_TYPE_DISTRIBUTEUR_F.ldt","OeBS","AR011"]
["VS_XXFIJI_AR011_TYPE_GARANTIE_F.ldt","OeBS","AR011"]
["XMLP_XXFIJI_XXFIJI_AR011_01_F.ldt","OeBS","AR011"]
["XXFIJI_XXFIJI_AR011_01.rtf","OeBS","AR011"]
["XXFIJI_AR011_01.rdf","OeBS","AR011"]
["MENU_AP_NAVIGATE_GUI12_F.ldt","OeBS","AR012"]
["MENU_AR_NAVIGATE_GUI_F.ldt","OeBS","AR012"]
["MENU_IEX_COLLECTIONS_AGENT_F.ldt","OeBS","AR012"]
["MENU_IGI_AR_STP_MENU_FIJI_F.ldt","OeBS","AR012"]
["MSGV_XXFIJI_XXFIJI_AR012_CODE_TIERS.ldt","OeBS","AR012"]
["MSGV_XXFIJI_XXFIJI_AR012_CODE_TIERS_F.ldt","OeBS","AR012"]
["XXFIJI_AR012_01.fmb /F","OeBS","AR012"]
["XXFIJI_AR012_01.fmb /US","OeBS","AR012"]
["CP_XXFIJI_XXFIJI_REGLEMENT_XPF_F.ldt","OeBS","AR013"]
["MSGV_XXFIJI_XXFIJI_AR013_F.ldt","OeBS","AR013"]
["cre_pack_XXFIJI_AR013_01_PKG.sql","OeBS","AR013"]
["cre_seq_XXFIJI_AR013_NORECEIPT_S.sql","OeBS","AR013"]
["cre_tab_XXFIJI_AR013_WORK_TABLE.sql","OeBS","AR013"]
["CP_XXFIJI_XXFIJI_AR014_F.ldt","OeBS","AR014"]
["LOOKUP_XXFIJI_XXFIJI_AR014_PARAM_BANK_COUR_F.ldt","OeBS","AR014"]
["LOOKUP_XXFIJI_XXFIJI_AR014_PARAM_BANK_DET_F.ldt","OeBS","AR014"]
["MSGV_XXFIJI_XXFIJI_AR014_F.ldt","OeBS","AR014"]
["VS_XXFIJI_AR014_MODE_REGLEMENT_F.ldt","OeBS","AR014"]
["cre_pack_XXFIJI_AR014_01_PKG.sql","OeBS","AR014"]
["CTRLFILEFCOMJX.xml","BIPUB","BI001"]
["FCOMJX.rtf","BIPUB","BI001"]
["CTRLFILEFCOMSC.xml","BIPUB","BI002"]
["FCOMSC.rtf","BIPUB","BI002"]
["CTRLFILEFPRIJX.xml","BIPUB","BI003"]
["FPRIJX.rtf","BIPUB","BI003"]
["CTRLFILEFACBSC.xml","BIPUB","BI004"]
["FACBSC.rtf","BIPUB","BI004"]
["CTRLFILERELOPE.xml","BIPUB","BI005"]
["RELOPE.rtf","BIPUB","BI005"]
["CTRLFILEFACVOL.xml","BIPUB","BI006"]
["FACVOL.rtf","BIPUB","BI006"]
["CTRLFILEREPREM.xml","BIPUB","BI007"]
["REPREM.rtf","BIPUB","BI007"]
["CTRLFILEREPCAC.xml","BIPUB","BI008"]
["REPCAC.rtf","BIPUB","BI008"]
["CTRLFILEREPFAC.xml","BIPUB","BI009"]
["REPFAC.rtf","BIPUB","BI009"]
["CTRLFILEREPCOM.xml","BIPUB","BI011"]
["REPCOM.rtf","BIPUB","BI011"]
["billdata.jar","ETL","CGEN_BILLDATA"]
["billdata.properties","ETL","CGEN_BILLDATA"]
["Billdata_to_XML.ksh","ETL","CGEN_BILLDATA"]
["log4j-1.2.16.jar","ETL","CGEN_BILLDATA"]
["WKF_T_STAG_STAG_BI_PUB_ETACOM.XML","ETL","CGEN_BIPUB001"]
["WKF_T_STAG_STAG_BI_PUB_ETACUM.XML","ETL","CGEN_BIPUB001"]
["WKF_T_STAG_STAG_BI_PUB_ETAFAC.XML","ETL","CGEN_BIPUB001"]
["WKF_T_STAG_STAG_BI_PUB_ETAREM.XML","ETL","CGEN_BIPUB001"]
["WKF_T_STAG_STAG_BI_PUB_FACBSC.XML","ETL","CGEN_BIPUB001"]
["WKF_T_STAG_STAG_BI_PUB_FACVOL.XML","ETL","CGEN_BIPUB001"]
["WKF_T_STAG_STAG_BI_PUB_FCOMJX.XML","ETL","CGEN_BIPUB001"]
["WKF_T_STAG_STAG_BI_PUB_FCOMSC.XML","ETL","CGEN_BIPUB001"]
["WKF_T_STAG_STAG_BI_PUB_RELOPE.XML","ETL","CGEN_BIPUB001"]
["pmserver_M_STAG_STAG_BI_PUB_ETACOM.prm","ETL","CGEN_BIPUB001"]
["pmserver_M_STAG_STAG_BI_PUB_ETACUM.prm","ETL","CGEN_BIPUB001"]
["pmserver_M_STAG_STAG_BI_PUB_ETAFAC.prm","ETL","CGEN_BIPUB001"]
["pmserver_M_STAG_STAG_BI_PUB_ETAREM.prm","ETL","CGEN_BIPUB001"]
["pmserver_M_STAG_STAG_BI_PUB_FACBSC.prm","ETL","CGEN_BIPUB001"]
["pmserver_M_STAG_STAG_BI_PUB_FACVOL.prm","ETL","CGEN_BIPUB001"]
["pmserver_M_STAG_STAG_BI_PUB_FCOMJX.prm","ETL","CGEN_BIPUB001"]
["pmserver_M_STAG_STAG_BI_PUB_FCOMSC.prm","ETL","CGEN_BIPUB001"]
["pmserver_M_STAG_STAG_BI_PUB_RELOPE.prm","ETL","CGEN_BIPUB001"]
["ins_tab_TRANSCO_SRC_GRATTAGE.sql","ETL","CGEN_BIPUB001"]
["cre_tab_TRANSCO_SRC_GRATTAGE.sql","ETL","CGEN_BIPUB001"]
["WKF_L_PROSYS_IRBM_TCP.XML","ETL","CGEN_CGEN001"]
["WKF_T_IRBM_PROSYS_TCP.XML","ETL","CGEN_CGEN001"]
["pmserver_STAG_PROSYS_TCP.prm","ETL","CGEN_CGEN001"]
["pmserver_STAG_STAG_TCP.prm","ETL","CGEN_CGEN001"]
["alim_tab_TR_CURRENCY.sql","ETL","CGEN_CGEN001"]
["alim_tab_TR_NAT_OPE_PREL_ID.sql","ETL","CGEN_CGEN001"]
["cre_get_terminal_id.sql","ETL","CGEN_CGEN001"]
["B_IRBM_PROSYS_32.ksh","ETL","CGEN_CGEN001"]
["Charge_Ano_PROSYS.sql","ETL","CGEN_CGEN001"]
["Detect_Rejets_PROSYS.sql","ETL","CGEN_CGEN001"]
["cre_tab_OUT_DETAILLANTS.sql","ETL","CGEN_CGEN001"]
["cre_tab_OUT_DONNEES.sql","ETL","CGEN_CGEN001"]
["cre_tab_TR_CURRENCY.sql","ETL","CGEN_CGEN001"]
["cre_tab_TR_NAT_OPE_PREL_ID.sql","ETL","CGEN_CGEN001"]
["WKF_T_STAG_STAG_XML_RO_1.XML","ETL","CGEN_CGEN002"]
["WKF_T_STAG_STAG_XML_RO_2.XML","ETL","CGEN_CGEN002"]
["alim_tab_REF_D_REFUSANT_PRELEVEMENT.sql","ETL","CGEN_CGEN002"]
["B_IRBM_SGINET_32.ksh","ETL","CGEN_CGEN002"]
["Charge_Rejets_SGINET.sql","ETL","CGEN_CGEN002"]
["Detect_Ano_SGINET.sql","ETL","CGEN_CGEN002"]
["cre_tab_IN_STRUCTURE_RO.sql","ETL","CGEN_CGEN002"]
["cre_tab_IN_VENTE_JEUX.sql","ETL","CGEN_CGEN002"]
["cre_tab_REF_D_REFUSANT_PRELEVEMENT.sql","ETL","CGEN_CGEN002"]
["WKF_E_IRBM_STAG_XML_GDC.XML","ETL","CGEN_CGEN003"]
["WKF_T_STAG_STAG_SUIV_TRAIT_GDC.XML","ETL","CGEN_CGEN003"]
["WKF_T_STAG_STAG_XML_GDC.XML","ETL","CGEN_CGEN003"]
["B_IRBM_GDC_32.ksh","ETL","CGEN_CGEN003"]
["Charge_Ano_GDC.sql","ETL","CGEN_CGEN003"]
["Detect_Rejets_GDC.sql","ETL","CGEN_CGEN003"]
["cre_tab_I_RBM_GDC_CHARGEMENT_DI.sql","ETL","CGEN_CGEN003"]
["cre_tab_O_GDC_CHARGEMENT_DI.sql","ETL","CGEN_CGEN003"]
["WKF_OeBS_SAGA_IMPAYES.XML","ETL","CGEN_CGEN004"]
["WKF_T_STAG_STAG_SUIV_TRAIT_SAGA.XML","ETL","CGEN_CGEN004"]
["B_OeBS_SAGA_IMPAYES_32.ksh","ETL","CGEN_CGEN004"]
["Charge_Ano_OeBS_SAGA_IMPAYES.sql","ETL","CGEN_CGEN004"]
["Detect_Rejet_OeBS_SAGA.sql","ETL","CGEN_CGEN004"]
["cre_tab_O_DELP_IMPAYES.sql","ETL","CGEN_CGEN004"]
["B_ARCH_RG1_AGG_COUR.ksh","ETL","CGEN_COMMUN"]
["B_ARCH_RG1_GDC.ksh","ETL","CGEN_COMMUN"]
["B_ARCH_RG1_IBM.ksh","ETL","CGEN_COMMUN"]
["B_ARCH_RG1_Prosys.ksh","ETL","CGEN_COMMUN"]
["B_ARCH_RG1_SGINet.ksh","ETL","CGEN_COMMUN"]
["B_ARCH_RG3_iRBM_AP.ksh","ETL","CGEN_COMMUN"]
["B_ARCH_RG3_iRBM_COMP.ksh","ETL","CGEN_COMMUN"]
["B_ARCH_RG4_iRBM_AR.ksh","ETL","CGEN_COMMUN"]
["CommonFunctions.ksh","ETL","CGEN_COMMUN"]
["LoadVariables.ksh","ETL","CGEN_COMMUN"]
["LoadVariables_iRBM.ksh","ETL","CGEN_COMMUN"]
["WKF_STAG_END_PROCESS_ID.XML","ETL","CGEN_CT001"]
["WKF_STAG_START_PROCESS_ID.XML","ETL","CGEN_CT001"]
["WKF_T_IRBM_OEBS_PC10.XML","ETL","CGEN_CT001"]
["WKF_T_IRBM_OEBS_PC103.XML","ETL","CGEN_CT001"]
["WKF_T_IRBM_OEBS_PC11.XML","ETL","CGEN_CT001"]
["WKF_T_IRBM_OEBS_PC3.XML","ETL","CGEN_CT001"]
["WKF_T_IRBM_OEBS_PC4.XML","ETL","CGEN_CT001"]
["WKF_T_IRBM_OEBS_PC8.XML","ETL","CGEN_CT001"]
["WKF_T_OEBS_OEBS_PC9.XML","ETL","CGEN_CT001"]
["WKF_T_OEBS_OEBS_PC9_FACTURATION.XML","ETL","CGEN_CT001"]
["WKF_T_STAG_OEBS_PC1.XML","ETL","CGEN_CT001"]
["WKF_T_STAG_OEBS_PC100.XML","ETL","CGEN_CT001"]
["WKF_T_STAG_OEBS_PC101.XML","ETL","CGEN_CT001"]
["WKF_T_STAG_OEBS_PC102.XML","ETL","CGEN_CT001"]
["WKF_T_STAG_OEBS_PC2.XML","ETL","CGEN_CT001"]
["WKF_T_STAG_OEBS_PC2_VALORISATION.XML","ETL","CGEN_CT001"]
["WKF_T_STAG_OEBS_PC5.XML","ETL","CGEN_CT001"]
["WKF_T_STAG_OEBS_PC6.XML","ETL","CGEN_CT001"]
["WKF_T_STAG_OEBS_PC7.XML","ETL","CGEN_CT001"]
["WKF_E_IRBM_AR_Factures.XML","ETL","CGEN_OEBS001"]
["WKF_L_OEBS_IRBM_AR_Distributions.XML","ETL","CGEN_OEBS001"]
["WKF_L_OEBS_IRBM_AR_Factures.XML","ETL","CGEN_OEBS001"]
["WKF_T_IRBM_AR_SUIV_TRAIT.XML","ETL","CGEN_OEBS001"]
["WKF_T_IRBM_OEBS_AR_Distrib_cle_client.XML","ETL","CGEN_OEBS001"]
["WKF_T_IRBM_OEBS_AR_Distrib_cle_prod.XML","ETL","CGEN_OEBS001"]
["WKF_T_IRBM_OEBS_AR_Factures.XML","ETL","CGEN_OEBS001"]
["B_IRBM_OEBS_AR_32.ksh","ETL","CGEN_OEBS001"]
["Charge_Ano_AR.sql","ETL","CGEN_OEBS001"]
["Detect_Rejets_AR.sql","ETL","CGEN_OEBS001"]
["cre_tab_IN_RA_INTERFACE_LINES_ALL.sql","ETL","CGEN_OEBS001"]
["cre_tab_O_RA_INTERFACE_DISTRIBUTIONS_ALL.sql","ETL","CGEN_OEBS001"]
["cre_tab_OUT_RA_INTERFACE_LINES_ALL.sql","ETL","CGEN_OEBS001"]
["WKF_E_IRBM_AP_EnTetes_Factures.XML","ETL","CGEN_OEBS002"]
["WKF_E_IRBM_AP_Lignes_Factures.XML","ETL","CGEN_OEBS002"]
["WKF_L_OEBS_IRBM_AP_EnTetes_Factures.XML","ETL","CGEN_OEBS002"]
["WKF_L_OEBS_IRBM_AP_Lignes_Factures.XML","ETL","CGEN_OEBS002"]
["WKF_T_IRBM_AP_SUIV_TRAIT.XML","ETL","CGEN_OEBS002"]
["WKF_T_IRBM_OEBS_AP_EnTetes_Factures.XML","ETL","CGEN_OEBS002"]
["WKF_T_IRBM_OEBS_AP_Lignes_Factures.XML","ETL","CGEN_OEBS002"]
["B_IRBM_OEBS_AP_32.ksh","ETL","CGEN_OEBS002"]
["Charge_Ano_AP.sql","ETL","CGEN_OEBS002"]
["Detect_Rejets_AP.sql","ETL","CGEN_OEBS002"]
["cre_tab_IN_AP_INVOICE_LINES_INTERFACE.sql","ETL","CGEN_OEBS002"]
["cre_tab_IN_AP_INVOICES_INTERFACE.sql","ETL","CGEN_OEBS002"]
["cre_tab_OUT_AP_INVOICE_LINES_INTERFACE.sql","ETL","CGEN_OEBS002"]
["cre_tab_OUT_AP_INVOICES_INTERFACE.sql","ETL","CGEN_OEBS002"]
["WKF_E_IRBM_COMP_AP.XML","ETL","CGEN_OEBS003"]
["WKF_E_IRBM_COMP_AR.XML","ETL","CGEN_OEBS003"]
["WKF_E_IRBM_COMP_Lots.XML","ETL","CGEN_OEBS003"]
["WKF_L_OEBS_IRBM_COMP_AP.XML","ETL","CGEN_OEBS003"]
["WKF_L_OEBS_IRBM_COMP_AP_UPD_PAY.XML","ETL","CGEN_OEBS003"]
["WKF_L_OEBS_IRBM_COMP_AR.XML","ETL","CGEN_OEBS003"]
["WKF_L_OEBS_IRBM_COMP_Lots.XML","ETL","CGEN_OEBS003"]
["WKF_T_IRBM_COMP_SUIV_TRAIT.XML","ETL","CGEN_OEBS003"]
["WKF_T_IRBM_OEBS_COMP_AP.XML","ETL","CGEN_OEBS003"]
["WKF_T_IRBM_OEBS_COMP_AR.XML","ETL","CGEN_OEBS003"]
["WKF_T_IRBM_OEBS_COMP_Lots.XML","ETL","CGEN_OEBS003"]
["B_IRBM_OEBS_COMP_32.ksh","ETL","CGEN_OEBS003"]
["Charge_Ano_COMP.sql","ETL","CGEN_OEBS003"]
["Detect_Rejets_COMP.sql","ETL","CGEN_OEBS003"]
["cre_tab_IN_FUN_NET_AP_INVS_ALL.sql","ETL","CGEN_OEBS003"]
["cre_tab_IN_FUN_NET_AR_TXNS_ALL.sql","ETL","CGEN_OEBS003"]
["cre_tab_IN_FUN_NET_BATCHES_ALL.sql","ETL","CGEN_OEBS003"]
["cre_tab_OUT_FUN_NET_AP_INVS_ALL.sql","ETL","CGEN_OEBS003"]
["cre_tab_OUT_FUN_NET_AR_TXNS_ALL.sql","ETL","CGEN_OEBS003"]
["cre_tab_OUT_FUN_NET_BATCHES_ALL.sql","ETL","CGEN_OEBS003"]
["WKF_L_SAGA_DELPHES_TIERS.XML","ETL","CGEN_OEBS004"]
["WKF_L_SAGA_DELPHES_TIERS_B.XML","ETL","CGEN_OEBS004"]
["WKF_T_OEBS_STAG_RETOUR.XML","ETL","CGEN_OEBS004"]
["WKF_T_SAGA_DELPHES_AGENCES.XML","ETL","CGEN_OEBS004"]
["WKF_T_SAGA_DELPHES_BANQUES.XML","ETL","CGEN_OEBS004"]
["WKF_T_SAGA_DELPHES_C_CONTACTS.XML","ETL","CGEN_OEBS004"]
["WKF_T_SAGA_DELPHES_C_ENTETES.XML","ETL","CGEN_OEBS004"]
["WKF_T_SAGA_DELPHES_C_ENTETES_DET.XML","ETL","CGEN_OEBS004"]
["WKF_T_SAGA_DELPHES_C_METHOD_PAIM.XML","ETL","CGEN_OEBS004"]
["WKF_T_SAGA_DELPHES_C_PROFIL.XML","ETL","CGEN_OEBS004"]
["WKF_T_SAGA_DELPHES_C_PROFIL_DET.XML","ETL","CGEN_OEBS004"]
["WKF_T_SAGA_DELPHES_C_RELATIONS.XML","ETL","CGEN_OEBS004"]
["WKF_T_SAGA_DELPHES_COMPTES.XML","ETL","CGEN_OEBS004"]
["WKF_T_SAGA_DELPHES_COURTIER.XML","ETL","CGEN_OEBS004"]
["WKF_T_SAGA_DELPHES_DETAILLANTS.XML","ETL","CGEN_OEBS004"]
["WKF_T_SAGA_DELPHES_EXPLOITATIONS.XML","ETL","CGEN_OEBS004"]
["WKF_T_SAGA_DELPHES_F_CONTACTS.XML","ETL","CGEN_OEBS004"]
["WKF_T_SAGA_DELPHES_F_ENTETES.XML","ETL","CGEN_OEBS004"]
["WKF_T_SAGA_DELPHES_F_ENTETES_DET.XML","ETL","CGEN_OEBS004"]
["WKF_T_SAGA_DELPHES_F_SITES.XML","ETL","CGEN_OEBS004"]
["WKF_T_SAGA_DELPHES_GIE.XML","ETL","CGEN_OEBS004"]
["WKF_T_SAGA_DELPHES_PDV.XML","ETL","CGEN_OEBS004"]
["WKF_T_SAGA_DELPHES_PIVOT_LISTE_REJET.XML","ETL","CGEN_OEBS004"]
["WKF_T_SAGA_DELPHES_SUIVI_TRAIT.XML","ETL","CGEN_OEBS004"]
["WKF_T_STAG_STAG_C_UPD_ERR_1.XML","ETL","CGEN_OEBS004"]
["WKF_T_STAG_STAG_C_UPD_ERR_2.XML","ETL","CGEN_OEBS004"]
["WKF_T_STAG_STAG_C_UPD_ERR_3.XML","ETL","CGEN_OEBS004"]
["WKF_T_STAG_STAG_C_UPD_ERR_4.XML","ETL","CGEN_OEBS004"]
["WKF_T_STAG_STAG_C_UPD_ERR_5.XML","ETL","CGEN_OEBS004"]
["WKF_T_STAG_STAG_F_UPD_ERR_1.XML","ETL","CGEN_OEBS004"]
["WKF_T_STAG_STAG_F_UPD_ERR_2.XML","ETL","CGEN_OEBS004"]
["WKF_T_STAG_STAG_F_UPD_ERR_3.XML","ETL","CGEN_OEBS004"]
["WKF_T_STAG_STAG_TIERS_UPD_ERR_1.XML","ETL","CGEN_OEBS004"]
["WKF_T_STAG_STAG_TIERS_UPD_ERR_2.XML","ETL","CGEN_OEBS004"]
["WKF_T_STAG_STAG_TIERS_UPD_ERR_3.XML","ETL","CGEN_OEBS004"]
["WKF_T_STAG_STAG_TIERS_UPD_ERR_4.XML","ETL","CGEN_OEBS004"]
["pmserver_M_STAG_STAG_COURTIER_DELPHES.prm","ETL","CGEN_OEBS004"]
["pmserver_M_STAG_STAG_DETAILLANTS_DELPHES.prm","ETL","CGEN_OEBS004"]
["pmserver_M_STAG_STAG_EXPL_DELPHES.prm","ETL","CGEN_OEBS004"]
["pmserver_M_STAG_STAG_GIE_DELPHES.prm","ETL","CGEN_OEBS004"]
["pmserver_M_STAG_STAG_PDV_DELPHES.prm","ETL","CGEN_OEBS004"]
["pmserver_M_STAG_STAG_SUIV_TRAIT_SAGA_TIERS.prm","ETL","CGEN_OEBS004"]
["B_SAGA_DELPHES_TIERS_32.ksh","ETL","CGEN_OEBS004"]
["Charge_Rejets_TIERS_DELPHES.sql","ETL","CGEN_OEBS004"]
["Detect_Rejets_TIERS_DELPHES.sql","ETL","CGEN_OEBS004"]
["cre_tab_O_PIVOT_ACTEURS.sql","ETL","CGEN_OEBS004"]
["cre_tab_O_PIVOT_EXPLOITATIONS.sql","ETL","CGEN_OEBS004"]
["cre_tab_O_PIVOT_PDV.sql","ETL","CGEN_OEBS004"]
["cre_tab_O_PIVOT_TIERS_COMPTABLE.sql","ETL","CGEN_OEBS004"]
["cre_tab_O_PIVOT_TIERS_REJET.sql","ETL","CGEN_OEBS004"]
["cre_tab_O_RA_CONTACT_PHONES_INT_ALL.sql","ETL","CGEN_OEBS004"]
["cre_tab_O_RA_CUST_PAY_METHOD_INT_ALL.sql","ETL","CGEN_OEBS004"]
["cre_tab_O_RA_CUSTOMER_PROFILES_INT_ALL.sql","ETL","CGEN_OEBS004"]
["cre_tab_O_RA_CUSTOMERS_INTERFACE_ALL.sql","ETL","CGEN_OEBS004"]
["cre_tab_O_XXFIJI_AP013_BANK_ACCT.sql","ETL","CGEN_OEBS004"]
["cre_tab_O_XXFIJI_AP013_BANK_BRANCHES.sql","ETL","CGEN_OEBS004"]
["cre_tab_O_XXFIJI_AP013_BANKS.sql","ETL","CGEN_OEBS004"]
["cre_tab_O_XXFIJI_AP014_SUP_SITE_CONTAC.sql","ETL","CGEN_OEBS004"]
["cre_tab_O_XXFIJI_AP014_SUPPLIER_SITES.sql","ETL","CGEN_OEBS004"]
["cre_tab_O_XXFIJI_AP014_SUPPLIERS.sql","ETL","CGEN_OEBS004"]
["cre_tab_O_XXFIJI_AR007_CUST_RELATIONSHI.sql","ETL","CGEN_OEBS004"]
["WKF_T_OEBS_IRBM_TIERS.XML","ETL","CGEN_RBM001"]
["WKF_T_OEBS_IRBM_TIERS_DETECT_ANO.XML","ETL","CGEN_RBM001"]
["WKF_T_OEBS_IRBM_TIERS_DETECT_ANO_MAJ.XML","ETL","CGEN_RBM001"]
["WKF_T_OEBS_IRBM_TIERS_MAJ.XML","ETL","CGEN_RBM001"]
["pmserver_M_STAG_STAG_TIERS_IRBM.prm","ETL","CGEN_RBM001"]
["pmserver_M_STAG_STAG_TIERS_IRBM_MAJ.prm","ETL","CGEN_RBM001"]
["init_Tiers_FIJI.sql","ETL","CGEN_RBM001"]
["ins_LIST_ATTRIBUTS.sql","ETL","CGEN_RBM001"]
["ins_MATRICE_ASSO_CMPT_EVS.sql","ETL","CGEN_RBM001"]
["ins_MATRICE_ASSO_CMPT_PRD.sql","ETL","CGEN_RBM001"]
["ins_MATRICE_ASSO_PRD_EVTYPE.sql","ETL","CGEN_RBM001"]
["ins_MATRICE_ASSO_TIERS_CMPT.sql","ETL","CGEN_RBM001"]
["ins_MATRICE_CODE_PAYS_IRBM.sql","ETL","CGEN_RBM001"]
["ins_MATRICE_COMPTES.sql","ETL","CGEN_RBM001"]
["ins_MATRICE_CPS.sql","ETL","CGEN_RBM001"]
["ins_MATRICE_CPS_ACCOUNT.sql","ETL","CGEN_RBM001"]
["ins_MATRICE_CREDITCLASS.sql","ETL","CGEN_RBM001"]
["ins_MATRICE_DEVISE.sql","ETL","CGEN_RBM001"]
["ins_MATRICE_INPUT_TIERS.sql","ETL","CGEN_RBM001"]
["ins_MATRICE_PERIOD_FACT.sql","ETL","CGEN_RBM001"]
["cre_pack_XXFIJI_ETL_001_PKG.sql","ETL","CGEN_RBM001"]
["cre_pack_XXFIJI_ETL_002_PKG.sql","ETL","CGEN_RBM001"]
["cre_pack_XXFIJI_ETL_003_PKG.sql","ETL","CGEN_RBM001"]
["cre_seq_XXFIJI_SAGA_RUN_ID_SEQ.sql","ETL","CGEN_RBM001"]
["cre_seq_XXFIJI_SUIVI_001_REJET_SEQ.sql","ETL","CGEN_RBM001"]
["B_IRBM_TIERS_22.ksh","ETL","CGEN_RBM001"]
["B_IRBM_TIERS_24.ksh","ETL","CGEN_RBM001"]
["B_IRBM_TIERS_42.ksh","ETL","CGEN_RBM001"]
["B_IRBM_TIERS_44.ksh","ETL","CGEN_RBM001"]
["XXFIJI_MATRICE_CPS_RAINBOW.sql","ETL","CGEN_RBM001"]
["cre_tab_LIST_ATTRIBUTS.sql","ETL","CGEN_RBM001"]
["cre_tab_MATRICE_ASSO_CMPT_EVS.sql","ETL","CGEN_RBM001"]
["cre_tab_MATRICE_ASSO_CMPT_PRD.sql","ETL","CGEN_RBM001"]
["cre_tab_MATRICE_ASSO_PRD_EVTYPE.sql","ETL","CGEN_RBM001"]
["cre_tab_MATRICE_ASSO_TIERS_CMPT.sql","ETL","CGEN_RBM001"]
["cre_tab_MATRICE_CODE_PAYS_IRBM.sql","ETL","CGEN_RBM001"]
["cre_tab_MATRICE_COMPTES.sql","ETL","CGEN_RBM001"]
["cre_tab_MATRICE_CPS.sql","ETL","CGEN_RBM001"]
["cre_tab_MATRICE_CPS_ACCOUNT.sql","ETL","CGEN_RBM001"]
["cre_tab_MATRICE_CREDITCLASS.sql","ETL","CGEN_RBM001"]
["cre_tab_MATRICE_DEVISE.sql","ETL","CGEN_RBM001"]
["cre_tab_MATRICE_INPUT_TIERS.sql","ETL","CGEN_RBM001"]
["cre_tab_MATRICE_PERIODE_FACT.sql","ETL","CGEN_RBM001"]
["cre_tab_PARAM_ACCOUNT_CREA.sql","ETL","CGEN_RBM001"]
["cre_tab_PARAM_ACCOUNT_MAJ.sql","ETL","CGEN_RBM001"]
["cre_tab_PARAM_ASSO_EVS_PLAN_CREA.sql","ETL","CGEN_RBM001"]
["cre_tab_PARAM_ASSO_EVS_PLAN_MAJ.sql","ETL","CGEN_RBM001"]
["cre_tab_PARAM_ASSO_EVT_CREA.sql","ETL","CGEN_RBM001"]
["cre_tab_PARAM_ASSO_EVT_MAJ.sql","ETL","CGEN_RBM001"]
["cre_tab_PARAM_ASSO_PRD_CREA.sql","ETL","CGEN_RBM001"]
["cre_tab_PARAM_ASSO_PRD_MAJ.sql","ETL","CGEN_RBM001"]
["cre_tab_PARAM_ATTRIB.sql","ETL","CGEN_RBM001"]
["cre_tab_PARAM_ATTRIB_MAJ.sql","ETL","CGEN_RBM001"]
["cre_tab_PARAM_CLIENT_CREA.sql","ETL","CGEN_RBM001"]
["cre_tab_PARAM_CLIENT_MAJ.sql","ETL","CGEN_RBM001"]
["cre_tab_PARAM_EVSUM_CREA.sql","ETL","CGEN_RBM001"]
["cre_tab_PARAM_EVSUM_MAJ.sql","ETL","CGEN_RBM001"]
["cre_tab_PARAM_PREL_CREA.sql","ETL","CGEN_RBM001"]
["cre_tab_PARAM_PREL_MAJ.sql","ETL","CGEN_RBM001"]
["cre_tab_XXFIJI_SUIVI_001_REJET.sql","ETL","CGEN_RBM001"]
["WKF_T_KHEOPS_IRBM_LOCAM.XML","ETL","CGEN_RBM002"]
["WKF_T_KHEOPS_IRBM_LOCAM_DETECT_ANO.XML","ETL","CGEN_RBM002"]
["WKF_T_KHEOPS_IRBM_SUIVI_TRAIT.XML","ETL","CGEN_RBM002"]
["pmserver_M_STAG_STAG_LOCAM.prm","ETL","CGEN_RBM002"]
["pmserver_M_STAG_STAG_SUIV_TRAIT_KHEOPS.prm","ETL","CGEN_RBM002"]
["cre_pack_XXFIJI_KHEOPS_001_PKG.sql","ETL","CGEN_RBM002"]
["cre_seq_XXFIJI_KHEOPS_RUN_ID_SEQ.sql","ETL","CGEN_RBM002"]
["cre_seq_XXFIJI_SUIVI_002_REJET_SEQ.sql","ETL","CGEN_RBM002"]
["B_KHEOPS_IRBM_LOCAM_32.ksh","ETL","CGEN_RBM002"]
["B_KHEOPS_IRBM_LOCAM_42.ksh","ETL","CGEN_RBM002"]
["cre_tab_PARAM_LOCAMOB_AJOUT.sql","ETL","CGEN_RBM002"]
["cre_tab_PARAM_LOCAMOB_RETRAIT.sql","ETL","CGEN_RBM002"]
["cre_tab_TMP_STAG_AREA_SUIVI_CHARGEMENT.sql","ETL","CGEN_RBM002"]
["cre_tab_XXFIJI_SUIVI_002_REJET.sql","ETL","CGEN_RBM002"]
["WKF_L_IRBM_AGG_COUR.XML","ETL","CGEN_RBM003"]
["WKF_L_IRBM_GDC_GRAT_CA_Courtier.XML","ETL","CGEN_RBM003"]
["WKF_L_IRBM_PROSYS_Carte_Ariane.XML","ETL","CGEN_RBM003"]
["WKF_L_IRBM_PROSYS_JTR_Annulation_Jeu.XML","ETL","CGEN_RBM003"]
["WKF_L_IRBM_PROSYS_JTR_Annulation_Paiement.XML","ETL","CGEN_RBM003"]
["WKF_L_IRBM_PROSYS_JTR_Annulation_Promotion.XML","ETL","CGEN_RBM003"]
["WKF_L_IRBM_PROSYS_JTR_Paiement.XML","ETL","CGEN_RBM003"]
["WKF_L_IRBM_PROSYS_JTR_Prise_De_Jeu.XML","ETL","CGEN_RBM003"]
["WKF_L_IRBM_PROSYS_JTR_Promotion.XML","ETL","CGEN_RBM003"]
["WKF_L_IRBM_PROSYS_JTR_Regularisation.XML","ETL","CGEN_RBM003"]
["WKF_L_IRBM_SGINET_GRAT_AjustLots_Courtier_DC.XML","ETL","CGEN_RBM003"]
["WKF_L_IRBM_SGINET_GRAT_CA_Detaillant.XML","ETL","CGEN_RBM003"]
["WKF_L_IRBM_SGINET_GRAT_CA_Force_Courtier.XML","ETL","CGEN_RBM003"]
["WKF_L_IRBM_SGINET_GRAT_Gratuit.XML","ETL","CGEN_RBM003"]
["WKF_L_IRBM_SGINET_GRAT_Lots.XML","ETL","CGEN_RBM003"]
["WKF_L_IRBM_SGINET_GRAT_Regularisation.XML","ETL","CGEN_RBM003"]
["WKF_L_IRBM_SGINET_GRAT_Tickets_Defect.XML","ETL","CGEN_RBM003"]
["WKF_L_IRBM_SGINET_GRAT_Tickets_Rest.XML","ETL","CGEN_RBM003"]
["WKF_L_IRBM_SGINET_GRAT_Vol_Livrets.XML","ETL","CGEN_RBM003"]
["WKF_T_GDC_IRBM_GRAT_AjustLots_Courtier_DC.XML","ETL","CGEN_RBM003"]
["WKF_T_GDC_IRBM_GRAT_CA_Courtier.XML","ETL","CGEN_RBM003"]
["WKF_T_GDC_IRBM_GRAT_CA_Courtier_COUR.XML","ETL","CGEN_RBM003"]
["WKF_T_GDC_IRBM_GRAT_Regularisation.XML","ETL","CGEN_RBM003"]
["WKF_T_GDC_IRBM_GRAT_Regularisation_COUR.XML","ETL","CGEN_RBM003"]
["WKF_T_PROSYS_IRBM_Carte_Ariane.XML","ETL","CGEN_RBM003"]
["WKF_T_PROSYS_IRBM_Carte_Ariane_COUR.XML","ETL","CGEN_RBM003"]
["WKF_T_PROSYS_IRBM_JTR_A_Promotion_COUR.XML","ETL","CGEN_RBM003"]
["WKF_T_PROSYS_IRBM_JTR_Annulation_Jeu.XML","ETL","CGEN_RBM003"]
["WKF_T_PROSYS_IRBM_JTR_Annulation_Jeu_COUR.XML","ETL","CGEN_RBM003"]
["WKF_T_PROSYS_IRBM_JTR_Annulation_Paiement.XML","ETL","CGEN_RBM003"]
["WKF_T_PROSYS_IRBM_JTR_Annulation_Promotion.XML","ETL","CGEN_RBM003"]
["WKF_T_PROSYS_IRBM_JTR_Paiement.XML","ETL","CGEN_RBM003"]
["WKF_T_PROSYS_IRBM_JTR_Prise_De_Jeu.XML","ETL","CGEN_RBM003"]
["WKF_T_PROSYS_IRBM_JTR_Prise_De_Jeu_COUR.XML","ETL","CGEN_RBM003"]
["WKF_T_PROSYS_IRBM_JTR_Promotion.XML","ETL","CGEN_RBM003"]
["WKF_T_PROSYS_IRBM_JTR_Promotion_COUR.XML","ETL","CGEN_RBM003"]
["WKF_T_PROSYS_IRBM_JTR_Regularisation.XML","ETL","CGEN_RBM003"]
["WKF_T_PROSYS_IRBM_JTR_SUIVI_TRAIT.XML","ETL","CGEN_RBM003"]
["WKF_T_SGINET_IRBM_GRAT_CA_Detaillant.XML","ETL","CGEN_RBM003"]
["WKF_T_SGINET_IRBM_GRAT_CA_Detaillant_COUR.XML","ETL","CGEN_RBM003"]
["WKF_T_SGINET_IRBM_GRAT_CA_Force_Courtier.XML","ETL","CGEN_RBM003"]
["WKF_T_SGINET_IRBM_GRAT_CA_Force_Courtier_COUR.XML","ETL","CGEN_RBM003"]
["WKF_T_SGINET_IRBM_GRAT_Gratuit.XML","ETL","CGEN_RBM003"]
["WKF_T_SGINET_IRBM_GRAT_Gratuit_COUR.XML","ETL","CGEN_RBM003"]
["WKF_T_SGINET_IRBM_GRAT_Lots.XML","ETL","CGEN_RBM003"]
["WKF_T_SGINET_IRBM_GRAT_SUIVI_TRAIT.XML","ETL","CGEN_RBM003"]
["WKF_T_SGINET_IRBM_GRAT_Tickets_Defect.XML","ETL","CGEN_RBM003"]
["WKF_T_SGINET_IRBM_GRAT_Tickets_Defect_COUR.XML","ETL","CGEN_RBM003"]
["WKF_T_SGINET_IRBM_GRAT_Tickets_Rest.XML","ETL","CGEN_RBM003"]
["WKF_T_SGINET_IRBM_GRAT_Tickets_Rest_COUR.XML","ETL","CGEN_RBM003"]
["WKF_T_SGINET_IRBM_GRAT_Vol_Livrets.XML","ETL","CGEN_RBM003"]
["pmserver_M_STAG_IRBM_AGG_COUR.prm","ETL","CGEN_RBM003"]
["pmserver_M_STAG_IRBM_Ariane.prm","ETL","CGEN_RBM003"]
["pmserver_M_STAG_IRBM_GRA_CA_Courtier.prm","ETL","CGEN_RBM003"]
["pmserver_M_STAG_IRBM_GRAT_AjustLots_Courtier_DC.prm","ETL","CGEN_RBM003"]
["pmserver_M_STAG_IRBM_GRAT_CA_Detaillant.prm","ETL","CGEN_RBM003"]
["pmserver_M_STAG_IRBM_GRAT_CA_Force_Courtier.prm","ETL","CGEN_RBM003"]
["pmserver_M_STAG_IRBM_GRAT_Gratuit.prm","ETL","CGEN_RBM003"]
["pmserver_M_STAG_IRBM_GRAT_Lots.prm","ETL","CGEN_RBM003"]
["pmserver_M_STAG_IRBM_GRAT_Regularisation.prm","ETL","CGEN_RBM003"]
["pmserver_M_STAG_IRBM_GRAT_Tickets_Defect.prm","ETL","CGEN_RBM003"]
["pmserver_M_STAG_IRBM_GRAT_Tickets_Rest.prm","ETL","CGEN_RBM003"]
["pmserver_M_STAG_IRBM_GRAT_Vol_Livrets.prm","ETL","CGEN_RBM003"]
["pmserver_M_STAG_IRBM_JTR_Annulation_Jeu.prm","ETL","CGEN_RBM003"]
["pmserver_M_STAG_IRBM_JTR_Annulation_Paiement.prm","ETL","CGEN_RBM003"]
["pmserver_M_STAG_IRBM_JTR_Annulation_Promotion.prm","ETL","CGEN_RBM003"]
["pmserver_M_STAG_IRBM_JTR_Paiement.prm","ETL","CGEN_RBM003"]
["pmserver_M_STAG_IRBM_JTR_Prise_De_Jeu.prm","ETL","CGEN_RBM003"]
["pmserver_M_STAG_IRBM_JTR_Promotion.prm","ETL","CGEN_RBM003"]
["pmserver_M_STAG_IRBM_JTR_Regularisation.prm","ETL","CGEN_RBM003"]
["pmserver_M_STAG_STAG_Ariane.prm","ETL","CGEN_RBM003"]
["pmserver_M_STAG_STAG_GRAT_AJUSLOTS_COURTIER_DC.prm","ETL","CGEN_RBM003"]
["pmserver_M_STAG_STAG_GRAT_CA_COURTIER.prm","ETL","CGEN_RBM003"]
["pmserver_M_STAG_STAG_GRAT_CA_Detaillant.prm","ETL","CGEN_RBM003"]
["pmserver_M_STAG_STAG_GRAT_CA_Force_Courtier.prm","ETL","CGEN_RBM003"]
["pmserver_M_STAG_STAG_GRAT_Gratuit.prm","ETL","CGEN_RBM003"]
["pmserver_M_STAG_STAG_GRAT_Lots.prm","ETL","CGEN_RBM003"]
["pmserver_M_STAG_STAG_GRAT_REGULARISATION.prm","ETL","CGEN_RBM003"]
["pmserver_M_STAG_STAG_GRAT_TICKETS_DEFECT.prm","ETL","CGEN_RBM003"]
["pmserver_M_STAG_STAG_GRAT_TICKETS_REST.prm","ETL","CGEN_RBM003"]
["pmserver_M_STAG_STAG_GRAT_VOL_LIVRETS.prm","ETL","CGEN_RBM003"]
["pmserver_M_STAG_STAG_JTR_ANNULATION_JEU.prm","ETL","CGEN_RBM003"]
["pmserver_M_STAG_STAG_JTR_ANNULATION_PAIEMENT.prm","ETL","CGEN_RBM003"]
["pmserver_M_STAG_STAG_JTR_ANNULATION_PROMOTION.prm","ETL","CGEN_RBM003"]
["pmserver_M_STAG_STAG_JTR_APD_ANNULATION_JEU.prm","ETL","CGEN_RBM003"]
["pmserver_M_STAG_STAG_JTR_APD_PRISE_DE_JEU.prm","ETL","CGEN_RBM003"]
["pmserver_M_STAG_STAG_JTR_PAIEMENT.prm","ETL","CGEN_RBM003"]
["pmserver_M_STAG_STAG_JTR_PRISE_DE_JEU.prm","ETL","CGEN_RBM003"]
["pmserver_M_STAG_STAG_JTR_PROMOTION.prm","ETL","CGEN_RBM003"]
["pmserver_M_STAG_STAG_JTR_REGULARISATION.prm","ETL","CGEN_RBM003"]
["pmserver_M_STAG_STAG_SUIV_TRAIT_GRAT.prm","ETL","CGEN_RBM003"]
["ins_tab_TRANSCO_CANAL_DISTR.sql","ETL","CGEN_RBM003"]
["B_SJEUX_IRBM_12.ksh","ETL","CGEN_RBM003"]
["B_SJEUX_IRBM_AGG_COUR_32.ksh","ETL","CGEN_RBM003"]
["B_SJEUX_IRBM_ARIANE_32.ksh","ETL","CGEN_RBM003"]
["B_SJEUX_IRBM_GRA_AJUSTLOTS_32.ksh","ETL","CGEN_RBM003"]
["B_SJEUX_IRBM_GRA_CACOURDC_32.ksh","ETL","CGEN_RBM003"]
["B_SJEUX_IRBM_GRA_CACOURFORCE_32.ksh","ETL","CGEN_RBM003"]
["B_SJEUX_IRBM_GRA_CADET_32.ksh","ETL","CGEN_RBM003"]
["B_SJEUX_IRBM_GRA_LOTS_32.ksh","ETL","CGEN_RBM003"]
["B_SJEUX_IRBM_GRA_REGUL_32.ksh","ETL","CGEN_RBM003"]
["B_SJEUX_IRBM_GRA_TICKDEFECT_32.ksh","ETL","CGEN_RBM003"]
["B_SJEUX_IRBM_GRA_TICKGRAT_32.ksh","ETL","CGEN_RBM003"]
["B_SJEUX_IRBM_GRA_TICKRESTIT_32.ksh","ETL","CGEN_RBM003"]
["B_SJEUX_IRBM_GRA_VOLSLIVR_32.ksh","ETL","CGEN_RBM003"]
["B_SJEUX_IRBM_JTR_ANPAIELOT_32.ksh","ETL","CGEN_RBM003"]
["B_SJEUX_IRBM_JTR_ANPRISEJEU_32.ksh","ETL","CGEN_RBM003"]
["B_SJEUX_IRBM_JTR_ANPROPRISEJEU_32.ksh","ETL","CGEN_RBM003"]
["B_SJEUX_IRBM_JTR_PAIELOT_32.ksh","ETL","CGEN_RBM003"]
["B_SJEUX_IRBM_JTR_PRISEJEU_32.ksh","ETL","CGEN_RBM003"]
["B_SJEUX_IRBM_JTR_PROPRISEJEU_32.ksh","ETL","CGEN_RBM003"]
["B_SJEUX_IRBM_JTR_REGUL_32.ksh","ETL","CGEN_RBM003"]
["Concat_EventControlFiles.sh","ETL","CGEN_RBM003"]
["Charge_Ano_CACOURDC.sql","ETL","CGEN_RBM003"]
["Charge_Ano_GRAT_AjustLots_Courtier_DC.sql","ETL","CGEN_RBM003"]
["Charge_Ano_GRAT_CA_Detaillant.sql","ETL","CGEN_RBM003"]
["Charge_Ano_GRAT_CA_Force_Courtier.sql","ETL","CGEN_RBM003"]
["Charge_Ano_GRAT_GLOTSC.sql","ETL","CGEN_RBM003"]
["Charge_Ano_GRAT_GLOTSV.sql","ETL","CGEN_RBM003"]
["Charge_Ano_GRAT_Gratuit.sql","ETL","CGEN_RBM003"]
["Charge_Ano_GRAT_Lots.sql","ETL","CGEN_RBM003"]
["Charge_Ano_GRAT_Regularisation.sql","ETL","CGEN_RBM003"]
["Charge_Ano_GRAT_Tickets_Defect.sql","ETL","CGEN_RBM003"]
["Charge_Ano_GRAT_Tickets_Rest.sql","ETL","CGEN_RBM003"]
["Charge_Ano_GRAT_Vol_Livrets.sql","ETL","CGEN_RBM003"]
["Charge_Ano_JTR_Annulation_Jeu.sql","ETL","CGEN_RBM003"]
["Charge_Ano_JTR_Annulation_Paiement.sql","ETL","CGEN_RBM003"]
["Charge_Ano_JTR_Annulation_Promotion.sql","ETL","CGEN_RBM003"]
["Charge_Ano_JTR_GLOTSC.sql","ETL","CGEN_RBM003"]
["Charge_Ano_JTR_GLOTSV.sql","ETL","CGEN_RBM003"]
["Charge_Ano_JTR_Paiement.sql","ETL","CGEN_RBM003"]
["Charge_Ano_JTR_Prise_De_Jeu","ETL","CGEN_RBM003"]
["Charge_Ano_JTR_Promotion.sql","ETL","CGEN_RBM003"]
["Charge_Ano_JTR_Regularisation.sql","ETL","CGEN_RBM003"]
["Charge_Rejets_AGG_COUR.sql","ETL","CGEN_RBM003"]
["Charge_Rejets_Ariane.sql","ETL","CGEN_RBM003"]
["Detect_Rejets_AGG_COUR.sql","ETL","CGEN_RBM003"]
["Detect_Rejets_Ariane.sql","ETL","CGEN_RBM003"]
["Detect_Rejets_GRA_AJUSTLOTS.sql","ETL","CGEN_RBM003"]
["Detect_Rejets_GRA_CACOURDC.sql","ETL","CGEN_RBM003"]
["Detect_Rejets_GRA_CACOURFORCE.sql","ETL","CGEN_RBM003"]
["Detect_Rejets_GRA_CADET.sql","ETL","CGEN_RBM003"]
["Detect_Rejets_GRA_LOTS.sql","ETL","CGEN_RBM003"]
["Detect_Rejets_GRA_REGUL.sql","ETL","CGEN_RBM003"]
["Detect_Rejets_GRA_TICKDEFECT.sql","ETL","CGEN_RBM003"]
["Detect_Rejets_GRA_TICKGRAT.sql","ETL","CGEN_RBM003"]
["Detect_Rejets_GRA_VOLSLIVR.sql","ETL","CGEN_RBM003"]
["Detect_Rejets_GRAT_GLOTSC.sql","ETL","CGEN_RBM003"]
["Detect_Rejets_GRAT_GLOTSV.sql","ETL","CGEN_RBM003"]
["Detect_Rejets_JTR_ANPAIELOT.sql","ETL","CGEN_RBM003"]
["Detect_Rejets_JTR_ANPRISEJEU.sql","ETL","CGEN_RBM003"]
["Detect_Rejets_JTR_ANPROPRISEJEU.sql","ETL","CGEN_RBM003"]
["Detect_Rejets_JTR_GLOTSC.sql","ETL","CGEN_RBM003"]
["Detect_Rejets_JTR_GLOTSV.sql","ETL","CGEN_RBM003"]
["Detect_Rejets_JTR_PAIELOT.sql","ETL","CGEN_RBM003"]
["Detect_Rejets_JTR_PRISEJEU.sql","ETL","CGEN_RBM003"]
["Detect_Rejets_JTR_PROPRISEJEU.sql","ETL","CGEN_RBM003"]
["Detect_Rejets_JTR_REGUL.sql","ETL","CGEN_RBM003"]
["Trunc_AGG_COUR.sql","ETL","CGEN_RBM003"]
["cre_tab_OUT_CJEU_REGUL_GRATTAGE","ETL","CGEN_RBM003"]
["cre_tab_OUT_I_RDV_ADELLE_ENCAISSE.sql","ETL","CGEN_RBM003"]
["cre_tab_OUT_JEUX_AGG_COUR.sql","ETL","CGEN_RBM003"]
["cre_tab_OUT_JTR_DETAILLANT_A_PAIEMENT.sql","ETL","CGEN_RBM003"]
["cre_tab_OUT_JTR_DETAILLANT_A_PROMOTION.sql","ETL","CGEN_RBM003"]
["cre_tab_OUT_JTR_DETAILLANT_ANNULATION.sql","ETL","CGEN_RBM003"]
["cre_tab_OUT_JTR_DETAILLANT_PAIEMENT.sql","ETL","CGEN_RBM003"]
["cre_tab_OUT_JTR_DETAILLANT_PRISE_DE_JEU.sql","ETL","CGEN_RBM003"]
["cre_tab_OUT_JTR_DETAILLANT_PROMOTION.sql","ETL","CGEN_RBM003"]
["cre_tab_OUT_JTR_REGULARISATION.sql","ETL","CGEN_RBM003"]
["cre_tab_OUT_PR6_CARTES_ACTIVEES.sql","ETL","CGEN_RBM003"]
["cre_tab_OUT_RDV_ADELLE_AJUSTEMENT_LOT.sql","ETL","CGEN_RBM003"]
["cre_tab_OUT_STAG_CA.sql","ETL","CGEN_RBM003"]
["cre_tab_OUT_STAG_FREE.sql","ETL","CGEN_RBM003"]
["cre_tab_OUT_STAG_GRT_LIV_FV.sql","ETL","CGEN_RBM003"]
["cre_tab_OUT_STAG_LOTV.sql","ETL","CGEN_RBM003"]
["cre_tab_OUT_STAG_LVOL.sql","ETL","CGEN_RBM003"]
["cre_tab_OUT_STAG_TDEF.sql","ETL","CGEN_RBM003"]
["cre_tab_OUT_STAG_TRES.sql","ETL","CGEN_RBM003"]
["cre_tab_REF_BIC_GAMME_JEU.sql","ETL","CGEN_RBM003"]
["cre_tab_TRANSCO_CANAL_DISTR.sql","ETL","CGEN_RBM003"]
["WKF_E_OEBS_IMPAYE.XML","ETL","CGEN_RBM004"]
["WKF_L_IRBM_OEBS_IMPAYE.XML","ETL","CGEN_RBM004"]
["WKF_T_OEBS_IRBM_IMPAYE.XML","ETL","CGEN_RBM004"]
["pmserver_M_STAG_IRBM_IMPAYE.prm","ETL","CGEN_RBM004"]
["B_OEBS_IRBM_IMPAYE_32.ksh","ETL","CGEN_RBM004"]
["Charge_Ano_IMPAYE.sql","ETL","CGEN_RBM004"]
["Detect_Rejets_IMPAYE.sql","ETL","CGEN_RBM004"]
["cre_tab_I_DELP_RECOUVREMENT.sql","ETL","CGEN_RBM004"]
["cre_tab_O_DELP_RECOUVREMENT.sql","ETL","CGEN_RBM004"]
["cre_tab_STAG_DELP_IMPAYES_LOG.sql","ETL","CGEN_RBM004"]
["WKF_TL_STAG_IRBM_CUMUL_CA_Courtier_Sem.XML","ETL","CGEN_RBM005"]
["WKF_TL_STAG_IRBM_CUMUL_CA_Expl_Sem.XML","ETL","CGEN_RBM005"]
["WKF_TL_STAG_IRBM_CUMUL_COM.XML","ETL","CGEN_RBM005"]
["WKF_TL_STAG_IRBM_CUMUL_ROCOM.XML","ETL","CGEN_RBM005"]
["B_IRBM_CUMCA_COURTIERSEM.ksh","ETL","CGEN_RBM005"]
["B_IRBM_CUMCA_PDVSEM.ksh","ETL","CGEN_RBM005"]
["B_IRBM_CUMCOM_COUR_DET.ksh","ETL","CGEN_RBM005"]
["WKF_T_BIC_IRBM_DETECT_ANO.XML","ETL","CGEN_RBM006"]
["WKF_T_BIC_IRBM_IPGACCREPGAME.XML","ETL","CGEN_RBM006"]
["WKF_T_BIC_IRBM_NOUV_JEU.XML","ETL","CGEN_RBM006"]
["WKF_T_BIC_IRBM_NOUV_NUM_EMIS.XML","ETL","CGEN_RBM006"]
["WKF_T_BIC_IRBM_NOUV_VARIANTE.XML","ETL","CGEN_RBM006"]
["WKF_T_BIC_IRBM_SUIVI_TRAIT.XML","ETL","CGEN_RBM006"]
["pmserver_M_STAG_STAG_NOUV_NUM_EMIS_IRBM.prm","ETL","CGEN_RBM006"]
["ins_MATRICE_COSTBAND_NUMEMIS.sql","ETL","CGEN_RBM006"]
["ins_MATRICE_COSTCODE_JEU.sql","ETL","CGEN_RBM006"]
["ins_MATRICE_COSTCODE_NUMEMIS.sql","ETL","CGEN_RBM006"]
["ins_MATRICE_EVENT_REV_MAP_JEU.sql","ETL","CGEN_RBM006"]
["ins_MATRICE_GAMME_EVT.sql","ETL","CGEN_RBM006"]
["ins_MATRICE_RATINGELEMENT_NUMEMIS.sql","ETL","CGEN_RBM006"]
["ins_MATRICE_REVENUE_CODE_JEU.sql","ETL","CGEN_RBM006"]
["ins_MATRICE_TARIFBASIS_NUMEMIS.sql","ETL","CGEN_RBM006"]
["XXFIJI_ETLBIC_001_PKG.sql","ETL","CGEN_RBM006"]
["B_IRBM_PRODUCT_44.ksh","ETL","CGEN_RBM006"]
["cre_tab_MATRICE_COSTBAND_NUMEMIS.sql","ETL","CGEN_RBM006"]
["cre_tab_MATRICE_COSTCODE_JEU.sql","ETL","CGEN_RBM006"]
["cre_tab_MATRICE_COSTCODE_NUMEMIS.sql","ETL","CGEN_RBM006"]
["cre_tab_MATRICE_EVENT_REV_MAP_JEU.sql","ETL","CGEN_RBM006"]
["cre_tab_MATRICE_GAMME_EVT.sql","ETL","CGEN_RBM006"]
["cre_tab_MATRICE_RATINGELEMENT_NUMEMIS.sql","ETL","CGEN_RBM006"]
["cre_tab_MATRICE_REVENUE_CODE_JEU.sql","ETL","CGEN_RBM006"]
["cre_tab_MATRICE_TARIFBASIS_NUMEMIS.sql","ETL","CGEN_RBM006"]
["cre_tab_PARAM_COSTBAND_NUMEMIS_IRBM.sql","ETL","CGEN_RBM006"]
["cre_tab_PARAM_COSTCODE_JEU_IRBM.sql","ETL","CGEN_RBM006"]
["cre_tab_PARAM_COSTCODE_NUMEMIS_IRBM.sql","ETL","CGEN_RBM006"]
["cre_tab_PARAM_COSTCODE_VJEU_IRBM.sql","ETL","CGEN_RBM006"]
["cre_tab_PARAM_EVENT_REV_MAP_JEU_IRBM.sql","ETL","CGEN_RBM006"]
["cre_tab_PARAM_RATINGELEMENT_NUMEMIS_IRBM.sql","ETL","CGEN_RBM006"]
["cre_tab_PARAM_REVENUE_CODE_JEU_IRBM.sql","ETL","CGEN_RBM006"]
["cre_tab_PARAM_TARIFBASIS_NUMEMIS_IRBM.sql","ETL","CGEN_RBM006"]
["WKF_E_IRBM_STAG_SID_ACCOUNT.XML","ETL","CGEN_SID001"]
["WKF_E_IRBM_STAG_SID_BILL_SUMMARY.XML","ETL","CGEN_SID001"]
["WKF_E_IRBM_STAG_SID_BILLSTYLE.XML","ETL","CGEN_SID001"]
["WKF_E_IRBM_STAG_SID_BILLTYPE.XML","ETL","CGEN_SID001"]
["WKF_E_IRBM_STAG_SID_COSTEDEVENT.XML","ETL","CGEN_SID001"]
["WKF_E_IRBM_STAG_SID_CURRENCY.XML","ETL","CGEN_SID001"]
["WKF_E_IRBM_STAG_SID_CUSTOMER.XML","ETL","CGEN_SID001"]
["WKF_E_IRBM_STAG_SID_CUSTOMERTYPE.XML","ETL","CGEN_SID001"]
["WKF_E_IRBM_STAG_SID_EVENTTYPE.XML","ETL","CGEN_SID001"]
["WKF_E_IRBM_STAG_SID_EVENTTYPEATTRIBUTE.XML","ETL","CGEN_SID001"]
["WKF_E_IRBM_STAG_SID_IPGGAMECATEGORY.XML","ETL","CGEN_SID001"]
["WKF_E_IRBM_STAG_SID_IPGGAMEEVENTTYPES.XML","ETL","CGEN_SID001"]
["WKF_E_IRBM_STAG_SID_MULTIPARTYEVENTMAP.XML","ETL","CGEN_SID001"]
["WKF_E_IRBM_STAG_SID_RATINGTARIFF.XML","ETL","CGEN_SID001"]
["WKF_E_IRBM_STAG_SID_REVENUECODE.XML","ETL","CGEN_SID001"]
["WKF_T_STAG_STAG_SUIV_IRBM_BILL_SUMMARY.XML","ETL","CGEN_SID001"]
["WKF_T_STAG_STAG_SUIV_IRBM_COSTEDEVENT.XML","ETL","CGEN_SID001"]
["WKF_T_STAG_STAG_SUIV_SID_RBM_FULL.XML","ETL","CGEN_SID001"]
["pmserver_M_IRBM_STAG_SID_COSTEDEVENT.prm","ETL","CGEN_SID001"]
["cre_pack_XXFIJI_SID_01_PKG.sql","ETL","CGEN_SID001"]
["cre_tab_I_RBM_ACCOUNT.sql","ETL","CGEN_SID001"]
["cre_tab_I_RBM_BILL_SUMMARY.sql","ETL","CGEN_SID001"]
["cre_tab_I_RBM_BILLSTYLE.sql","ETL","CGEN_SID001"]
["cre_tab_I_RBM_BILLTYPE.sql","ETL","CGEN_SID001"]
["cre_tab_I_RBM_COSTEDEVENT.sql","ETL","CGEN_SID001"]
["cre_tab_I_RBM_CURRENCY.sql","ETL","CGEN_SID001"]
["cre_tab_I_RBM_CUSTOMER.sql","ETL","CGEN_SID001"]
["cre_tab_I_RBM_CUSTOMERTYPE.sql","ETL","CGEN_SID001"]
["cre_tab_I_RBM_EVENTTYPEATTRIBUTE.sql","ETL","CGEN_SID001"]
["cre_tab_I_RBM_EVENTYPE.sql","ETL","CGEN_SID001"]
["cre_tab_I_RBM_IPGGAMECATEGORY.sql","ETL","CGEN_SID001"]
["cre_tab_I_RBM_IPGGAMEEVENTTYPES.sql","ETL","CGEN_SID001"]
["cre_tab_I_RBM_MULTIPARTYEVENTMAP.sql","ETL","CGEN_SID001"]
["cre_tab_I_RBM_RATINGTARIFF.sql","ETL","CGEN_SID001"]
["cre_tab_I_RBM_REVENUECODE.sql","ETL","CGEN_SID001"]
["cre_tab_SUIVI_CHARGEMENT.sql","ETL","CGEN_SID001"]
["cre_view_ETLUSR_ACCOUNT_V.sql","ETL","CGEN_SID001"]
["cre_view_ETLUSR_BILL_SUMMARY_V.sql","ETL","CGEN_SID001"]
["cre_view_ETLUSR_BILLSTYLE_V.sql","ETL","CGEN_SID001"]
["cre_view_ETLUSR_BILLTYPE_V.sql","ETL","CGEN_SID001"]
["cre_view_ETLUSR_COSTEDEVENT_V.sql","ETL","CGEN_SID001"]
["cre_view_ETLUSR_CURRENCY_V.sql","ETL","CGEN_SID001"]
["cre_view_ETLUSR_CUSTOMER_V.sql","ETL","CGEN_SID001"]
["cre_view_ETLUSR_CUSTOMERTYPE_V.sql","ETL","CGEN_SID001"]
["cre_view_ETLUSR_EVENTTYPEATTRIBUTE_V.sql","ETL","CGEN_SID001"]
["cre_view_ETLUSR_EVENTYPE_V.sql","ETL","CGEN_SID001"]
["cre_view_ETLUSR_IPGGAMECATEGORY_V.sql","ETL","CGEN_SID001"]
["cre_view_ETLUSR_IPGGAMEEVENTTYPES_V.sql","ETL","CGEN_SID001"]
["cre_view_ETLUSR_MULTIPARTYEVENTMAP_V.sql","ETL","CGEN_SID001"]
["cre_view_ETLUSR_RATINGTARIFF_V.sql","ETL","CGEN_SID001"]
["cre_view_ETLUSR_REVENUECODE_V.sql","ETL","CGEN_SID001"]
["FIJIbursting.java","BIPUB","COMMON"]
["run_edition.properties","BIPUB","COMMON"]
["run_edition.sh","BIPUB","COMMON"]
["cre_pack_XXFIJI_COMMON_TOOLS_PKG.sql","OeBS","COMMONTOOLS"]
["cre_tri_ap_get_supplier_for_refund_bi.sql","OeBS","COMMONTOOLS"]
["cre_tri_hz_org_profiles_biur_01.sql","OeBS","COMMONTOOLS"]
["cre_tri_hz_parties_biur_01.sql","OeBS","COMMONTOOLS"]
["tsn_XXFIJI_DFX_Table_Stats_Exlusion.sql","OeBS","COMMONTOOLS"]
["fixAccountAttrAndPRMandate.ksh","RBM","CONTROLRBM"]
["fixAccountAttrAndPRMandate.sql","RBM","CONTROLRBM"]
["paral.ksh","RBM","CONTROLRBM"]
["paral_after_RATE.sql","RBM","CONTROLRBM"]
["paral_before_RATE.sql","RBM","CONTROLRBM"]
["paral_post_checks.ksh","RBM","CONTROLRBM"]
["paral_pre_check_tablespaces.sql","RBM","CONTROLRBM"]
["paral_pre_checks.ksh","RBM","CONTROLRBM"]
["processReratingRequests.ksh","RBM","CONTROLRBM"]
["verif_courtiers.ksh","RBM","CONTROLRBM"]
["verif_courtiers.sql","RBM","CONTROLRBM"]
["AlimRefKheoLocamob.ksh","RBM","CONTROLRBM"]
["AlimRefKheoLocamob.sql","RBM","CONTROLRBM"]
["deletePendingDegressivite.ksh","RBM","CONTROLRBM"]
["deletePendingDegressivite.sql","RBM","CONTROLRBM"]
["preAlimRKLO.ksh","RBM","CONTROLRBM"]
["preAlimRKLO.sql","RBM","CONTROLRBM"]
["CP_AR_XXFIJI_CP001_01_F.ldt","OeBS","CP001"]
["CP_AR_XXFIJI_CP001_03_F.ldt","OeBS","CP001"]
["CP_AR_XXFIJI_CP001_05_F.ldt","OeBS","CP001"]
["CP_AR_XXFIJI_CP001_06_F.ldt","OeBS","CP001"]
["MSGV_XXFIJI_XXFIJI_CP001.ldt","OeBS","CP001"]
["MSGV_XXFIJI_XXFIJI_CP001_F.ldt","OeBS","CP001"]
["PRO_XXFIJI_CP001_PAYMENT_DOCUMENT_F.ldt","OeBS","CP001"]
["PRO_XXFIJI_CP001_PAYMENT_TAMPLATE_COUR_F.ldt","OeBS","CP001"]
["PRO_XXFIJI_CP001_PAYMENT_TAMPLATE_DET_F.ldt","OeBS","CP001"]
["VS_XXFIJI_CP001_INVOICE_AP_AR_F.ldt","OeBS","CP001"]
["VS_XXFIJI_O_or_N_F.ldt","OeBS","CP001"]
["alt_tab_xxFIJI_cp001_fun_net_report.sql","OeBS","CP001"]
["cre_ind_XXFIJI_CP001_BATCHES.sql","OeBS","CP001"]
["cre_pack_XXFIJI_CP001_01_PKG.sql","OeBS","CP001"]
["cre_pack_XXFIJI_CP001_03_PKG.sql","OeBS","CP001"]
["cre_pack_XXFIJI_CP001_10_PKG.sql","OeBS","CP001"]
["cre_seq_XXFIJI_CP001_BATCHES.sql","OeBS","CP001"]
["cre_tab_XXFIJI_CP001_BATCHES.sql","OeBS","CP001"]
["cre_tab_XXFIJI_CP001_BATCHES_GT.sql","OeBS","CP001"]
["cre_tab_XXFIJI_CP001_FUN_NET_REPORT.sql","OeBS","CP001"]
["XXFIJINetBatchCompleteVO.xml","OeBS","CP001"]
["XXFIJINetBatchSearchResultVO.xml","OeBS","CP001"]
["XXFIJINetBatchUpdateVO.xml","OeBS","CP001"]
["XXFIJIPOSSubstComp.jpx","OeBS","CP001"]
["CP_XXFIJI_XXFIJI_CT001_01_F.ldt","OeBS","CT001"]
["CP_XXFIJI_XXFIJI_CT001_02_F.ldt","OeBS","CT001"]
["CP_XXFIJI_XXFIJI_CT001_BI01_F.ldt","OeBS","CT001"]
["CP_XXFIJI_XXFIJI_CT001_BI02_F.ldt","OeBS","CT001"]
["CP_XXFIJI_XXFIJI_CT001_BI03_F.ldt","OeBS","CT001"]
["CP_XXFIJI_XXFIJI_CT001_BI04_F.ldt","OeBS","CT001"]
["LOOKUP_XXFIJI_XXFIJI_CT001_TOLERANCE_F.ldt","OeBS","CT001"]
["MSGV_XXFIJI_XXFIJI_CT001_F.ldt","OeBS","CT001"]
["PRO_XXFIJI_CT001_MAIL_FROM_F.ldt","OeBS","CT001"]
["PRO_XXFIJI_CT001_SMTP_SERVER_NAME_F.ldt","OeBS","CT001"]
["VS_XXFIJI_CT001_ACC_TYPE_RBM_F.ldt","OeBS","CT001"]
["VS_XXFIJI_CT001_ETATS_F.ldt","OeBS","CT001"]
["VS_XXFIJI_CT001_MAILING_LIST_F.ldt","OeBS","CT001"]
["VS_XXFIJI_CT001_MAILING_LIST_OPER_F.ldt","OeBS","CT001"]
["VS_XXFIJI_CT001_POINT_CONTROLE_F.ldt","OeBS","CT001"]
["XMLP_XXFIJI_XXFIJI_CT001_BI01_F.ldt","OeBS","CT001"]
["XMLP_XXFIJI_XXFIJI_CT001_BI02_F.ldt","OeBS","CT001"]
["XMLP_XXFIJI_XXFIJI_CT001_BI03_F.ldt","OeBS","CT001"]
["XMLP_XXFIJI_XXFIJI_CT001_BI04_F.ldt","OeBS","CT001"]
["cre_ind_XXFIJI_CT001_GLOBAL_TRACKING.sql","OeBS","CT001"]
["cre_ind_XXFIJI_CT001_PROCESS.sql","OeBS","CT001"]
["cre_pack_XXFIJI_CT001_01_PKG.sql","OeBS","CT001"]
["cre_pack_XXFIJI_CT001_02_PKG.sql","OeBS","CT001"]
["cre_tab_XXFIJI_CT001_FACTURATION.sql","OeBS","CT001"]
["cre_tab_XXFIJI_CT001_GLOBAL_TRACK_ERROR.sql","OeBS","CT001"]
["cre_tab_XXFIJI_CT001_GLOBAL_TRACKING.sql","OeBS","CT001"]
["cre_tab_XXFIJI_CT001_PROCESS.sql","OeBS","CT001"]
["cre_tab_XXFIJI_CT001_VALORISATION.sql","OeBS","CT001"]
["XXFIJI_XXFIJI_CT001_BI01.rtf","OeBS","CT001"]
["XXFIJI_XXFIJI_CT001_BI02.rtf","OeBS","CT001"]
["XXFIJI_XXFIJI_CT001_BI03.rtf","OeBS","CT001"]
["XXFIJI_XXFIJI_CT001_BI04.rtf","OeBS","CT001"]
["XXFIJI_CT001_BI01.rdf","OeBS","CT001"]
["XXFIJI_CT001_BI02.rdf","OeBS","CT001"]
["XXFIJI_CT001_BI03.rdf","OeBS","CT001"]
["XXFIJI_CT001_BI04.rdf","OeBS","CT001"]
["rapbq_OFJ.sql","OeBS","GL001"]
["rapbq_SGE.sql","OeBS","GL001"]
["XXGL_BALANCE_ETAFI.sql","OeBS","GL002"]
["cre_tab_XXGL_TABLEPAIE.sql","OeBS","GL003"]
["paie.ctl","OeBS","GL003"]
["paie_image.ctl","OeBS","GL003"]
["paie_easylink.sql","OeBS","GL003"]
["paie_edt_site.sql","OeBS","GL003"]
["paie_edt_societe.sql","OeBS","GL003"]
["paie_prepa_easy.sql","OeBS","GL003"]
["cre_tab_XXINT_TRESO_SAGE.sql","OeBS","GL004"]
["cre_tab_XXINT_TRESO_TITAN.sql","OeBS","GL004"]
["grt_xxint_treso_sage.sql","OeBS","GL004"]
["lecture_fichier_conf.awk","OeBS","GL004"]
["treso.conf","OeBS","GL004"]
["xxint_treso.sh","OeBS","GL004"]
["xxint_treso_easylink.sql","OeBS","GL004"]
["xxint_treso_insert.sql","OeBS","GL004"]
["XXGL_R_CENTURA.rdf","OeBS","GL005"]
["CP_XXGL_GLFJ_PLIE_F.ldt","OeBS","GL006"]
["GLFJ_PLIE.rdf","OeBS","GL006"]
["CP_XXGL_GLFJ_DEPLIE_F.ldt","OeBS","GL007"]
["GLFJ_DEPLIE.rdf","OeBS","GL007"]
["PRO_GLFJ_DATE_EXTR_LETTRAGE_F.ldt","OeBS","GL008"]
["cre_pack_GLFJ_TVA_PKG.sql","OeBS","GL008"]
["cre_view_glfj_decl_tva_hist_v.sql","OeBS","GL008"]
["CP_XXGL_GLFJ_DECL_TVA_JUST_F.ldt","OeBS","GL009"]
["GLFJ_DECL_TVA_JUST.rdf","OeBS","GL009"]
["CP_XXGL_GLFJ_DECL_TVA_SOLD_F.ldt","OeBS","GL010"]
["GLFJ_DECL_TVA_SOLD.rdf","OeBS","GL010"]
["VS_GL_SRS_PERIOD_VAT.ldt","OeBS","GL011"]
["GLFJ_TVA_AUTRE.rdf","OeBS","GL011"]
["GLFJ_TVA_PKG.sql","OeBS","GL012"]
["GLFJ_DECL_TVA.fmb","OeBS","GL012"]
["XXGL_E_CENTURA.fmb","OeBS","GL013"]
["abel_charg_canal65.sql","OeBS","PO001"]
["abel_charg_fournisseurs65.sql","OeBS","PO001"]
["abel_charg_libudgets65.sql","OeBS","PO001"]
["abel_charg_oper65.sql","OeBS","PO001"]
["abel_charg_produits65.sql","OeBS","PO001"]
["abel_charg_sections65.sql","OeBS","PO001"]
["POXPRPOP.rdf","OeBS","PO002"]
["tsn_def000372.sql","OeBS","PO003"]
["POXPORRAFIJI.rdf","OeBS","PO003"]
["cre_pack_XXFIJI_PO004_01_PKG.sql","OeBS","PO004"]
["FIJI_POST_PROV.sql","OeBS","PO004"]
["CP_XXFIJI_XXFIJI_HISTORIQUE_IMPAYES_F.ldt","OeBS","REP003"]
["CP_XXFIJI_XXFIJI_INTERFACE_REGLEMENT_F.ldt","OeBS","REP003"]
["CP_XXFIJI_XXFIJI_REP003_05_F.ldt","OeBS","REP003"]
["CP_XXFIJI_XXFIJI_REPRISE_FACTURE_AR_F.ldt","OeBS","REP003"]
["PRO_XXFIJI_REP003_GL_DATE_F.ldt","OeBS","REP003"]
["cre_pack_XXFIJI_REP003_02_PKG.sql","OeBS","REP003"]
["cre_pack_XXFIJI_REP003_03_PKG.sql","OeBS","REP003"]
["cre_pack_XXFIJI_REP003_04_PKG.sql","OeBS","REP003"]
["cre_pack_XXFIJI_REP003_05_PKG.sql","OeBS","REP003"]
["cre_seq_XXFIJI_REP003_NOREGL_S.sql","OeBS","REP003"]
["cre_tab_XXFIJI_REP003_FACTURES.sql","OeBS","REP003"]
["cre_tab_XXFIJI_REP003_HIST_IMPAYES.sql","OeBS","REP003"]
["cre_tab_XXFIJI_REP003_HISTO_RELANCES.sql","OeBS","REP003"]
["cre_tab_XXFIJI_REP003_REGLEMENT.sql","OeBS","REP003"]
["tsn_FIX_TC49167.sql","OeBS","REP003"]
["tsn_FIX_TIERS_GESTION.sql","OeBS","REP003"]
["XXFIJI_REP003_02.ctl","OeBS","REP003"]
["XXFIJI_REP003_02.prog","OeBS","REP003"]
["XXFIJI_REP003_03.ctl","OeBS","REP003"]
["XXFIJI_REP003_03.prog","OeBS","REP003"]
["XXFIJI_REP003_04.ctl","OeBS","REP003"]
["XXFIJI_REP003_04.prog","OeBS","REP003"]
["XXFIJI_REP003_05.ctl","OeBS","REP003"]
["XXFIJI_REP003_05.prog","OeBS","REP003"]
["cre_pack_XXFIJI_SLA001_01_PKG.sql","OeBS","SLA001"]